{"text_format":"1","workbook":"xlsx","n_sheets":6,"sheets":["Info","Trial","Instructions","Leave","Summary","Monthly"],"not_rendered":{"charts":0,"images":2,"macros":1,"external_links":0,"defined_names":14,"comments":0,"pivot_tables":0},"unopened":[],"bounds":{"document_bytes":16777216,"sheet_cells":100000,"rows_first":2000,"rows_last":500,"rows_between":2000,"halvings":0,"cell_chars":16384,"cell_head_chars":4096},"cells_cut":0,"cells_raw":0,"read":"whole","date_system":"1900"}

{"sheet":"Info","index":0,"n_rows":0,"n_cols":0,"rows_kept":0,"cut":false,"hidden":false,"merged":[]}

{"sheet":"Trial","index":1,"n_rows":0,"n_cols":0,"rows_kept":0,"cut":false,"hidden":true,"merged":[]}

{"sheet":"Instructions","index":2,"n_rows":86,"n_cols":1,"rows_kept":86,"cut":false,"hidden":true,"merged":[]}
["Excel Skills | Sick Leave Template"]
["Instructions"]
["www.excel-skills.com"]
[]
["This template enables users to control the sick leave entitlement of employees and thereby analyse the attendance of employees. The template can be used to calculate remaining sick leave days for any period based on the sick leave entitlement & sick leave cycle duration which is specified by the user. The sick leave that is taken by each employee can simply be recorded and the template automatically calculates the remaining sick days that an employee has left. The template does not need to be rolled forward and automatically adjusts the sick leave cycles based on the review period that is specified."]
[]
["Note: The template can also be used for other leave types like family responsibility or compassionate leave where only the days leave taken needs to be recorded and measured based on a specified entitlement & cycle duration. Refer to our Annual Leave template for annual leave entitlement calculations which also includes the calculation of a provision based on monthly employee remuneration."]
[]
["The template includes the following sheets:"]
["Leave - when an employee takes sick leave, the number of days that is taken should be recorded on this sheet."]
["Summary - the employee code, name & employment date of each employee should be recorded on this sheet. The sick leave entitlement, leave cycle duration and leave cycle type should also be specified on this sheet. The remaining sick leave days of each employee are then automatically calculated. The leave cycle start & end dates of each employee are automatically determined based on the review period which is entered at the top of the sheet."]
["Monthly - this sheet includes a 12 month summary of the sick leave that is taken by each of the employees that are added to the Summary sheet. Note that this report is populated based on the reporting period selection on the Summary sheet."]
[]
["Template Set-up"]
[]
["The first step in customizing the template for your business is to specify the sick leave entitlement in cell E2 and the sick leave cycle duration in cell E3 on the Summary sheet. You also need to select the leave cycle type in cell E4 - there are two options, namely Fixed and Rolling."]
[]
["Select the Fixed option if you only want a new leave cycle to start when the previous leave cycle ends. Select the Rolling option if you want the oldest period to be dropped and a new period added when the cycle date is rolled forward for a new annual period."]
[]
["Example: A leave cycle starts on the 1st of March 2013 and spans a 36 month period. If the Fixed option is selected, the first leave cycle would start on the 1st of March 2013 and end on the 29th of February 2016 for any review date on or before 29 February 2016. When a review date of on or after 1 March 2016 is entered, a new leave cycle will be started and will include the leave cycle from 1 March 2016 to 28 February 2019. Any sick leave taken in the first leave cycle will fall away."]
[]
["Example: If the Rolling option is selected and the same example is used, the first leave cycle will also start on the 1st of March 2013 and end on the 28th of February 2016 for any review date on or before 28 February 2016. Only when a review date of on or after 1 March 2016 is entered, will any difference between the Fixed and Rolling bases be noted. If the Rolling basis is selected and the review date is on or after 1 March 2016, the leave cycle will be determined by dropping the oldest 12 month period in the 36 month period and adding a new 12 month period. An entirely new sick leave cycle is therefore not started and leave taken in the past 24 months will still be counted. With every 12 month period that passes, sick leave taken in the oldest 12 month period will be dropped and sick leave taken in the next 12 months added."]
[]
["All employees should then be added to the Summary sheet. The following details are required for each employee:"]
["Employee Code - a unique employee code should be entered for each employee in column A. We recommend that you use the employee number as per your payroll system for this purpose. If your payroll system does not include unique employee numbers, you can use any unique numbering system."]
["Employee Name - enter the name of the employee in column B."]
["Department Code - enter a department or group code for each employee in column C. The code that is entered in this column will enable you to use the Filter feature in order to filter employees by group or department."]
["Date Employed - enter the date on which the appropriate employee starts their employment. The first sick leave cycle will start from the first day of this month. No adjustment is made for a part of a month - the sick leave entitlement will start in the first month of an employee's employment. If you only want the accrual of leave to start in the subsequent month, simply enter the first day of the subsequent month as the employment date."]
[]
["Note: Columns E to I contain formulas that calculate the sick leave cycle start & end dates, the sick leave entitlement, the sick leave days taken and the remaining sick leave days."]
[]
["Cycle Start Date - the first sick leave cycle will start on the first day of the month in which the employee was employed. When the cycle duration in months is reached, the cycle start date will be amended automatically based on the leave cycle type which has been selected in cell E4."]
["Cycle End Date - the cycle end date is determined by adding the cycle duration in months to the cycle start date."]
["Days Entitlement - the sick leave entitlement is the same as the days that are entered in cell E2. The entitlement will be the same for all employees but the individual cycle start & end dates of employees will differ based on when the employee was appointed."]
["Leave Days Taken - all sick leave that is taken by employees need to be recorded on the Leave sheet. The total leave days taken that is calculated for each employee in this column includes all the days that fall between the cycle start & end dates and are before the review period which is specified in cell I2."]
["Leave Days Remaining - the remaining sick leave days are calculated in this column be deducting the sick leave days taken from the sick leave days entitlement."]
[]
["Note: The template has been designed for any leave type where the same entitlement is applied to all employees and leave does not accrue on a monthly basis but are simply measured against the specified entitlement days. You can therefore use the same template for other similar leave types (like family responsibility or compassionate leave) by simply saving this file under a different file name, changing the days entitlement, cycle duration and cycle type settings and recording the leave taken for the new leave type on the Leave sheet."]
[]
["Note: This template is not suitable for annual (or vacation) leave purposes - refer to our Annual Leave template for a solution which will be suitable in instances where the leave entitlement needs to be specified per employee & where leave needs to be accrued on an annual basis. This template also facilitates the calculation of an annual leave provision based on the outstanding leave days & the remuneration of each employee."]
[]
["Note: The Sick Leave template is not designed for any particular period and does not need to be rolled forward at the end of each financial period. You can therefore simply continue to record the sick leave that is taken and the template will continue to automatically calculate the remaining leave as at the specified reporting period date."]
[]
["Note: If the calculation of the remaining sick leave days in column I results in a negative value, the value is highlighted in orange. The highlighting indicates that the employee has taken more sick leave than entitled to (up to the end of the particular reporting period) - the leave of these employees should therefore be closely monitored and consideration can also be given to forcing the employee to take the excess sick leave days as part of their annual leave entitlement. In this case, the excess days should be removed from the Leave sheet and included on the Leave sheet in the Annual Leave template (which can be purchased as a separate template)."]
[]
["Note: All the columns on the Summary sheet have been included in an Excel table. This feature is extremely useful when entering data in a table format because the formulas that are included in calculated columns (columns with light blue column headings) are automatically copied when new rows are inserted into the table or when data is entered into the first blank row below the table. You can therefore add an employee by simply entering an employee code in column A - the table will then automatically extend to include the new employee."]
[]
["Recording Leave Taken"]
[]
["When an employee takes sick leave, the number of days leave that is taken should be entered on the Leave sheet. The following columns are included on this sheet:"]
[]
["Date of Leave - enter the date on which the employee's leave commences. All dates should be entered in accordance with the regional date settings that are specified in the System Control Panel."]
["Form Number - enter the leave form number. If leave forms are not being used, enter a transaction number instead. We strongly recommend using leave forms that are numbered sequentially in order to be able to ensure the completeness of leave input."]
["Employee Code - select the appropriate employee code from the list box in column C. All employee codes that have been included on the Summary sheet are included in the list box. For new employees, you will have to add the appropriate employee code to the Summary sheet before it will be available for selection from this list box."]
["Number of Days - enter the number of days leave that is taken by the employee."]
["Certificate - enter \"Yes\" if the employee has provided a certificate from a medical practitioner. Leave blank if no certificate has been provided."]
["Comments - use this column to enter any comments about the leave or absence from work by the employee."]
["Employee Name - this column contains a formula that displays the employee name that is associated with the employee code that has been selected in column C. The formula should be copied for all new rows that are entered on this sheet. The employee name can be used to check whether the correct employee code has been selected in column C."]
[]
["Note: If you want to include opening sick leave days taken balances, these should be added to this sheet. We recommend recording the days as they were taken but if this information is not available, you can add opening balances on the first day that you want to include in the template."]
[]
["Note: All the columns on the Leave sheet have been included in an Excel table. This feature is extremely useful when entering data in a table format because the formulas included in calculated columns (columns with light blue column headings) are automatically copied when new rows are added to the table or when data is entered into the first blank row below the table. You can add a leave entry by simply entering a date in column A - the table will then automatically extend to include the entry."]
[]
["The leave data that is entered on the Leave sheet is used to update the calculations in the Leave Days Taken column on the Summary sheet and the monthly analysis of sick leave by employee on the Monthly sheet."]
[]
["Sick Leave Reporting"]
[]
["The remaining sick leave days are calculated in column I on the Summary sheet. These calculations are based on the reporting period that is specified in cell I2. The calculations on the Summary sheet are automatically updated when a new reporting period is entered in cell I2. You can therefore also display sick leave calculations of previous leave cycles for an employee by simply entering a new date in this cell."]
[]
["The Monthly sheet includes a monthly analysis of the sick leave that is taken by each employee as well as the total sick leave days taken for the appropriate month (above the column headings). All calculations are displayed in days. The periods that are included on this sheet are determined by the reporting period that is specified in cell I2 on the Summary sheet."]
[]
["Note: The Monthly sheet requires no user input. All the calculations on this sheet are automated but only the first 50 employees are included on this sheet by default. The number of employees that are included on this sheet can be extended by simply copying the formulas in the last row that contains data into the appropriate number of additional rows."]
[]
["Note: The report on the Monthly sheet is based on the date that is selected on the Summary sheet and will only include sick leave days taken during the 12 month period which is included on this sheet. If you want to view the report for a different period, simply enter a new date in cell I2 on the Summary sheet in order to display the specified and 11 preceding months' data on the Monthly sheet."]
[]
["Template Roll Forward"]
[]
["The Sick Leave template has been designed on a cumulative basis and therefore never needs to be rolled forward. Simply continue to record sick leave days taken on the Leave sheet and simply enter a new reporting period date in cell I2 on the Summary sheet in order to view all the remaining leave days balances."]
[]
["Help & Customization"]
[]
["If you experience any difficulty while using this template and you are not able to find the appropriate guidance in these instructions, please e-mail us at support@excel-skills.com for assistance. This template has been designed with flexibility in mind to ensure that it can be used in most business environments. If however you need an Excel based template that is customized specifically for your business requirements, please e-mail our Support function and provide a brief explanation of your requirements."]
[]
["© Copyright"]
[]
["This template remains the intellectual property of www.excel-skills.com and is protected by international copyright laws. Any publication or distribution of this template outside the scope of the permitted use of the template is expressly prohibited. In terms of the permitted use of this template, only the distribution of the template to persons within the same organisation as the registered user or persons outside the organisation who can reasonably be expected to require access to the template as a direct result of the use of the template by the registered user is allowed. Subsequent distribution of the template by parties outside of the organisation is however expressly prohibited and represents an infringement of international copyright laws."]

{"sheet":"Leave","index":3,"n_rows":43,"n_cols":7,"rows_kept":43,"cut":false,"hidden":true,"merged":[]}
["Sick Leave"]
["Leave Records"]
["© www.excel-skills.com"]
["Date of Leave","Form Number","Employee Code","Number of Days","Certificate","Comments","Employee Name"]
["2020-03-01","OB","EMP004",16,null,"Opening Balance - Leave Taken",{"$f":"IF(ISBLANK($C5)=TRUE,\"\",IF(ISNA(VLOOKUP($C5,Employees,COLUMN(Summary!$B$5),0))=TRUE,\"incorrect code\",VLOOKUP($C5,Employees,COLUMN(Summary!$B$5),0)))","v":"B Flower"}]
["2020-03-01","OB","EMP005",12,null,"Opening Balance - Leave Taken",{"$f":"IF(ISBLANK($C6)=TRUE,\"\",IF(ISNA(VLOOKUP($C6,Employees,COLUMN(Summary!$B$5),0))=TRUE,\"incorrect code\",VLOOKUP($C6,Employees,COLUMN(Summary!$B$5),0)))","v":"B Hendry"}]
["2020-03-01","OB","EMP010",2,null,"Opening Balance - Leave Taken",{"$f":"IF(ISBLANK($C7)=TRUE,\"\",IF(ISNA(VLOOKUP($C7,Employees,COLUMN(Summary!$B$5),0))=TRUE,\"incorrect code\",VLOOKUP($C7,Employees,COLUMN(Summary!$B$5),0)))","v":"C Smith"}]
["2020-03-01","OB","EMP013",1,null,"Opening Balance - Leave Taken",{"$f":"IF(ISBLANK($C8)=TRUE,\"\",IF(ISNA(VLOOKUP($C8,Employees,COLUMN(Summary!$B$5),0))=TRUE,\"incorrect code\",VLOOKUP($C8,Employees,COLUMN(Summary!$B$5),0)))","v":"R Rossouw"}]
["2020-03-01","S0001","EMP009",1,"Yes","Stomach pain",{"$f":"IF(ISBLANK($C9)=TRUE,\"\",IF(ISNA(VLOOKUP($C9,Employees,COLUMN(Summary!$B$5),0))=TRUE,\"incorrect code\",VLOOKUP($C9,Employees,COLUMN(Summary!$B$5),0)))","v":"S Thompson"}]
["2020-03-10","S0002","EMP005",2,null,"Hypertension",{"$f":"IF(ISBLANK($C10)=TRUE,\"\",IF(ISNA(VLOOKUP($C10,Employees,COLUMN(Summary!$B$5),0))=TRUE,\"incorrect code\",VLOOKUP($C10,Employees,COLUMN(Summary!$B$5),0)))","v":"B Hendry"}]
["2020-03-16","S0003","EMP004",1,null,"Tooth abscess",{"$f":"IF(ISBLANK($C11)=TRUE,\"\",IF(ISNA(VLOOKUP($C11,Employees,COLUMN(Summary!$B$5),0))=TRUE,\"incorrect code\",VLOOKUP($C11,Employees,COLUMN(Summary!$B$5),0)))","v":"B Flower"}]
["2020-04-10","S0004","EMP005",1,"Yes","Doctors script",{"$f":"IF(ISBLANK($C12)=TRUE,\"\",IF(ISNA(VLOOKUP($C12,Employees,COLUMN(Summary!$B$5),0))=TRUE,\"incorrect code\",VLOOKUP($C12,Employees,COLUMN(Summary!$B$5),0)))","v":"B Hendry"}]
["2020-05-05","S0005","EMP004",1,null,"No sick note",{"$f":"IF(ISBLANK($C13)=TRUE,\"\",IF(ISNA(VLOOKUP($C13,Employees,COLUMN(Summary!$B$5),0))=TRUE,\"incorrect code\",VLOOKUP($C13,Employees,COLUMN(Summary!$B$5),0)))","v":"B Flower"}]
["2020-05-11","S0006","EMP004",5,null,"Child - flu",{"$f":"IF(ISBLANK($C14)=TRUE,\"\",IF(ISNA(VLOOKUP($C14,Employees,COLUMN(Summary!$B$5),0))=TRUE,\"incorrect code\",VLOOKUP($C14,Employees,COLUMN(Summary!$B$5),0)))","v":"B Flower"}]
["2020-05-25","S0007","EMP013",1,"Yes","Nausea",{"$f":"IF(ISBLANK($C15)=TRUE,\"\",IF(ISNA(VLOOKUP($C15,Employees,COLUMN(Summary!$B$5),0))=TRUE,\"incorrect code\",VLOOKUP($C15,Employees,COLUMN(Summary!$B$5),0)))","v":"R Rossouw"}]
["2020-05-26","S0008","EMP005",3,"Yes","Flu",{"$f":"IF(ISBLANK($C16)=TRUE,\"\",IF(ISNA(VLOOKUP($C16,Employees,COLUMN(Summary!$B$5),0))=TRUE,\"incorrect code\",VLOOKUP($C16,Employees,COLUMN(Summary!$B$5),0)))","v":"B Hendry"}]
["2020-05-26","S0009","EMP010",4,null,"Lower back",{"$f":"IF(ISBLANK($C17)=TRUE,\"\",IF(ISNA(VLOOKUP($C17,Employees,COLUMN(Summary!$B$5),0))=TRUE,\"incorrect code\",VLOOKUP($C17,Employees,COLUMN(Summary!$B$5),0)))","v":"C Smith"}]
["2020-06-11","S0010","EMP005",1,"Yes","Medical condition",{"$f":"IF(ISBLANK($C18)=TRUE,\"\",IF(ISNA(VLOOKUP($C18,Employees,COLUMN(Summary!$B$5),0))=TRUE,\"incorrect code\",VLOOKUP($C18,Employees,COLUMN(Summary!$B$5),0)))","v":"B Hendry"}]
["2020-06-09","S0011","EMP019",1,null,"Infection",{"$f":"IF(ISBLANK($C19)=TRUE,\"\",IF(ISNA(VLOOKUP($C19,Employees,COLUMN(Summary!$B$5),0))=TRUE,\"incorrect code\",VLOOKUP($C19,Employees,COLUMN(Summary!$B$5),0)))","v":"Z McGregor"}]
["2020-07-02","S0012","EMP020",2,"Yes","Medical problem",{"$f":"IF(ISBLANK($C20)=TRUE,\"\",IF(ISNA(VLOOKUP($C20,Employees,COLUMN(Summary!$B$5),0))=TRUE,\"incorrect code\",VLOOKUP($C20,Employees,COLUMN(Summary!$B$5),0)))","v":"M Kane"}]
["2020-07-08","S0013","EMP009",1,null,"Pharmacy script",{"$f":"IF(ISBLANK($C21)=TRUE,\"\",IF(ISNA(VLOOKUP($C21,Employees,COLUMN(Summary!$B$5),0))=TRUE,\"incorrect code\",VLOOKUP($C21,Employees,COLUMN(Summary!$B$5),0)))","v":"S Thompson"}]
["2020-07-09","S0014","EMP013",1,"Yes","Joint pain",{"$f":"IF(ISBLANK($C22)=TRUE,\"\",IF(ISNA(VLOOKUP($C22,Employees,COLUMN(Summary!$B$5),0))=TRUE,\"incorrect code\",VLOOKUP($C22,Employees,COLUMN(Summary!$B$5),0)))","v":"R Rossouw"}]
["2020-07-09","S0015","EMP016",1,"Yes","Doctors appointment",{"$f":"IF(ISBLANK($C23)=TRUE,\"\",IF(ISNA(VLOOKUP($C23,Employees,COLUMN(Summary!$B$5),0))=TRUE,\"incorrect code\",VLOOKUP($C23,Employees,COLUMN(Summary!$B$5),0)))","v":"R Johnson"}]
["2020-07-16","S0016","EMP006",0.5,"Yes","Blood test",{"$f":"IF(ISBLANK($C24)=TRUE,\"\",IF(ISNA(VLOOKUP($C24,Employees,COLUMN(Summary!$B$5),0))=TRUE,\"incorrect code\",VLOOKUP($C24,Employees,COLUMN(Summary!$B$5),0)))","v":"N Oliver"}]
["2020-07-13","S0017","EMP010",5,"Yes","Lower back",{"$f":"IF(ISBLANK($C25)=TRUE,\"\",IF(ISNA(VLOOKUP($C25,Employees,COLUMN(Summary!$B$5),0))=TRUE,\"incorrect code\",VLOOKUP($C25,Employees,COLUMN(Summary!$B$5),0)))","v":"C Smith"}]
["2020-08-05","S0018","EMP006",1.5,null,"No sickness certificate",{"$f":"IF(ISBLANK($C26)=TRUE,\"\",IF(ISNA(VLOOKUP($C26,Employees,COLUMN(Summary!$B$5),0))=TRUE,\"incorrect code\",VLOOKUP($C26,Employees,COLUMN(Summary!$B$5),0)))","v":"N Oliver"}]
["2020-08-20","S0019","EMP019",2,"Yes","Injury",{"$f":"IF(ISBLANK($C27)=TRUE,\"\",IF(ISNA(VLOOKUP($C27,Employees,COLUMN(Summary!$B$5),0))=TRUE,\"incorrect code\",VLOOKUP($C27,Employees,COLUMN(Summary!$B$5),0)))","v":"Z McGregor"}]
["2020-08-21","S0020","EMP013",1,null,"No certificate",{"$f":"IF(ISBLANK($C28)=TRUE,\"\",IF(ISNA(VLOOKUP($C28,Employees,COLUMN(Summary!$B$5),0))=TRUE,\"incorrect code\",VLOOKUP($C28,Employees,COLUMN(Summary!$B$5),0)))","v":"R Rossouw"}]
["2020-09-01","S0021","EMP013",1,"Yes","Doctors appointment",{"$f":"IF(ISBLANK($C29)=TRUE,\"\",IF(ISNA(VLOOKUP($C29,Employees,COLUMN(Summary!$B$5),0))=TRUE,\"incorrect code\",VLOOKUP($C29,Employees,COLUMN(Summary!$B$5),0)))","v":"R Rossouw"}]
["2020-09-02","S0022","EMP005",1,"Yes","Pharmacy script",{"$f":"IF(ISBLANK($C30)=TRUE,\"\",IF(ISNA(VLOOKUP($C30,Employees,COLUMN(Summary!$B$5),0))=TRUE,\"incorrect code\",VLOOKUP($C30,Employees,COLUMN(Summary!$B$5),0)))","v":"B Hendry"}]
["2020-09-09","S0023","EMP020",0.5,null,"No doctors appointment",{"$f":"IF(ISBLANK($C31)=TRUE,\"\",IF(ISNA(VLOOKUP($C31,Employees,COLUMN(Summary!$B$5),0))=TRUE,\"incorrect code\",VLOOKUP($C31,Employees,COLUMN(Summary!$B$5),0)))","v":"M Kane"}]
["2020-09-08","S0024","EMP005",3,"Yes","Medical condition",{"$f":"IF(ISBLANK($C32)=TRUE,\"\",IF(ISNA(VLOOKUP($C32,Employees,COLUMN(Summary!$B$5),0))=TRUE,\"incorrect code\",VLOOKUP($C32,Employees,COLUMN(Summary!$B$5),0)))","v":"B Hendry"}]
["2020-09-10","S0025","EMP009",1,"Yes","Tooth abscess",{"$f":"IF(ISBLANK($C33)=TRUE,\"\",IF(ISNA(VLOOKUP($C33,Employees,COLUMN(Summary!$B$5),0))=TRUE,\"incorrect code\",VLOOKUP($C33,Employees,COLUMN(Summary!$B$5),0)))","v":"S Thompson"}]
["2020-10-13","S0026","EMP017",3,"Yes","Viral infection",{"$f":"IF(ISBLANK($C34)=TRUE,\"\",IF(ISNA(VLOOKUP($C34,Employees,COLUMN(Summary!$B$5),0))=TRUE,\"incorrect code\",VLOOKUP($C34,Employees,COLUMN(Summary!$B$5),0)))","v":"N Newton"}]
["2020-10-14","S0027","EMP021",1,"Yes","Blood test",{"$f":"IF(ISBLANK($C35)=TRUE,\"\",IF(ISNA(VLOOKUP($C35,Employees,COLUMN(Summary!$B$5),0))=TRUE,\"incorrect code\",VLOOKUP($C35,Employees,COLUMN(Summary!$B$5),0)))","v":"S Wilson"}]
["2020-10-20","S0028","EMP013",2,"Yes","Cold",{"$f":"IF(ISBLANK($C36)=TRUE,\"\",IF(ISNA(VLOOKUP($C36,Employees,COLUMN(Summary!$B$5),0))=TRUE,\"incorrect code\",VLOOKUP($C36,Employees,COLUMN(Summary!$B$5),0)))","v":"R Rossouw"}]
["2020-10-22","S0029","EMP005",3,null,"No certificate",{"$f":"IF(ISBLANK($C37)=TRUE,\"\",IF(ISNA(VLOOKUP($C37,Employees,COLUMN(Summary!$B$5),0))=TRUE,\"incorrect code\",VLOOKUP($C37,Employees,COLUMN(Summary!$B$5),0)))","v":"B Hendry"}]
["2020-10-28","S0030","EMP023",3,"Yes","Flu",{"$f":"IF(ISBLANK($C38)=TRUE,\"\",IF(ISNA(VLOOKUP($C38,Employees,COLUMN(Summary!$B$5),0))=TRUE,\"incorrect code\",VLOOKUP($C38,Employees,COLUMN(Summary!$B$5),0)))","v":"Q Davis"}]
["2020-11-17","S0031","EMP013",1,"Yes","Injury",{"$f":"IF(ISBLANK($C39)=TRUE,\"\",IF(ISNA(VLOOKUP($C39,Employees,COLUMN(Summary!$B$5),0))=TRUE,\"incorrect code\",VLOOKUP($C39,Employees,COLUMN(Summary!$B$5),0)))","v":"R Rossouw"}]
["2021-01-20","S0032","EMP005",5,"Yes","Blood test",{"$f":"IF(ISBLANK($C40)=TRUE,\"\",IF(ISNA(VLOOKUP($C40,Employees,COLUMN(Summary!$B$5),0))=TRUE,\"incorrect code\",VLOOKUP($C40,Employees,COLUMN(Summary!$B$5),0)))","v":"B Hendry"}]
["2021-02-10","S0033","EMP003",2,"Yes","Hospital certificate",{"$f":"IF(ISBLANK($C41)=TRUE,\"\",IF(ISNA(VLOOKUP($C41,Employees,COLUMN(Summary!$B$5),0))=TRUE,\"incorrect code\",VLOOKUP($C41,Employees,COLUMN(Summary!$B$5),0)))","v":"M Solomon"}]
["2021-02-25","S0034","EMP026",1,null,"Flu",{"$f":"IF(ISBLANK($C42)=TRUE,\"\",IF(ISNA(VLOOKUP($C42,Employees,COLUMN(Summary!$B$5),0))=TRUE,\"incorrect code\",VLOOKUP($C42,Employees,COLUMN(Summary!$B$5),0)))","v":"O Bradshaw"}]
["2021-02-27","S0035","EMP019",1,null,"Back pain",{"$f":"IF(ISBLANK($C43)=TRUE,\"\",IF(ISNA(VLOOKUP($C43,Employees,COLUMN(Summary!$B$5),0))=TRUE,\"incorrect code\",VLOOKUP($C43,Employees,COLUMN(Summary!$B$5),0)))","v":"Z McGregor"}]

{"sheet":"Summary","index":4,"n_rows":26,"n_cols":9,"rows_kept":26,"cut":false,"hidden":true,"merged":[]}
["Sick Leave",null,null,null,null,null,null,null,"Review Date:"]
["Summary",null,null,"Sick Leave Entitlement",30,null,null,null,"2021-02-28"]
["© www.excel-skills.com",null,null,"Duration of Sick Leave Cycle (months)",36,null,null,null,{"$f":"IF(ISBLANK($I$2),TODAY(),$I$2)","v":44255}]
[null,null,null,"Sick Leave Cycle Type","Fixed",{"$f":"IF($E$4=\"Fixed\",$E$4,\"Rolling\")","v":"Fixed"}]
["Employee Code","Employee Name","Department Code","Date Employed","Cycle Start Date","Cycle End Date","Days Entitlement","Leave Days Taken","Leave Days Remaining"]
["EMP003","M Solomon",1,"2016-03-01",{"$f":"IF($F$4=\"Rolling\",DATE(YEAR($D6),MONTH($D6)+ROUNDUP(MAX(0,((((YEAR($I$3)*12)+MONTH($I$3))-((YEAR($D6)*12)+MONTH($D6)))+1)-$E$3)/12,0)*12,1),DATE(YEAR(D6)+(ROUNDDOWN(MAX(0,((((YEAR($I$3)*12)+MONTH($I$3))-((YEAR($D6)*12)+MONTH($D6)))))/36,0)*3),MONTH(D6),1))","v":"2019-03-01"},{"$f":"DATE(YEAR($E6),MONTH($E6)+$E$3,DAY($E6)-1)","v":"2022-02-28"},{"$f":"$E$2","v":30},{"$f":"-SUMIFS(LeaveDays,LeaveDate,\">=\"&$E6,LeaveDate,\"<=\"&$I$3,LeaveCode,$A6)","v":-2},{"$f":"SUM(G6:H6)","v":28}]
["EMP004","B Flower",2,"2016-07-01","2019-07-01",{"$f":"DATE(YEAR($E7),MONTH($E7)+$E$3,DAY($E7)-1)","v":"2022-06-30"},{"$f":"$E$2","v":30},-23,{"$f":"SUM(G7:H7)","v":7}]
["EMP005","B Hendry",2,"2017-03-01","2020-03-01","2023-02-28",30,-31,-1]
["EMP006","N Oliver",2,"2017-08-19","2020-08-01","2023-07-31",30,-1.5,28.5]
["EMP007","C Patterson",1,"2017-08-19","2020-08-01","2023-07-31",30,0,30]
["EMP009","S Thompson",2,"2018-01-13","2021-01-01","2023-12-31",30,0,30]
["EMP010","C Smith",2,"2018-08-01","2018-08-01","2021-07-31",30,-11,19]
["EMP013","R Rossouw",2,"2019-01-19","2019-01-01","2021-12-31",30,-8,22]
["EMP014","W Stone",2,"2019-02-01","2019-02-01","2022-01-31",30,0,30]
["EMP015","P Green",2,"2019-02-01","2019-02-01","2022-01-31",30,0,30]
["EMP016","R Johnson",2,"2019-03-27","2019-03-01","2022-02-28",30,-1,29]
["EMP017","N Newton",2,"2019-04-08","2019-04-01","2022-03-31",30,-3,27]
["EMP018","Q Valentine",2,"2019-05-04","2019-05-01","2022-04-30",30,0,30]
["EMP019","Z McGregor",2,"2019-05-04","2019-05-01","2022-04-30",30,-4,26]
["EMP020","M Kane",1,"2019-07-05","2019-07-01","2022-06-30",30,-2.5,27.5]
["EMP021","S Wilson",2,"2019-09-01","2019-09-01","2022-08-31",30,-1,29]
["EMP022","F Martin",2,"2019-09-15","2019-09-01","2022-08-31",30,0,30]
["EMP023","Q Davis",2,"2019-10-01","2019-10-01","2022-09-30",30,-3,27]
["EMP024","A Ross",2,"2019-11-16","2019-11-01","2022-10-31",30,0,30]
["EMP025","R McAdam",2,"2020-02-03","2020-02-01","2023-01-31",30,0,30]
["EMP026","O Bradshaw",2,"2020-03-07","2020-03-01","2023-02-28",30,-1,29]

{"sheet":"Monthly","index":5,"n_rows":54,"n_cols":14,"rows_kept":54,"cut":false,"hidden":true,"merged":[]}
["Sick Leave"]
[{"$f":"\"Monthly Sick Leave Taken Summary as at \"&TEXT(Summary!$I$2,\"dd mmmm yyyy\")","v":"Monthly Sick Leave Taken Summary as at 28 February 2021"}]
["© www.excel-skills.com",null,{"$f":"SUBTOTAL(109,OFFSET(C4,1,0,MonthCount,1))","v":35},{"$f":"SUBTOTAL(109,OFFSET(D4,1,0,MonthCount,1))","v":1},{"$f":"SUBTOTAL(109,OFFSET(E4,1,0,MonthCount,1))","v":14},{"$f":"SUBTOTAL(109,OFFSET(F4,1,0,MonthCount,1))","v":2},{"$f":"SUBTOTAL(109,OFFSET(G4,1,0,MonthCount,1))","v":10.5},{"$f":"SUBTOTAL(109,OFFSET(H4,1,0,MonthCount,1))","v":4.5},{"$f":"SUBTOTAL(109,OFFSET(I4,1,0,MonthCount,1))","v":6.5},{"$f":"SUBTOTAL(109,OFFSET(J4,1,0,MonthCount,1))","v":12},{"$f":"SUBTOTAL(109,OFFSET(K4,1,0,MonthCount,1))","v":1},{"$f":"SUBTOTAL(109,OFFSET(L4,1,0,MonthCount,1))","v":0},{"$f":"SUBTOTAL(109,OFFSET(M4,1,0,MonthCount,1))","v":5},{"$f":"SUBTOTAL(109,OFFSET(N4,1,0,MonthCount,1))","v":4}]
["Employee Code","Employee Name",{"$f":"DATE(YEAR(D$4),MONTH(D$4),0)","v":"2020-03-31"},"2020-04-30","2020-05-31","2020-06-30","2020-07-31","2020-08-31","2020-09-30","2020-10-31","2020-11-30","2020-12-31",{"$f":"DATE(YEAR(N$4),MONTH(N$4),0)","v":"2021-01-31"},{"$f":"DATE(YEAR(Summary!$I$3),MONTH(Summary!$I$3)+1,0)","v":"2021-02-28"}]
[{"$f":"IF(ISBLANK(OFFSET(Summary!A$5,ROW($B5)-ROW($B$4),0,1,1))=TRUE,\"\",OFFSET(Summary!A$5,ROW($B5)-ROW($B$4),0,1,1))","v":"EMP003"},{"$f":"IF(ISBLANK(OFFSET(Summary!B$5,ROW($B5)-ROW($B$4),0,1,1))=TRUE,\"\",OFFSET(Summary!B$5,ROW($B5)-ROW($B$4),0,1,1))","v":"M Solomon"},{"$f":"IF(LEN($A5)=0,\"\",SUMIFS(LeaveDays,LeaveDate,\">=\"&DATE(YEAR(C$4),MONTH(C$4),1),LeaveDate,\"<=\"&C$4,LeaveCode,$A5))","v":0},{"$f":"IF(LEN($A5)=0,\"\",SUMIFS(LeaveDays,LeaveDate,\">=\"&DATE(YEAR(D$4),MONTH(D$4),1),LeaveDate,\"<=\"&D$4,LeaveCode,$A5))","v":0},{"$f":"IF(LEN($A5)=0,\"\",SUMIFS(LeaveDays,LeaveDate,\">=\"&DATE(YEAR(E$4),MONTH(E$4),1),LeaveDate,\"<=\"&E$4,LeaveCode,$A5))","v":0},{"$f":"IF(LEN($A5)=0,\"\",SUMIFS(LeaveDays,LeaveDate,\">=\"&DATE(YEAR(F$4),MONTH(F$4),1),LeaveDate,\"<=\"&F$4,LeaveCode,$A5))","v":0},{"$f":"IF(LEN($A5)=0,\"\",SUMIFS(LeaveDays,LeaveDate,\">=\"&DATE(YEAR(G$4),MONTH(G$4),1),LeaveDate,\"<=\"&G$4,LeaveCode,$A5))","v":0},{"$f":"IF(LEN($A5)=0,\"\",SUMIFS(LeaveDays,LeaveDate,\">=\"&DATE(YEAR(H$4),MONTH(H$4),1),LeaveDate,\"<=\"&H$4,LeaveCode,$A5))","v":0},{"$f":"IF(LEN($A5)=0,\"\",SUMIFS(LeaveDays,LeaveDate,\">=\"&DATE(YEAR(I$4),MONTH(I$4),1),LeaveDate,\"<=\"&I$4,LeaveCode,$A5))","v":0},{"$f":"IF(LEN($A5)=0,\"\",SUMIFS(LeaveDays,LeaveDate,\">=\"&DATE(YEAR(J$4),MONTH(J$4),1),LeaveDate,\"<=\"&J$4,LeaveCode,$A5))","v":0},{"$f":"IF(LEN($A5)=0,\"\",SUMIFS(LeaveDays,LeaveDate,\">=\"&DATE(YEAR(K$4),MONTH(K$4),1),LeaveDate,\"<=\"&K$4,LeaveCode,$A5))","v":0},{"$f":"IF(LEN($A5)=0,\"\",SUMIFS(LeaveDays,LeaveDate,\">=\"&DATE(YEAR(L$4),MONTH(L$4),1),LeaveDate,\"<=\"&L$4,LeaveCode,$A5))","v":0},{"$f":"IF(LEN($A5)=0,\"\",SUMIFS(LeaveDays,LeaveDate,\">=\"&DATE(YEAR(M$4),MONTH(M$4),1),LeaveDate,\"<=\"&M$4,LeaveCode,$A5))","v":0},{"$f":"IF(LEN($A5)=0,\"\",SUMIFS(LeaveDays,LeaveDate,\">=\"&DATE(YEAR(N$4),MONTH(N$4),1),LeaveDate,\"<=\"&N$4,LeaveCode,$A5))","v":2}]
[{"$f":"IF(ISBLANK(OFFSET(Summary!A$5,ROW($B6)-ROW($B$4),0,1,1))=TRUE,\"\",OFFSET(Summary!A$5,ROW($B6)-ROW($B$4),0,1,1))","v":"EMP004"},{"$f":"IF(ISBLANK(OFFSET(Summary!B$5,ROW($B6)-ROW($B$4),0,1,1))=TRUE,\"\",OFFSET(Summary!B$5,ROW($B6)-ROW($B$4),0,1,1))","v":"B Flower"},{"$f":"IF(LEN($A6)=0,\"\",SUMIFS(LeaveDays,LeaveDate,\">=\"&DATE(YEAR(C$4),MONTH(C$4),1),LeaveDate,\"<=\"&C$4,LeaveCode,$A6))","v":17},{"$f":"IF(LEN($A6)=0,\"\",SUMIFS(LeaveDays,LeaveDate,\">=\"&DATE(YEAR(D$4),MONTH(D$4),1),LeaveDate,\"<=\"&D$4,LeaveCode,$A6))","v":0},{"$f":"IF(LEN($A6)=0,\"\",SUMIFS(LeaveDays,LeaveDate,\">=\"&DATE(YEAR(E$4),MONTH(E$4),1),LeaveDate,\"<=\"&E$4,LeaveCode,$A6))","v":6},{"$f":"IF(LEN($A6)=0,\"\",SUMIFS(LeaveDays,LeaveDate,\">=\"&DATE(YEAR(F$4),MONTH(F$4),1),LeaveDate,\"<=\"&F$4,LeaveCode,$A6))","v":0},{"$f":"IF(LEN($A6)=0,\"\",SUMIFS(LeaveDays,LeaveDate,\">=\"&DATE(YEAR(G$4),MONTH(G$4),1),LeaveDate,\"<=\"&G$4,LeaveCode,$A6))","v":0},{"$f":"IF(LEN($A6)=0,\"\",SUMIFS(LeaveDays,LeaveDate,\">=\"&DATE(YEAR(H$4),MONTH(H$4),1),LeaveDate,\"<=\"&H$4,LeaveCode,$A6))","v":0},{"$f":"IF(LEN($A6)=0,\"\",SUMIFS(LeaveDays,LeaveDate,\">=\"&DATE(YEAR(I$4),MONTH(I$4),1),LeaveDate,\"<=\"&I$4,LeaveCode,$A6))","v":0},{"$f":"IF(LEN($A6)=0,\"\",SUMIFS(LeaveDays,LeaveDate,\">=\"&DATE(YEAR(J$4),MONTH(J$4),1),LeaveDate,\"<=\"&J$4,LeaveCode,$A6))","v":0},{"$f":"IF(LEN($A6)=0,\"\",SUMIFS(LeaveDays,LeaveDate,\">=\"&DATE(YEAR(K$4),MONTH(K$4),1),LeaveDate,\"<=\"&K$4,LeaveCode,$A6))","v":0},{"$f":"IF(LEN($A6)=0,\"\",SUMIFS(LeaveDays,LeaveDate,\">=\"&DATE(YEAR(L$4),MONTH(L$4),1),LeaveDate,\"<=\"&L$4,LeaveCode,$A6))","v":0},{"$f":"IF(LEN($A6)=0,\"\",SUMIFS(LeaveDays,LeaveDate,\">=\"&DATE(YEAR(M$4),MONTH(M$4),1),LeaveDate,\"<=\"&M$4,LeaveCode,$A6))","v":0},{"$f":"IF(LEN($A6)=0,\"\",SUMIFS(LeaveDays,LeaveDate,\">=\"&DATE(YEAR(N$4),MONTH(N$4),1),LeaveDate,\"<=\"&N$4,LeaveCode,$A6))","v":0}]
[{"$f":"IF(ISBLANK(OFFSET(Summary!A$5,ROW($B7)-ROW($B$4),0,1,1))=TRUE,\"\",OFFSET(Summary!A$5,ROW($B7)-ROW($B$4),0,1,1))","v":"EMP005"},{"$f":"IF(ISBLANK(OFFSET(Summary!B$5,ROW($B7)-ROW($B$4),0,1,1))=TRUE,\"\",OFFSET(Summary!B$5,ROW($B7)-ROW($B$4),0,1,1))","v":"B Hendry"},{"$f":"IF(LEN($A7)=0,\"\",SUMIFS(LeaveDays,LeaveDate,\">=\"&DATE(YEAR(C$4),MONTH(C$4),1),LeaveDate,\"<=\"&C$4,LeaveCode,$A7))","v":14},{"$f":"IF(LEN($A7)=0,\"\",SUMIFS(LeaveDays,LeaveDate,\">=\"&DATE(YEAR(D$4),MONTH(D$4),1),LeaveDate,\"<=\"&D$4,LeaveCode,$A7))","v":1},{"$f":"IF(LEN($A7)=0,\"\",SUMIFS(LeaveDays,LeaveDate,\">=\"&DATE(YEAR(E$4),MONTH(E$4),1),LeaveDate,\"<=\"&E$4,LeaveCode,$A7))","v":3},{"$f":"IF(LEN($A7)=0,\"\",SUMIFS(LeaveDays,LeaveDate,\">=\"&DATE(YEAR(F$4),MONTH(F$4),1),LeaveDate,\"<=\"&F$4,LeaveCode,$A7))","v":1},{"$f":"IF(LEN($A7)=0,\"\",SUMIFS(LeaveDays,LeaveDate,\">=\"&DATE(YEAR(G$4),MONTH(G$4),1),LeaveDate,\"<=\"&G$4,LeaveCode,$A7))","v":0},{"$f":"IF(LEN($A7)=0,\"\",SUMIFS(LeaveDays,LeaveDate,\">=\"&DATE(YEAR(H$4),MONTH(H$4),1),LeaveDate,\"<=\"&H$4,LeaveCode,$A7))","v":0},{"$f":"IF(LEN($A7)=0,\"\",SUMIFS(LeaveDays,LeaveDate,\">=\"&DATE(YEAR(I$4),MONTH(I$4),1),LeaveDate,\"<=\"&I$4,LeaveCode,$A7))","v":4},{"$f":"IF(LEN($A7)=0,\"\",SUMIFS(LeaveDays,LeaveDate,\">=\"&DATE(YEAR(J$4),MONTH(J$4),1),LeaveDate,\"<=\"&J$4,LeaveCode,$A7))","v":3},{"$f":"IF(LEN($A7)=0,\"\",SUMIFS(LeaveDays,LeaveDate,\">=\"&DATE(YEAR(K$4),MONTH(K$4),1),LeaveDate,\"<=\"&K$4,LeaveCode,$A7))","v":0},{"$f":"IF(LEN($A7)=0,\"\",SUMIFS(LeaveDays,LeaveDate,\">=\"&DATE(YEAR(L$4),MONTH(L$4),1),LeaveDate,\"<=\"&L$4,LeaveCode,$A7))","v":0},{"$f":"IF(LEN($A7)=0,\"\",SUMIFS(LeaveDays,LeaveDate,\">=\"&DATE(YEAR(M$4),MONTH(M$4),1),LeaveDate,\"<=\"&M$4,LeaveCode,$A7))","v":5},{"$f":"IF(LEN($A7)=0,\"\",SUMIFS(LeaveDays,LeaveDate,\">=\"&DATE(YEAR(N$4),MONTH(N$4),1),LeaveDate,\"<=\"&N$4,LeaveCode,$A7))","v":0}]
[{"$f":"IF(ISBLANK(OFFSET(Summary!A$5,ROW($B8)-ROW($B$4),0,1,1))=TRUE,\"\",OFFSET(Summary!A$5,ROW($B8)-ROW($B$4),0,1,1))","v":"EMP006"},{"$f":"IF(ISBLANK(OFFSET(Summary!B$5,ROW($B8)-ROW($B$4),0,1,1))=TRUE,\"\",OFFSET(Summary!B$5,ROW($B8)-ROW($B$4),0,1,1))","v":"N Oliver"},{"$f":"IF(LEN($A8)=0,\"\",SUMIFS(LeaveDays,LeaveDate,\">=\"&DATE(YEAR(C$4),MONTH(C$4),1),LeaveDate,\"<=\"&C$4,LeaveCode,$A8))","v":0},{"$f":"IF(LEN($A8)=0,\"\",SUMIFS(LeaveDays,LeaveDate,\">=\"&DATE(YEAR(D$4),MONTH(D$4),1),LeaveDate,\"<=\"&D$4,LeaveCode,$A8))","v":0},{"$f":"IF(LEN($A8)=0,\"\",SUMIFS(LeaveDays,LeaveDate,\">=\"&DATE(YEAR(E$4),MONTH(E$4),1),LeaveDate,\"<=\"&E$4,LeaveCode,$A8))","v":0},{"$f":"IF(LEN($A8)=0,\"\",SUMIFS(LeaveDays,LeaveDate,\">=\"&DATE(YEAR(F$4),MONTH(F$4),1),LeaveDate,\"<=\"&F$4,LeaveCode,$A8))","v":0},{"$f":"IF(LEN($A8)=0,\"\",SUMIFS(LeaveDays,LeaveDate,\">=\"&DATE(YEAR(G$4),MONTH(G$4),1),LeaveDate,\"<=\"&G$4,LeaveCode,$A8))","v":0.5},{"$f":"IF(LEN($A8)=0,\"\",SUMIFS(LeaveDays,LeaveDate,\">=\"&DATE(YEAR(H$4),MONTH(H$4),1),LeaveDate,\"<=\"&H$4,LeaveCode,$A8))","v":1.5},{"$f":"IF(LEN($A8)=0,\"\",SUMIFS(LeaveDays,LeaveDate,\">=\"&DATE(YEAR(I$4),MONTH(I$4),1),LeaveDate,\"<=\"&I$4,LeaveCode,$A8))","v":0},{"$f":"IF(LEN($A8)=0,\"\",SUMIFS(LeaveDays,LeaveDate,\">=\"&DATE(YEAR(J$4),MONTH(J$4),1),LeaveDate,\"<=\"&J$4,LeaveCode,$A8))","v":0},{"$f":"IF(LEN($A8)=0,\"\",SUMIFS(LeaveDays,LeaveDate,\">=\"&DATE(YEAR(K$4),MONTH(K$4),1),LeaveDate,\"<=\"&K$4,LeaveCode,$A8))","v":0},{"$f":"IF(LEN($A8)=0,\"\",SUMIFS(LeaveDays,LeaveDate,\">=\"&DATE(YEAR(L$4),MONTH(L$4),1),LeaveDate,\"<=\"&L$4,LeaveCode,$A8))","v":0},{"$f":"IF(LEN($A8)=0,\"\",SUMIFS(LeaveDays,LeaveDate,\">=\"&DATE(YEAR(M$4),MONTH(M$4),1),LeaveDate,\"<=\"&M$4,LeaveCode,$A8))","v":0},{"$f":"IF(LEN($A8)=0,\"\",SUMIFS(LeaveDays,LeaveDate,\">=\"&DATE(YEAR(N$4),MONTH(N$4),1),LeaveDate,\"<=\"&N$4,LeaveCode,$A8))","v":0}]
[{"$f":"IF(ISBLANK(OFFSET(Summary!A$5,ROW($B9)-ROW($B$4),0,1,1))=TRUE,\"\",OFFSET(Summary!A$5,ROW($B9)-ROW($B$4),0,1,1))","v":"EMP007"},{"$f":"IF(ISBLANK(OFFSET(Summary!B$5,ROW($B9)-ROW($B$4),0,1,1))=TRUE,\"\",OFFSET(Summary!B$5,ROW($B9)-ROW($B$4),0,1,1))","v":"C Patterson"},{"$f":"IF(LEN($A9)=0,\"\",SUMIFS(LeaveDays,LeaveDate,\">=\"&DATE(YEAR(C$4),MONTH(C$4),1),LeaveDate,\"<=\"&C$4,LeaveCode,$A9))","v":0},{"$f":"IF(LEN($A9)=0,\"\",SUMIFS(LeaveDays,LeaveDate,\">=\"&DATE(YEAR(D$4),MONTH(D$4),1),LeaveDate,\"<=\"&D$4,LeaveCode,$A9))","v":0},{"$f":"IF(LEN($A9)=0,\"\",SUMIFS(LeaveDays,LeaveDate,\">=\"&DATE(YEAR(E$4),MONTH(E$4),1),LeaveDate,\"<=\"&E$4,LeaveCode,$A9))","v":0},{"$f":"IF(LEN($A9)=0,\"\",SUMIFS(LeaveDays,LeaveDate,\">=\"&DATE(YEAR(F$4),MONTH(F$4),1),LeaveDate,\"<=\"&F$4,LeaveCode,$A9))","v":0},{"$f":"IF(LEN($A9)=0,\"\",SUMIFS(LeaveDays,LeaveDate,\">=\"&DATE(YEAR(G$4),MONTH(G$4),1),LeaveDate,\"<=\"&G$4,LeaveCode,$A9))","v":0},{"$f":"IF(LEN($A9)=0,\"\",SUMIFS(LeaveDays,LeaveDate,\">=\"&DATE(YEAR(H$4),MONTH(H$4),1),LeaveDate,\"<=\"&H$4,LeaveCode,$A9))","v":0},{"$f":"IF(LEN($A9)=0,\"\",SUMIFS(LeaveDays,LeaveDate,\">=\"&DATE(YEAR(I$4),MONTH(I$4),1),LeaveDate,\"<=\"&I$4,LeaveCode,$A9))","v":0},{"$f":"IF(LEN($A9)=0,\"\",SUMIFS(LeaveDays,LeaveDate,\">=\"&DATE(YEAR(J$4),MONTH(J$4),1),LeaveDate,\"<=\"&J$4,LeaveCode,$A9))","v":0},{"$f":"IF(LEN($A9)=0,\"\",SUMIFS(LeaveDays,LeaveDate,\">=\"&DATE(YEAR(K$4),MONTH(K$4),1),LeaveDate,\"<=\"&K$4,LeaveCode,$A9))","v":0},{"$f":"IF(LEN($A9)=0,\"\",SUMIFS(LeaveDays,LeaveDate,\">=\"&DATE(YEAR(L$4),MONTH(L$4),1),LeaveDate,\"<=\"&L$4,LeaveCode,$A9))","v":0},{"$f":"IF(LEN($A9)=0,\"\",SUMIFS(LeaveDays,LeaveDate,\">=\"&DATE(YEAR(M$4),MONTH(M$4),1),LeaveDate,\"<=\"&M$4,LeaveCode,$A9))","v":0},{"$f":"IF(LEN($A9)=0,\"\",SUMIFS(LeaveDays,LeaveDate,\">=\"&DATE(YEAR(N$4),MONTH(N$4),1),LeaveDate,\"<=\"&N$4,LeaveCode,$A9))","v":0}]
[{"$f":"IF(ISBLANK(OFFSET(Summary!A$5,ROW($B10)-ROW($B$4),0,1,1))=TRUE,\"\",OFFSET(Summary!A$5,ROW($B10)-ROW($B$4),0,1,1))","v":"EMP009"},{"$f":"IF(ISBLANK(OFFSET(Summary!B$5,ROW($B10)-ROW($B$4),0,1,1))=TRUE,\"\",OFFSET(Summary!B$5,ROW($B10)-ROW($B$4),0,1,1))","v":"S Thompson"},{"$f":"IF(LEN($A10)=0,\"\",SUMIFS(LeaveDays,LeaveDate,\">=\"&DATE(YEAR(C$4),MONTH(C$4),1),LeaveDate,\"<=\"&C$4,LeaveCode,$A10))","v":1},{"$f":"IF(LEN($A10)=0,\"\",SUMIFS(LeaveDays,LeaveDate,\">=\"&DATE(YEAR(D$4),MONTH(D$4),1),LeaveDate,\"<=\"&D$4,LeaveCode,$A10))","v":0},{"$f":"IF(LEN($A10)=0,\"\",SUMIFS(LeaveDays,LeaveDate,\">=\"&DATE(YEAR(E$4),MONTH(E$4),1),LeaveDate,\"<=\"&E$4,LeaveCode,$A10))","v":0},{"$f":"IF(LEN($A10)=0,\"\",SUMIFS(LeaveDays,LeaveDate,\">=\"&DATE(YEAR(F$4),MONTH(F$4),1),LeaveDate,\"<=\"&F$4,LeaveCode,$A10))","v":0},{"$f":"IF(LEN($A10)=0,\"\",SUMIFS(LeaveDays,LeaveDate,\">=\"&DATE(YEAR(G$4),MONTH(G$4),1),LeaveDate,\"<=\"&G$4,LeaveCode,$A10))","v":1},{"$f":"IF(LEN($A10)=0,\"\",SUMIFS(LeaveDays,LeaveDate,\">=\"&DATE(YEAR(H$4),MONTH(H$4),1),LeaveDate,\"<=\"&H$4,LeaveCode,$A10))","v":0},{"$f":"IF(LEN($A10)=0,\"\",SUMIFS(LeaveDays,LeaveDate,\">=\"&DATE(YEAR(I$4),MONTH(I$4),1),LeaveDate,\"<=\"&I$4,LeaveCode,$A10))","v":1},{"$f":"IF(LEN($A10)=0,\"\",SUMIFS(LeaveDays,LeaveDate,\">=\"&DATE(YEAR(J$4),MONTH(J$4),1),LeaveDate,\"<=\"&J$4,LeaveCode,$A10))","v":0},{"$f":"IF(LEN($A10)=0,\"\",SUMIFS(LeaveDays,LeaveDate,\">=\"&DATE(YEAR(K$4),MONTH(K$4),1),LeaveDate,\"<=\"&K$4,LeaveCode,$A10))","v":0},{"$f":"IF(LEN($A10)=0,\"\",SUMIFS(LeaveDays,LeaveDate,\">=\"&DATE(YEAR(L$4),MONTH(L$4),1),LeaveDate,\"<=\"&L$4,LeaveCode,$A10))","v":0},{"$f":"IF(LEN($A10)=0,\"\",SUMIFS(LeaveDays,LeaveDate,\">=\"&DATE(YEAR(M$4),MONTH(M$4),1),LeaveDate,\"<=\"&M$4,LeaveCode,$A10))","v":0},{"$f":"IF(LEN($A10)=0,\"\",SUMIFS(LeaveDays,LeaveDate,\">=\"&DATE(YEAR(N$4),MONTH(N$4),1),LeaveDate,\"<=\"&N$4,LeaveCode,$A10))","v":0}]
[{"$f":"IF(ISBLANK(OFFSET(Summary!A$5,ROW($B11)-ROW($B$4),0,1,1))=TRUE,\"\",OFFSET(Summary!A$5,ROW($B11)-ROW($B$4),0,1,1))","v":"EMP010"},{"$f":"IF(ISBLANK(OFFSET(Summary!B$5,ROW($B11)-ROW($B$4),0,1,1))=TRUE,\"\",OFFSET(Summary!B$5,ROW($B11)-ROW($B$4),0,1,1))","v":"C Smith"},{"$f":"IF(LEN($A11)=0,\"\",SUMIFS(LeaveDays,LeaveDate,\">=\"&DATE(YEAR(C$4),MONTH(C$4),1),LeaveDate,\"<=\"&C$4,LeaveCode,$A11))","v":2},{"$f":"IF(LEN($A11)=0,\"\",SUMIFS(LeaveDays,LeaveDate,\">=\"&DATE(YEAR(D$4),MONTH(D$4),1),LeaveDate,\"<=\"&D$4,LeaveCode,$A11))","v":0},{"$f":"IF(LEN($A11)=0,\"\",SUMIFS(LeaveDays,LeaveDate,\">=\"&DATE(YEAR(E$4),MONTH(E$4),1),LeaveDate,\"<=\"&E$4,LeaveCode,$A11))","v":4},{"$f":"IF(LEN($A11)=0,\"\",SUMIFS(LeaveDays,LeaveDate,\">=\"&DATE(YEAR(F$4),MONTH(F$4),1),LeaveDate,\"<=\"&F$4,LeaveCode,$A11))","v":0},{"$f":"IF(LEN($A11)=0,\"\",SUMIFS(LeaveDays,LeaveDate,\">=\"&DATE(YEAR(G$4),MONTH(G$4),1),LeaveDate,\"<=\"&G$4,LeaveCode,$A11))","v":5},{"$f":"IF(LEN($A11)=0,\"\",SUMIFS(LeaveDays,LeaveDate,\">=\"&DATE(YEAR(H$4),MONTH(H$4),1),LeaveDate,\"<=\"&H$4,LeaveCode,$A11))","v":0},{"$f":"IF(LEN($A11)=0,\"\",SUMIFS(LeaveDays,LeaveDate,\">=\"&DATE(YEAR(I$4),MONTH(I$4),1),LeaveDate,\"<=\"&I$4,LeaveCode,$A11))","v":0},{"$f":"IF(LEN($A11)=0,\"\",SUMIFS(LeaveDays,LeaveDate,\">=\"&DATE(YEAR(J$4),MONTH(J$4),1),LeaveDate,\"<=\"&J$4,LeaveCode,$A11))","v":0},{"$f":"IF(LEN($A11)=0,\"\",SUMIFS(LeaveDays,LeaveDate,\">=\"&DATE(YEAR(K$4),MONTH(K$4),1),LeaveDate,\"<=\"&K$4,LeaveCode,$A11))","v":0},{"$f":"IF(LEN($A11)=0,\"\",SUMIFS(LeaveDays,LeaveDate,\">=\"&DATE(YEAR(L$4),MONTH(L$4),1),LeaveDate,\"<=\"&L$4,LeaveCode,$A11))","v":0},{"$f":"IF(LEN($A11)=0,\"\",SUMIFS(LeaveDays,LeaveDate,\">=\"&DATE(YEAR(M$4),MONTH(M$4),1),LeaveDate,\"<=\"&M$4,LeaveCode,$A11))","v":0},{"$f":"IF(LEN($A11)=0,\"\",SUMIFS(LeaveDays,LeaveDate,\">=\"&DATE(YEAR(N$4),MONTH(N$4),1),LeaveDate,\"<=\"&N$4,LeaveCode,$A11))","v":0}]
[{"$f":"IF(ISBLANK(OFFSET(Summary!A$5,ROW($B12)-ROW($B$4),0,1,1))=TRUE,\"\",OFFSET(Summary!A$5,ROW($B12)-ROW($B$4),0,1,1))","v":"EMP013"},{"$f":"IF(ISBLANK(OFFSET(Summary!B$5,ROW($B12)-ROW($B$4),0,1,1))=TRUE,\"\",OFFSET(Summary!B$5,ROW($B12)-ROW($B$4),0,1,1))","v":"R Rossouw"},{"$f":"IF(LEN($A12)=0,\"\",SUMIFS(LeaveDays,LeaveDate,\">=\"&DATE(YEAR(C$4),MONTH(C$4),1),LeaveDate,\"<=\"&C$4,LeaveCode,$A12))","v":1},{"$f":"IF(LEN($A12)=0,\"\",SUMIFS(LeaveDays,LeaveDate,\">=\"&DATE(YEAR(D$4),MONTH(D$4),1),LeaveDate,\"<=\"&D$4,LeaveCode,$A12))","v":0},{"$f":"IF(LEN($A12)=0,\"\",SUMIFS(LeaveDays,LeaveDate,\">=\"&DATE(YEAR(E$4),MONTH(E$4),1),LeaveDate,\"<=\"&E$4,LeaveCode,$A12))","v":1},{"$f":"IF(LEN($A12)=0,\"\",SUMIFS(LeaveDays,LeaveDate,\">=\"&DATE(YEAR(F$4),MONTH(F$4),1),LeaveDate,\"<=\"&F$4,LeaveCode,$A12))","v":0},{"$f":"IF(LEN($A12)=0,\"\",SUMIFS(LeaveDays,LeaveDate,\">=\"&DATE(YEAR(G$4),MONTH(G$4),1),LeaveDate,\"<=\"&G$4,LeaveCode,$A12))","v":1},{"$f":"IF(LEN($A12)=0,\"\",SUMIFS(LeaveDays,LeaveDate,\">=\"&DATE(YEAR(H$4),MONTH(H$4),1),LeaveDate,\"<=\"&H$4,LeaveCode,$A12))","v":1},{"$f":"IF(LEN($A12)=0,\"\",SUMIFS(LeaveDays,LeaveDate,\">=\"&DATE(YEAR(I$4),MONTH(I$4),1),LeaveDate,\"<=\"&I$4,LeaveCode,$A12))","v":1},{"$f":"IF(LEN($A12)=0,\"\",SUMIFS(LeaveDays,LeaveDate,\">=\"&DATE(YEAR(J$4),MONTH(J$4),1),LeaveDate,\"<=\"&J$4,LeaveCode,$A12))","v":2},{"$f":"IF(LEN($A12)=0,\"\",SUMIFS(LeaveDays,LeaveDate,\">=\"&DATE(YEAR(K$4),MONTH(K$4),1),LeaveDate,\"<=\"&K$4,LeaveCode,$A12))","v":1},{"$f":"IF(LEN($A12)=0,\"\",SUMIFS(LeaveDays,LeaveDate,\">=\"&DATE(YEAR(L$4),MONTH(L$4),1),LeaveDate,\"<=\"&L$4,LeaveCode,$A12))","v":0},{"$f":"IF(LEN($A12)=0,\"\",SUMIFS(LeaveDays,LeaveDate,\">=\"&DATE(YEAR(M$4),MONTH(M$4),1),LeaveDate,\"<=\"&M$4,LeaveCode,$A12))","v":0},{"$f":"IF(LEN($A12)=0,\"\",SUMIFS(LeaveDays,LeaveDate,\">=\"&DATE(YEAR(N$4),MONTH(N$4),1),LeaveDate,\"<=\"&N$4,LeaveCode,$A12))","v":0}]
[{"$f":"IF(ISBLANK(OFFSET(Summary!A$5,ROW($B13)-ROW($B$4),0,1,1))=TRUE,\"\",OFFSET(Summary!A$5,ROW($B13)-ROW($B$4),0,1,1))","v":"EMP014"},{"$f":"IF(ISBLANK(OFFSET(Summary!B$5,ROW($B13)-ROW($B$4),0,1,1))=TRUE,\"\",OFFSET(Summary!B$5,ROW($B13)-ROW($B$4),0,1,1))","v":"W Stone"},{"$f":"IF(LEN($A13)=0,\"\",SUMIFS(LeaveDays,LeaveDate,\">=\"&DATE(YEAR(C$4),MONTH(C$4),1),LeaveDate,\"<=\"&C$4,LeaveCode,$A13))","v":0},{"$f":"IF(LEN($A13)=0,\"\",SUMIFS(LeaveDays,LeaveDate,\">=\"&DATE(YEAR(D$4),MONTH(D$4),1),LeaveDate,\"<=\"&D$4,LeaveCode,$A13))","v":0},{"$f":"IF(LEN($A13)=0,\"\",SUMIFS(LeaveDays,LeaveDate,\">=\"&DATE(YEAR(E$4),MONTH(E$4),1),LeaveDate,\"<=\"&E$4,LeaveCode,$A13))","v":0},{"$f":"IF(LEN($A13)=0,\"\",SUMIFS(LeaveDays,LeaveDate,\">=\"&DATE(YEAR(F$4),MONTH(F$4),1),LeaveDate,\"<=\"&F$4,LeaveCode,$A13))","v":0},{"$f":"IF(LEN($A13)=0,\"\",SUMIFS(LeaveDays,LeaveDate,\">=\"&DATE(YEAR(G$4),MONTH(G$4),1),LeaveDate,\"<=\"&G$4,LeaveCode,$A13))","v":0},{"$f":"IF(LEN($A13)=0,\"\",SUMIFS(LeaveDays,LeaveDate,\">=\"&DATE(YEAR(H$4),MONTH(H$4),1),LeaveDate,\"<=\"&H$4,LeaveCode,$A13))","v":0},{"$f":"IF(LEN($A13)=0,\"\",SUMIFS(LeaveDays,LeaveDate,\">=\"&DATE(YEAR(I$4),MONTH(I$4),1),LeaveDate,\"<=\"&I$4,LeaveCode,$A13))","v":0},{"$f":"IF(LEN($A13)=0,\"\",SUMIFS(LeaveDays,LeaveDate,\">=\"&DATE(YEAR(J$4),MONTH(J$4),1),LeaveDate,\"<=\"&J$4,LeaveCode,$A13))","v":0},{"$f":"IF(LEN($A13)=0,\"\",SUMIFS(LeaveDays,LeaveDate,\">=\"&DATE(YEAR(K$4),MONTH(K$4),1),LeaveDate,\"<=\"&K$4,LeaveCode,$A13))","v":0},{"$f":"IF(LEN($A13)=0,\"\",SUMIFS(LeaveDays,LeaveDate,\">=\"&DATE(YEAR(L$4),MONTH(L$4),1),LeaveDate,\"<=\"&L$4,LeaveCode,$A13))","v":0},{"$f":"IF(LEN($A13)=0,\"\",SUMIFS(LeaveDays,LeaveDate,\">=\"&DATE(YEAR(M$4),MONTH(M$4),1),LeaveDate,\"<=\"&M$4,LeaveCode,$A13))","v":0},{"$f":"IF(LEN($A13)=0,\"\",SUMIFS(LeaveDays,LeaveDate,\">=\"&DATE(YEAR(N$4),MONTH(N$4),1),LeaveDate,\"<=\"&N$4,LeaveCode,$A13))","v":0}]
[{"$f":"IF(ISBLANK(OFFSET(Summary!A$5,ROW($B14)-ROW($B$4),0,1,1))=TRUE,\"\",OFFSET(Summary!A$5,ROW($B14)-ROW($B$4),0,1,1))","v":"EMP015"},{"$f":"IF(ISBLANK(OFFSET(Summary!B$5,ROW($B14)-ROW($B$4),0,1,1))=TRUE,\"\",OFFSET(Summary!B$5,ROW($B14)-ROW($B$4),0,1,1))","v":"P Green"},{"$f":"IF(LEN($A14)=0,\"\",SUMIFS(LeaveDays,LeaveDate,\">=\"&DATE(YEAR(C$4),MONTH(C$4),1),LeaveDate,\"<=\"&C$4,LeaveCode,$A14))","v":0},{"$f":"IF(LEN($A14)=0,\"\",SUMIFS(LeaveDays,LeaveDate,\">=\"&DATE(YEAR(D$4),MONTH(D$4),1),LeaveDate,\"<=\"&D$4,LeaveCode,$A14))","v":0},{"$f":"IF(LEN($A14)=0,\"\",SUMIFS(LeaveDays,LeaveDate,\">=\"&DATE(YEAR(E$4),MONTH(E$4),1),LeaveDate,\"<=\"&E$4,LeaveCode,$A14))","v":0},{"$f":"IF(LEN($A14)=0,\"\",SUMIFS(LeaveDays,LeaveDate,\">=\"&DATE(YEAR(F$4),MONTH(F$4),1),LeaveDate,\"<=\"&F$4,LeaveCode,$A14))","v":0},{"$f":"IF(LEN($A14)=0,\"\",SUMIFS(LeaveDays,LeaveDate,\">=\"&DATE(YEAR(G$4),MONTH(G$4),1),LeaveDate,\"<=\"&G$4,LeaveCode,$A14))","v":0},{"$f":"IF(LEN($A14)=0,\"\",SUMIFS(LeaveDays,LeaveDate,\">=\"&DATE(YEAR(H$4),MONTH(H$4),1),LeaveDate,\"<=\"&H$4,LeaveCode,$A14))","v":0},{"$f":"IF(LEN($A14)=0,\"\",SUMIFS(LeaveDays,LeaveDate,\">=\"&DATE(YEAR(I$4),MONTH(I$4),1),LeaveDate,\"<=\"&I$4,LeaveCode,$A14))","v":0},{"$f":"IF(LEN($A14)=0,\"\",SUMIFS(LeaveDays,LeaveDate,\">=\"&DATE(YEAR(J$4),MONTH(J$4),1),LeaveDate,\"<=\"&J$4,LeaveCode,$A14))","v":0},{"$f":"IF(LEN($A14)=0,\"\",SUMIFS(LeaveDays,LeaveDate,\">=\"&DATE(YEAR(K$4),MONTH(K$4),1),LeaveDate,\"<=\"&K$4,LeaveCode,$A14))","v":0},{"$f":"IF(LEN($A14)=0,\"\",SUMIFS(LeaveDays,LeaveDate,\">=\"&DATE(YEAR(L$4),MONTH(L$4),1),LeaveDate,\"<=\"&L$4,LeaveCode,$A14))","v":0},{"$f":"IF(LEN($A14)=0,\"\",SUMIFS(LeaveDays,LeaveDate,\">=\"&DATE(YEAR(M$4),MONTH(M$4),1),LeaveDate,\"<=\"&M$4,LeaveCode,$A14))","v":0},{"$f":"IF(LEN($A14)=0,\"\",SUMIFS(LeaveDays,LeaveDate,\">=\"&DATE(YEAR(N$4),MONTH(N$4),1),LeaveDate,\"<=\"&N$4,LeaveCode,$A14))","v":0}]
[{"$f":"IF(ISBLANK(OFFSET(Summary!A$5,ROW($B15)-ROW($B$4),0,1,1))=TRUE,\"\",OFFSET(Summary!A$5,ROW($B15)-ROW($B$4),0,1,1))","v":"EMP016"},{"$f":"IF(ISBLANK(OFFSET(Summary!B$5,ROW($B15)-ROW($B$4),0,1,1))=TRUE,\"\",OFFSET(Summary!B$5,ROW($B15)-ROW($B$4),0,1,1))","v":"R Johnson"},{"$f":"IF(LEN($A15)=0,\"\",SUMIFS(LeaveDays,LeaveDate,\">=\"&DATE(YEAR(C$4),MONTH(C$4),1),LeaveDate,\"<=\"&C$4,LeaveCode,$A15))","v":0},{"$f":"IF(LEN($A15)=0,\"\",SUMIFS(LeaveDays,LeaveDate,\">=\"&DATE(YEAR(D$4),MONTH(D$4),1),LeaveDate,\"<=\"&D$4,LeaveCode,$A15))","v":0},{"$f":"IF(LEN($A15)=0,\"\",SUMIFS(LeaveDays,LeaveDate,\">=\"&DATE(YEAR(E$4),MONTH(E$4),1),LeaveDate,\"<=\"&E$4,LeaveCode,$A15))","v":0},{"$f":"IF(LEN($A15)=0,\"\",SUMIFS(LeaveDays,LeaveDate,\">=\"&DATE(YEAR(F$4),MONTH(F$4),1),LeaveDate,\"<=\"&F$4,LeaveCode,$A15))","v":0},{"$f":"IF(LEN($A15)=0,\"\",SUMIFS(LeaveDays,LeaveDate,\">=\"&DATE(YEAR(G$4),MONTH(G$4),1),LeaveDate,\"<=\"&G$4,LeaveCode,$A15))","v":1},{"$f":"IF(LEN($A15)=0,\"\",SUMIFS(LeaveDays,LeaveDate,\">=\"&DATE(YEAR(H$4),MONTH(H$4),1),LeaveDate,\"<=\"&H$4,LeaveCode,$A15))","v":0},{"$f":"IF(LEN($A15)=0,\"\",SUMIFS(LeaveDays,LeaveDate,\">=\"&DATE(YEAR(I$4),MONTH(I$4),1),LeaveDate,\"<=\"&I$4,LeaveCode,$A15))","v":0},{"$f":"IF(LEN($A15)=0,\"\",SUMIFS(LeaveDays,LeaveDate,\">=\"&DATE(YEAR(J$4),MONTH(J$4),1),LeaveDate,\"<=\"&J$4,LeaveCode,$A15))","v":0},{"$f":"IF(LEN($A15)=0,\"\",SUMIFS(LeaveDays,LeaveDate,\">=\"&DATE(YEAR(K$4),MONTH(K$4),1),LeaveDate,\"<=\"&K$4,LeaveCode,$A15))","v":0},{"$f":"IF(LEN($A15)=0,\"\",SUMIFS(LeaveDays,LeaveDate,\">=\"&DATE(YEAR(L$4),MONTH(L$4),1),LeaveDate,\"<=\"&L$4,LeaveCode,$A15))","v":0},{"$f":"IF(LEN($A15)=0,\"\",SUMIFS(LeaveDays,LeaveDate,\">=\"&DATE(YEAR(M$4),MONTH(M$4),1),LeaveDate,\"<=\"&M$4,LeaveCode,$A15))","v":0},{"$f":"IF(LEN($A15)=0,\"\",SUMIFS(LeaveDays,LeaveDate,\">=\"&DATE(YEAR(N$4),MONTH(N$4),1),LeaveDate,\"<=\"&N$4,LeaveCode,$A15))","v":0}]
[{"$f":"IF(ISBLANK(OFFSET(Summary!A$5,ROW($B16)-ROW($B$4),0,1,1))=TRUE,\"\",OFFSET(Summary!A$5,ROW($B16)-ROW($B$4),0,1,1))","v":"EMP017"},{"$f":"IF(ISBLANK(OFFSET(Summary!B$5,ROW($B16)-ROW($B$4),0,1,1))=TRUE,\"\",OFFSET(Summary!B$5,ROW($B16)-ROW($B$4),0,1,1))","v":"N Newton"},{"$f":"IF(LEN($A16)=0,\"\",SUMIFS(LeaveDays,LeaveDate,\">=\"&DATE(YEAR(C$4),MONTH(C$4),1),LeaveDate,\"<=\"&C$4,LeaveCode,$A16))","v":0},{"$f":"IF(LEN($A16)=0,\"\",SUMIFS(LeaveDays,LeaveDate,\">=\"&DATE(YEAR(D$4),MONTH(D$4),1),LeaveDate,\"<=\"&D$4,LeaveCode,$A16))","v":0},{"$f":"IF(LEN($A16)=0,\"\",SUMIFS(LeaveDays,LeaveDate,\">=\"&DATE(YEAR(E$4),MONTH(E$4),1),LeaveDate,\"<=\"&E$4,LeaveCode,$A16))","v":0},{"$f":"IF(LEN($A16)=0,\"\",SUMIFS(LeaveDays,LeaveDate,\">=\"&DATE(YEAR(F$4),MONTH(F$4),1),LeaveDate,\"<=\"&F$4,LeaveCode,$A16))","v":0},{"$f":"IF(LEN($A16)=0,\"\",SUMIFS(LeaveDays,LeaveDate,\">=\"&DATE(YEAR(G$4),MONTH(G$4),1),LeaveDate,\"<=\"&G$4,LeaveCode,$A16))","v":0},{"$f":"IF(LEN($A16)=0,\"\",SUMIFS(LeaveDays,LeaveDate,\">=\"&DATE(YEAR(H$4),MONTH(H$4),1),LeaveDate,\"<=\"&H$4,LeaveCode,$A16))","v":0},{"$f":"IF(LEN($A16)=0,\"\",SUMIFS(LeaveDays,LeaveDate,\">=\"&DATE(YEAR(I$4),MONTH(I$4),1),LeaveDate,\"<=\"&I$4,LeaveCode,$A16))","v":0},{"$f":"IF(LEN($A16)=0,\"\",SUMIFS(LeaveDays,LeaveDate,\">=\"&DATE(YEAR(J$4),MONTH(J$4),1),LeaveDate,\"<=\"&J$4,LeaveCode,$A16))","v":3},{"$f":"IF(LEN($A16)=0,\"\",SUMIFS(LeaveDays,LeaveDate,\">=\"&DATE(YEAR(K$4),MONTH(K$4),1),LeaveDate,\"<=\"&K$4,LeaveCode,$A16))","v":0},{"$f":"IF(LEN($A16)=0,\"\",SUMIFS(LeaveDays,LeaveDate,\">=\"&DATE(YEAR(L$4),MONTH(L$4),1),LeaveDate,\"<=\"&L$4,LeaveCode,$A16))","v":0},{"$f":"IF(LEN($A16)=0,\"\",SUMIFS(LeaveDays,LeaveDate,\">=\"&DATE(YEAR(M$4),MONTH(M$4),1),LeaveDate,\"<=\"&M$4,LeaveCode,$A16))","v":0},{"$f":"IF(LEN($A16)=0,\"\",SUMIFS(LeaveDays,LeaveDate,\">=\"&DATE(YEAR(N$4),MONTH(N$4),1),LeaveDate,\"<=\"&N$4,LeaveCode,$A16))","v":0}]
[{"$f":"IF(ISBLANK(OFFSET(Summary!A$5,ROW($B17)-ROW($B$4),0,1,1))=TRUE,\"\",OFFSET(Summary!A$5,ROW($B17)-ROW($B$4),0,1,1))","v":"EMP018"},{"$f":"IF(ISBLANK(OFFSET(Summary!B$5,ROW($B17)-ROW($B$4),0,1,1))=TRUE,\"\",OFFSET(Summary!B$5,ROW($B17)-ROW($B$4),0,1,1))","v":"Q Valentine"},{"$f":"IF(LEN($A17)=0,\"\",SUMIFS(LeaveDays,LeaveDate,\">=\"&DATE(YEAR(C$4),MONTH(C$4),1),LeaveDate,\"<=\"&C$4,LeaveCode,$A17))","v":0},{"$f":"IF(LEN($A17)=0,\"\",SUMIFS(LeaveDays,LeaveDate,\">=\"&DATE(YEAR(D$4),MONTH(D$4),1),LeaveDate,\"<=\"&D$4,LeaveCode,$A17))","v":0},{"$f":"IF(LEN($A17)=0,\"\",SUMIFS(LeaveDays,LeaveDate,\">=\"&DATE(YEAR(E$4),MONTH(E$4),1),LeaveDate,\"<=\"&E$4,LeaveCode,$A17))","v":0},{"$f":"IF(LEN($A17)=0,\"\",SUMIFS(LeaveDays,LeaveDate,\">=\"&DATE(YEAR(F$4),MONTH(F$4),1),LeaveDate,\"<=\"&F$4,LeaveCode,$A17))","v":0},{"$f":"IF(LEN($A17)=0,\"\",SUMIFS(LeaveDays,LeaveDate,\">=\"&DATE(YEAR(G$4),MONTH(G$4),1),LeaveDate,\"<=\"&G$4,LeaveCode,$A17))","v":0},{"$f":"IF(LEN($A17)=0,\"\",SUMIFS(LeaveDays,LeaveDate,\">=\"&DATE(YEAR(H$4),MONTH(H$4),1),LeaveDate,\"<=\"&H$4,LeaveCode,$A17))","v":0},{"$f":"IF(LEN($A17)=0,\"\",SUMIFS(LeaveDays,LeaveDate,\">=\"&DATE(YEAR(I$4),MONTH(I$4),1),LeaveDate,\"<=\"&I$4,LeaveCode,$A17))","v":0},{"$f":"IF(LEN($A17)=0,\"\",SUMIFS(LeaveDays,LeaveDate,\">=\"&DATE(YEAR(J$4),MONTH(J$4),1),LeaveDate,\"<=\"&J$4,LeaveCode,$A17))","v":0},{"$f":"IF(LEN($A17)=0,\"\",SUMIFS(LeaveDays,LeaveDate,\">=\"&DATE(YEAR(K$4),MONTH(K$4),1),LeaveDate,\"<=\"&K$4,LeaveCode,$A17))","v":0},{"$f":"IF(LEN($A17)=0,\"\",SUMIFS(LeaveDays,LeaveDate,\">=\"&DATE(YEAR(L$4),MONTH(L$4),1),LeaveDate,\"<=\"&L$4,LeaveCode,$A17))","v":0},{"$f":"IF(LEN($A17)=0,\"\",SUMIFS(LeaveDays,LeaveDate,\">=\"&DATE(YEAR(M$4),MONTH(M$4),1),LeaveDate,\"<=\"&M$4,LeaveCode,$A17))","v":0},{"$f":"IF(LEN($A17)=0,\"\",SUMIFS(LeaveDays,LeaveDate,\">=\"&DATE(YEAR(N$4),MONTH(N$4),1),LeaveDate,\"<=\"&N$4,LeaveCode,$A17))","v":0}]
[{"$f":"IF(ISBLANK(OFFSET(Summary!A$5,ROW($B18)-ROW($B$4),0,1,1))=TRUE,\"\",OFFSET(Summary!A$5,ROW($B18)-ROW($B$4),0,1,1))","v":"EMP019"},{"$f":"IF(ISBLANK(OFFSET(Summary!B$5,ROW($B18)-ROW($B$4),0,1,1))=TRUE,\"\",OFFSET(Summary!B$5,ROW($B18)-ROW($B$4),0,1,1))","v":"Z McGregor"},{"$f":"IF(LEN($A18)=0,\"\",SUMIFS(LeaveDays,LeaveDate,\">=\"&DATE(YEAR(C$4),MONTH(C$4),1),LeaveDate,\"<=\"&C$4,LeaveCode,$A18))","v":0},{"$f":"IF(LEN($A18)=0,\"\",SUMIFS(LeaveDays,LeaveDate,\">=\"&DATE(YEAR(D$4),MONTH(D$4),1),LeaveDate,\"<=\"&D$4,LeaveCode,$A18))","v":0},{"$f":"IF(LEN($A18)=0,\"\",SUMIFS(LeaveDays,LeaveDate,\">=\"&DATE(YEAR(E$4),MONTH(E$4),1),LeaveDate,\"<=\"&E$4,LeaveCode,$A18))","v":0},{"$f":"IF(LEN($A18)=0,\"\",SUMIFS(LeaveDays,LeaveDate,\">=\"&DATE(YEAR(F$4),MONTH(F$4),1),LeaveDate,\"<=\"&F$4,LeaveCode,$A18))","v":1},{"$f":"IF(LEN($A18)=0,\"\",SUMIFS(LeaveDays,LeaveDate,\">=\"&DATE(YEAR(G$4),MONTH(G$4),1),LeaveDate,\"<=\"&G$4,LeaveCode,$A18))","v":0},{"$f":"IF(LEN($A18)=0,\"\",SUMIFS(LeaveDays,LeaveDate,\">=\"&DATE(YEAR(H$4),MONTH(H$4),1),LeaveDate,\"<=\"&H$4,LeaveCode,$A18))","v":2},{"$f":"IF(LEN($A18)=0,\"\",SUMIFS(LeaveDays,LeaveDate,\">=\"&DATE(YEAR(I$4),MONTH(I$4),1),LeaveDate,\"<=\"&I$4,LeaveCode,$A18))","v":0},{"$f":"IF(LEN($A18)=0,\"\",SUMIFS(LeaveDays,LeaveDate,\">=\"&DATE(YEAR(J$4),MONTH(J$4),1),LeaveDate,\"<=\"&J$4,LeaveCode,$A18))","v":0},{"$f":"IF(LEN($A18)=0,\"\",SUMIFS(LeaveDays,LeaveDate,\">=\"&DATE(YEAR(K$4),MONTH(K$4),1),LeaveDate,\"<=\"&K$4,LeaveCode,$A18))","v":0},{"$f":"IF(LEN($A18)=0,\"\",SUMIFS(LeaveDays,LeaveDate,\">=\"&DATE(YEAR(L$4),MONTH(L$4),1),LeaveDate,\"<=\"&L$4,LeaveCode,$A18))","v":0},{"$f":"IF(LEN($A18)=0,\"\",SUMIFS(LeaveDays,LeaveDate,\">=\"&DATE(YEAR(M$4),MONTH(M$4),1),LeaveDate,\"<=\"&M$4,LeaveCode,$A18))","v":0},{"$f":"IF(LEN($A18)=0,\"\",SUMIFS(LeaveDays,LeaveDate,\">=\"&DATE(YEAR(N$4),MONTH(N$4),1),LeaveDate,\"<=\"&N$4,LeaveCode,$A18))","v":1}]
[{"$f":"IF(ISBLANK(OFFSET(Summary!A$5,ROW($B19)-ROW($B$4),0,1,1))=TRUE,\"\",OFFSET(Summary!A$5,ROW($B19)-ROW($B$4),0,1,1))","v":"EMP020"},{"$f":"IF(ISBLANK(OFFSET(Summary!B$5,ROW($B19)-ROW($B$4),0,1,1))=TRUE,\"\",OFFSET(Summary!B$5,ROW($B19)-ROW($B$4),0,1,1))","v":"M Kane"},{"$f":"IF(LEN($A19)=0,\"\",SUMIFS(LeaveDays,LeaveDate,\">=\"&DATE(YEAR(C$4),MONTH(C$4),1),LeaveDate,\"<=\"&C$4,LeaveCode,$A19))","v":0},{"$f":"IF(LEN($A19)=0,\"\",SUMIFS(LeaveDays,LeaveDate,\">=\"&DATE(YEAR(D$4),MONTH(D$4),1),LeaveDate,\"<=\"&D$4,LeaveCode,$A19))","v":0},{"$f":"IF(LEN($A19)=0,\"\",SUMIFS(LeaveDays,LeaveDate,\">=\"&DATE(YEAR(E$4),MONTH(E$4),1),LeaveDate,\"<=\"&E$4,LeaveCode,$A19))","v":0},{"$f":"IF(LEN($A19)=0,\"\",SUMIFS(LeaveDays,LeaveDate,\">=\"&DATE(YEAR(F$4),MONTH(F$4),1),LeaveDate,\"<=\"&F$4,LeaveCode,$A19))","v":0},{"$f":"IF(LEN($A19)=0,\"\",SUMIFS(LeaveDays,LeaveDate,\">=\"&DATE(YEAR(G$4),MONTH(G$4),1),LeaveDate,\"<=\"&G$4,LeaveCode,$A19))","v":2},{"$f":"IF(LEN($A19)=0,\"\",SUMIFS(LeaveDays,LeaveDate,\">=\"&DATE(YEAR(H$4),MONTH(H$4),1),LeaveDate,\"<=\"&H$4,LeaveCode,$A19))","v":0},{"$f":"IF(LEN($A19)=0,\"\",SUMIFS(LeaveDays,LeaveDate,\">=\"&DATE(YEAR(I$4),MONTH(I$4),1),LeaveDate,\"<=\"&I$4,LeaveCode,$A19))","v":0.5},{"$f":"IF(LEN($A19)=0,\"\",SUMIFS(LeaveDays,LeaveDate,\">=\"&DATE(YEAR(J$4),MONTH(J$4),1),LeaveDate,\"<=\"&J$4,LeaveCode,$A19))","v":0},{"$f":"IF(LEN($A19)=0,\"\",SUMIFS(LeaveDays,LeaveDate,\">=\"&DATE(YEAR(K$4),MONTH(K$4),1),LeaveDate,\"<=\"&K$4,LeaveCode,$A19))","v":0},{"$f":"IF(LEN($A19)=0,\"\",SUMIFS(LeaveDays,LeaveDate,\">=\"&DATE(YEAR(L$4),MONTH(L$4),1),LeaveDate,\"<=\"&L$4,LeaveCode,$A19))","v":0},{"$f":"IF(LEN($A19)=0,\"\",SUMIFS(LeaveDays,LeaveDate,\">=\"&DATE(YEAR(M$4),MONTH(M$4),1),LeaveDate,\"<=\"&M$4,LeaveCode,$A19))","v":0},{"$f":"IF(LEN($A19)=0,\"\",SUMIFS(LeaveDays,LeaveDate,\">=\"&DATE(YEAR(N$4),MONTH(N$4),1),LeaveDate,\"<=\"&N$4,LeaveCode,$A19))","v":0}]
[{"$f":"IF(ISBLANK(OFFSET(Summary!A$5,ROW($B20)-ROW($B$4),0,1,1))=TRUE,\"\",OFFSET(Summary!A$5,ROW($B20)-ROW($B$4),0,1,1))","v":"EMP021"},{"$f":"IF(ISBLANK(OFFSET(Summary!B$5,ROW($B20)-ROW($B$4),0,1,1))=TRUE,\"\",OFFSET(Summary!B$5,ROW($B20)-ROW($B$4),0,1,1))","v":"S Wilson"},{"$f":"IF(LEN($A20)=0,\"\",SUMIFS(LeaveDays,LeaveDate,\">=\"&DATE(YEAR(C$4),MONTH(C$4),1),LeaveDate,\"<=\"&C$4,LeaveCode,$A20))","v":0},{"$f":"IF(LEN($A20)=0,\"\",SUMIFS(LeaveDays,LeaveDate,\">=\"&DATE(YEAR(D$4),MONTH(D$4),1),LeaveDate,\"<=\"&D$4,LeaveCode,$A20))","v":0},{"$f":"IF(LEN($A20)=0,\"\",SUMIFS(LeaveDays,LeaveDate,\">=\"&DATE(YEAR(E$4),MONTH(E$4),1),LeaveDate,\"<=\"&E$4,LeaveCode,$A20))","v":0},{"$f":"IF(LEN($A20)=0,\"\",SUMIFS(LeaveDays,LeaveDate,\">=\"&DATE(YEAR(F$4),MONTH(F$4),1),LeaveDate,\"<=\"&F$4,LeaveCode,$A20))","v":0},{"$f":"IF(LEN($A20)=0,\"\",SUMIFS(LeaveDays,LeaveDate,\">=\"&DATE(YEAR(G$4),MONTH(G$4),1),LeaveDate,\"<=\"&G$4,LeaveCode,$A20))","v":0},{"$f":"IF(LEN($A20)=0,\"\",SUMIFS(LeaveDays,LeaveDate,\">=\"&DATE(YEAR(H$4),MONTH(H$4),1),LeaveDate,\"<=\"&H$4,LeaveCode,$A20))","v":0},{"$f":"IF(LEN($A20)=0,\"\",SUMIFS(LeaveDays,LeaveDate,\">=\"&DATE(YEAR(I$4),MONTH(I$4),1),LeaveDate,\"<=\"&I$4,LeaveCode,$A20))","v":0},{"$f":"IF(LEN($A20)=0,\"\",SUMIFS(LeaveDays,LeaveDate,\">=\"&DATE(YEAR(J$4),MONTH(J$4),1),LeaveDate,\"<=\"&J$4,LeaveCode,$A20))","v":1},{"$f":"IF(LEN($A20)=0,\"\",SUMIFS(LeaveDays,LeaveDate,\">=\"&DATE(YEAR(K$4),MONTH(K$4),1),LeaveDate,\"<=\"&K$4,LeaveCode,$A20))","v":0},{"$f":"IF(LEN($A20)=0,\"\",SUMIFS(LeaveDays,LeaveDate,\">=\"&DATE(YEAR(L$4),MONTH(L$4),1),LeaveDate,\"<=\"&L$4,LeaveCode,$A20))","v":0},{"$f":"IF(LEN($A20)=0,\"\",SUMIFS(LeaveDays,LeaveDate,\">=\"&DATE(YEAR(M$4),MONTH(M$4),1),LeaveDate,\"<=\"&M$4,LeaveCode,$A20))","v":0},{"$f":"IF(LEN($A20)=0,\"\",SUMIFS(LeaveDays,LeaveDate,\">=\"&DATE(YEAR(N$4),MONTH(N$4),1),LeaveDate,\"<=\"&N$4,LeaveCode,$A20))","v":0}]
[{"$f":"IF(ISBLANK(OFFSET(Summary!A$5,ROW($B21)-ROW($B$4),0,1,1))=TRUE,\"\",OFFSET(Summary!A$5,ROW($B21)-ROW($B$4),0,1,1))","v":"EMP022"},{"$f":"IF(ISBLANK(OFFSET(Summary!B$5,ROW($B21)-ROW($B$4),0,1,1))=TRUE,\"\",OFFSET(Summary!B$5,ROW($B21)-ROW($B$4),0,1,1))","v":"F Martin"},{"$f":"IF(LEN($A21)=0,\"\",SUMIFS(LeaveDays,LeaveDate,\">=\"&DATE(YEAR(C$4),MONTH(C$4),1),LeaveDate,\"<=\"&C$4,LeaveCode,$A21))","v":0},{"$f":"IF(LEN($A21)=0,\"\",SUMIFS(LeaveDays,LeaveDate,\">=\"&DATE(YEAR(D$4),MONTH(D$4),1),LeaveDate,\"<=\"&D$4,LeaveCode,$A21))","v":0},{"$f":"IF(LEN($A21)=0,\"\",SUMIFS(LeaveDays,LeaveDate,\">=\"&DATE(YEAR(E$4),MONTH(E$4),1),LeaveDate,\"<=\"&E$4,LeaveCode,$A21))","v":0},{"$f":"IF(LEN($A21)=0,\"\",SUMIFS(LeaveDays,LeaveDate,\">=\"&DATE(YEAR(F$4),MONTH(F$4),1),LeaveDate,\"<=\"&F$4,LeaveCode,$A21))","v":0},{"$f":"IF(LEN($A21)=0,\"\",SUMIFS(LeaveDays,LeaveDate,\">=\"&DATE(YEAR(G$4),MONTH(G$4),1),LeaveDate,\"<=\"&G$4,LeaveCode,$A21))","v":0},{"$f":"IF(LEN($A21)=0,\"\",SUMIFS(LeaveDays,LeaveDate,\">=\"&DATE(YEAR(H$4),MONTH(H$4),1),LeaveDate,\"<=\"&H$4,LeaveCode,$A21))","v":0},{"$f":"IF(LEN($A21)=0,\"\",SUMIFS(LeaveDays,LeaveDate,\">=\"&DATE(YEAR(I$4),MONTH(I$4),1),LeaveDate,\"<=\"&I$4,LeaveCode,$A21))","v":0},{"$f":"IF(LEN($A21)=0,\"\",SUMIFS(LeaveDays,LeaveDate,\">=\"&DATE(YEAR(J$4),MONTH(J$4),1),LeaveDate,\"<=\"&J$4,LeaveCode,$A21))","v":0},{"$f":"IF(LEN($A21)=0,\"\",SUMIFS(LeaveDays,LeaveDate,\">=\"&DATE(YEAR(K$4),MONTH(K$4),1),LeaveDate,\"<=\"&K$4,LeaveCode,$A21))","v":0},{"$f":"IF(LEN($A21)=0,\"\",SUMIFS(LeaveDays,LeaveDate,\">=\"&DATE(YEAR(L$4),MONTH(L$4),1),LeaveDate,\"<=\"&L$4,LeaveCode,$A21))","v":0},{"$f":"IF(LEN($A21)=0,\"\",SUMIFS(LeaveDays,LeaveDate,\">=\"&DATE(YEAR(M$4),MONTH(M$4),1),LeaveDate,\"<=\"&M$4,LeaveCode,$A21))","v":0},{"$f":"IF(LEN($A21)=0,\"\",SUMIFS(LeaveDays,LeaveDate,\">=\"&DATE(YEAR(N$4),MONTH(N$4),1),LeaveDate,\"<=\"&N$4,LeaveCode,$A21))","v":0}]
[{"$f":"IF(ISBLANK(OFFSET(Summary!A$5,ROW($B22)-ROW($B$4),0,1,1))=TRUE,\"\",OFFSET(Summary!A$5,ROW($B22)-ROW($B$4),0,1,1))","v":"EMP023"},{"$f":"IF(ISBLANK(OFFSET(Summary!B$5,ROW($B22)-ROW($B$4),0,1,1))=TRUE,\"\",OFFSET(Summary!B$5,ROW($B22)-ROW($B$4),0,1,1))","v":"Q Davis"},{"$f":"IF(LEN($A22)=0,\"\",SUMIFS(LeaveDays,LeaveDate,\">=\"&DATE(YEAR(C$4),MONTH(C$4),1),LeaveDate,\"<=\"&C$4,LeaveCode,$A22))","v":0},{"$f":"IF(LEN($A22)=0,\"\",SUMIFS(LeaveDays,LeaveDate,\">=\"&DATE(YEAR(D$4),MONTH(D$4),1),LeaveDate,\"<=\"&D$4,LeaveCode,$A22))","v":0},{"$f":"IF(LEN($A22)=0,\"\",SUMIFS(LeaveDays,LeaveDate,\">=\"&DATE(YEAR(E$4),MONTH(E$4),1),LeaveDate,\"<=\"&E$4,LeaveCode,$A22))","v":0},{"$f":"IF(LEN($A22)=0,\"\",SUMIFS(LeaveDays,LeaveDate,\">=\"&DATE(YEAR(F$4),MONTH(F$4),1),LeaveDate,\"<=\"&F$4,LeaveCode,$A22))","v":0},{"$f":"IF(LEN($A22)=0,\"\",SUMIFS(LeaveDays,LeaveDate,\">=\"&DATE(YEAR(G$4),MONTH(G$4),1),LeaveDate,\"<=\"&G$4,LeaveCode,$A22))","v":0},{"$f":"IF(LEN($A22)=0,\"\",SUMIFS(LeaveDays,LeaveDate,\">=\"&DATE(YEAR(H$4),MONTH(H$4),1),LeaveDate,\"<=\"&H$4,LeaveCode,$A22))","v":0},{"$f":"IF(LEN($A22)=0,\"\",SUMIFS(LeaveDays,LeaveDate,\">=\"&DATE(YEAR(I$4),MONTH(I$4),1),LeaveDate,\"<=\"&I$4,LeaveCode,$A22))","v":0},{"$f":"IF(LEN($A22)=0,\"\",SUMIFS(LeaveDays,LeaveDate,\">=\"&DATE(YEAR(J$4),MONTH(J$4),1),LeaveDate,\"<=\"&J$4,LeaveCode,$A22))","v":3},{"$f":"IF(LEN($A22)=0,\"\",SUMIFS(LeaveDays,LeaveDate,\">=\"&DATE(YEAR(K$4),MONTH(K$4),1),LeaveDate,\"<=\"&K$4,LeaveCode,$A22))","v":0},{"$f":"IF(LEN($A22)=0,\"\",SUMIFS(LeaveDays,LeaveDate,\">=\"&DATE(YEAR(L$4),MONTH(L$4),1),LeaveDate,\"<=\"&L$4,LeaveCode,$A22))","v":0},{"$f":"IF(LEN($A22)=0,\"\",SUMIFS(LeaveDays,LeaveDate,\">=\"&DATE(YEAR(M$4),MONTH(M$4),1),LeaveDate,\"<=\"&M$4,LeaveCode,$A22))","v":0},{"$f":"IF(LEN($A22)=0,\"\",SUMIFS(LeaveDays,LeaveDate,\">=\"&DATE(YEAR(N$4),MONTH(N$4),1),LeaveDate,\"<=\"&N$4,LeaveCode,$A22))","v":0}]
[{"$f":"IF(ISBLANK(OFFSET(Summary!A$5,ROW($B23)-ROW($B$4),0,1,1))=TRUE,\"\",OFFSET(Summary!A$5,ROW($B23)-ROW($B$4),0,1,1))","v":"EMP024"},{"$f":"IF(ISBLANK(OFFSET(Summary!B$5,ROW($B23)-ROW($B$4),0,1,1))=TRUE,\"\",OFFSET(Summary!B$5,ROW($B23)-ROW($B$4),0,1,1))","v":"A Ross"},{"$f":"IF(LEN($A23)=0,\"\",SUMIFS(LeaveDays,LeaveDate,\">=\"&DATE(YEAR(C$4),MONTH(C$4),1),LeaveDate,\"<=\"&C$4,LeaveCode,$A23))","v":0},{"$f":"IF(LEN($A23)=0,\"\",SUMIFS(LeaveDays,LeaveDate,\">=\"&DATE(YEAR(D$4),MONTH(D$4),1),LeaveDate,\"<=\"&D$4,LeaveCode,$A23))","v":0},{"$f":"IF(LEN($A23)=0,\"\",SUMIFS(LeaveDays,LeaveDate,\">=\"&DATE(YEAR(E$4),MONTH(E$4),1),LeaveDate,\"<=\"&E$4,LeaveCode,$A23))","v":0},{"$f":"IF(LEN($A23)=0,\"\",SUMIFS(LeaveDays,LeaveDate,\">=\"&DATE(YEAR(F$4),MONTH(F$4),1),LeaveDate,\"<=\"&F$4,LeaveCode,$A23))","v":0},{"$f":"IF(LEN($A23)=0,\"\",SUMIFS(LeaveDays,LeaveDate,\">=\"&DATE(YEAR(G$4),MONTH(G$4),1),LeaveDate,\"<=\"&G$4,LeaveCode,$A23))","v":0},{"$f":"IF(LEN($A23)=0,\"\",SUMIFS(LeaveDays,LeaveDate,\">=\"&DATE(YEAR(H$4),MONTH(H$4),1),LeaveDate,\"<=\"&H$4,LeaveCode,$A23))","v":0},{"$f":"IF(LEN($A23)=0,\"\",SUMIFS(LeaveDays,LeaveDate,\">=\"&DATE(YEAR(I$4),MONTH(I$4),1),LeaveDate,\"<=\"&I$4,LeaveCode,$A23))","v":0},{"$f":"IF(LEN($A23)=0,\"\",SUMIFS(LeaveDays,LeaveDate,\">=\"&DATE(YEAR(J$4),MONTH(J$4),1),LeaveDate,\"<=\"&J$4,LeaveCode,$A23))","v":0},{"$f":"IF(LEN($A23)=0,\"\",SUMIFS(LeaveDays,LeaveDate,\">=\"&DATE(YEAR(K$4),MONTH(K$4),1),LeaveDate,\"<=\"&K$4,LeaveCode,$A23))","v":0},{"$f":"IF(LEN($A23)=0,\"\",SUMIFS(LeaveDays,LeaveDate,\">=\"&DATE(YEAR(L$4),MONTH(L$4),1),LeaveDate,\"<=\"&L$4,LeaveCode,$A23))","v":0},{"$f":"IF(LEN($A23)=0,\"\",SUMIFS(LeaveDays,LeaveDate,\">=\"&DATE(YEAR(M$4),MONTH(M$4),1),LeaveDate,\"<=\"&M$4,LeaveCode,$A23))","v":0},{"$f":"IF(LEN($A23)=0,\"\",SUMIFS(LeaveDays,LeaveDate,\">=\"&DATE(YEAR(N$4),MONTH(N$4),1),LeaveDate,\"<=\"&N$4,LeaveCode,$A23))","v":0}]
[{"$f":"IF(ISBLANK(OFFSET(Summary!A$5,ROW($B24)-ROW($B$4),0,1,1))=TRUE,\"\",OFFSET(Summary!A$5,ROW($B24)-ROW($B$4),0,1,1))","v":"EMP025"},{"$f":"IF(ISBLANK(OFFSET(Summary!B$5,ROW($B24)-ROW($B$4),0,1,1))=TRUE,\"\",OFFSET(Summary!B$5,ROW($B24)-ROW($B$4),0,1,1))","v":"R McAdam"},{"$f":"IF(LEN($A24)=0,\"\",SUMIFS(LeaveDays,LeaveDate,\">=\"&DATE(YEAR(C$4),MONTH(C$4),1),LeaveDate,\"<=\"&C$4,LeaveCode,$A24))","v":0},{"$f":"IF(LEN($A24)=0,\"\",SUMIFS(LeaveDays,LeaveDate,\">=\"&DATE(YEAR(D$4),MONTH(D$4),1),LeaveDate,\"<=\"&D$4,LeaveCode,$A24))","v":0},{"$f":"IF(LEN($A24)=0,\"\",SUMIFS(LeaveDays,LeaveDate,\">=\"&DATE(YEAR(E$4),MONTH(E$4),1),LeaveDate,\"<=\"&E$4,LeaveCode,$A24))","v":0},{"$f":"IF(LEN($A24)=0,\"\",SUMIFS(LeaveDays,LeaveDate,\">=\"&DATE(YEAR(F$4),MONTH(F$4),1),LeaveDate,\"<=\"&F$4,LeaveCode,$A24))","v":0},{"$f":"IF(LEN($A24)=0,\"\",SUMIFS(LeaveDays,LeaveDate,\">=\"&DATE(YEAR(G$4),MONTH(G$4),1),LeaveDate,\"<=\"&G$4,LeaveCode,$A24))","v":0},{"$f":"IF(LEN($A24)=0,\"\",SUMIFS(LeaveDays,LeaveDate,\">=\"&DATE(YEAR(H$4),MONTH(H$4),1),LeaveDate,\"<=\"&H$4,LeaveCode,$A24))","v":0},{"$f":"IF(LEN($A24)=0,\"\",SUMIFS(LeaveDays,LeaveDate,\">=\"&DATE(YEAR(I$4),MONTH(I$4),1),LeaveDate,\"<=\"&I$4,LeaveCode,$A24))","v":0},{"$f":"IF(LEN($A24)=0,\"\",SUMIFS(LeaveDays,LeaveDate,\">=\"&DATE(YEAR(J$4),MONTH(J$4),1),LeaveDate,\"<=\"&J$4,LeaveCode,$A24))","v":0},{"$f":"IF(LEN($A24)=0,\"\",SUMIFS(LeaveDays,LeaveDate,\">=\"&DATE(YEAR(K$4),MONTH(K$4),1),LeaveDate,\"<=\"&K$4,LeaveCode,$A24))","v":0},{"$f":"IF(LEN($A24)=0,\"\",SUMIFS(LeaveDays,LeaveDate,\">=\"&DATE(YEAR(L$4),MONTH(L$4),1),LeaveDate,\"<=\"&L$4,LeaveCode,$A24))","v":0},{"$f":"IF(LEN($A24)=0,\"\",SUMIFS(LeaveDays,LeaveDate,\">=\"&DATE(YEAR(M$4),MONTH(M$4),1),LeaveDate,\"<=\"&M$4,LeaveCode,$A24))","v":0},{"$f":"IF(LEN($A24)=0,\"\",SUMIFS(LeaveDays,LeaveDate,\">=\"&DATE(YEAR(N$4),MONTH(N$4),1),LeaveDate,\"<=\"&N$4,LeaveCode,$A24))","v":0}]
[{"$f":"IF(ISBLANK(OFFSET(Summary!A$5,ROW($B25)-ROW($B$4),0,1,1))=TRUE,\"\",OFFSET(Summary!A$5,ROW($B25)-ROW($B$4),0,1,1))","v":"EMP026"},{"$f":"IF(ISBLANK(OFFSET(Summary!B$5,ROW($B25)-ROW($B$4),0,1,1))=TRUE,\"\",OFFSET(Summary!B$5,ROW($B25)-ROW($B$4),0,1,1))","v":"O Bradshaw"},{"$f":"IF(LEN($A25)=0,\"\",SUMIFS(LeaveDays,LeaveDate,\">=\"&DATE(YEAR(C$4),MONTH(C$4),1),LeaveDate,\"<=\"&C$4,LeaveCode,$A25))","v":0},{"$f":"IF(LEN($A25)=0,\"\",SUMIFS(LeaveDays,LeaveDate,\">=\"&DATE(YEAR(D$4),MONTH(D$4),1),LeaveDate,\"<=\"&D$4,LeaveCode,$A25))","v":0},{"$f":"IF(LEN($A25)=0,\"\",SUMIFS(LeaveDays,LeaveDate,\">=\"&DATE(YEAR(E$4),MONTH(E$4),1),LeaveDate,\"<=\"&E$4,LeaveCode,$A25))","v":0},{"$f":"IF(LEN($A25)=0,\"\",SUMIFS(LeaveDays,LeaveDate,\">=\"&DATE(YEAR(F$4),MONTH(F$4),1),LeaveDate,\"<=\"&F$4,LeaveCode,$A25))","v":0},{"$f":"IF(LEN($A25)=0,\"\",SUMIFS(LeaveDays,LeaveDate,\">=\"&DATE(YEAR(G$4),MONTH(G$4),1),LeaveDate,\"<=\"&G$4,LeaveCode,$A25))","v":0},{"$f":"IF(LEN($A25)=0,\"\",SUMIFS(LeaveDays,LeaveDate,\">=\"&DATE(YEAR(H$4),MONTH(H$4),1),LeaveDate,\"<=\"&H$4,LeaveCode,$A25))","v":0},{"$f":"IF(LEN($A25)=0,\"\",SUMIFS(LeaveDays,LeaveDate,\">=\"&DATE(YEAR(I$4),MONTH(I$4),1),LeaveDate,\"<=\"&I$4,LeaveCode,$A25))","v":0},{"$f":"IF(LEN($A25)=0,\"\",SUMIFS(LeaveDays,LeaveDate,\">=\"&DATE(YEAR(J$4),MONTH(J$4),1),LeaveDate,\"<=\"&J$4,LeaveCode,$A25))","v":0},{"$f":"IF(LEN($A25)=0,\"\",SUMIFS(LeaveDays,LeaveDate,\">=\"&DATE(YEAR(K$4),MONTH(K$4),1),LeaveDate,\"<=\"&K$4,LeaveCode,$A25))","v":0},{"$f":"IF(LEN($A25)=0,\"\",SUMIFS(LeaveDays,LeaveDate,\">=\"&DATE(YEAR(L$4),MONTH(L$4),1),LeaveDate,\"<=\"&L$4,LeaveCode,$A25))","v":0},{"$f":"IF(LEN($A25)=0,\"\",SUMIFS(LeaveDays,LeaveDate,\">=\"&DATE(YEAR(M$4),MONTH(M$4),1),LeaveDate,\"<=\"&M$4,LeaveCode,$A25))","v":0},{"$f":"IF(LEN($A25)=0,\"\",SUMIFS(LeaveDays,LeaveDate,\">=\"&DATE(YEAR(N$4),MONTH(N$4),1),LeaveDate,\"<=\"&N$4,LeaveCode,$A25))","v":1}]
[{"$f":"IF(ISBLANK(OFFSET(Summary!A$5,ROW($B26)-ROW($B$4),0,1,1))=TRUE,\"\",OFFSET(Summary!A$5,ROW($B26)-ROW($B$4),0,1,1))","v":""},{"$f":"IF(ISBLANK(OFFSET(Summary!B$5,ROW($B26)-ROW($B$4),0,1,1))=TRUE,\"\",OFFSET(Summary!B$5,ROW($B26)-ROW($B$4),0,1,1))","v":""},{"$f":"IF(LEN($A26)=0,\"\",SUMIFS(LeaveDays,LeaveDate,\">=\"&DATE(YEAR(C$4),MONTH(C$4),1),LeaveDate,\"<=\"&C$4,LeaveCode,$A26))","v":""},{"$f":"IF(LEN($A26)=0,\"\",SUMIFS(LeaveDays,LeaveDate,\">=\"&DATE(YEAR(D$4),MONTH(D$4),1),LeaveDate,\"<=\"&D$4,LeaveCode,$A26))","v":""},{"$f":"IF(LEN($A26)=0,\"\",SUMIFS(LeaveDays,LeaveDate,\">=\"&DATE(YEAR(E$4),MONTH(E$4),1),LeaveDate,\"<=\"&E$4,LeaveCode,$A26))","v":""},{"$f":"IF(LEN($A26)=0,\"\",SUMIFS(LeaveDays,LeaveDate,\">=\"&DATE(YEAR(F$4),MONTH(F$4),1),LeaveDate,\"<=\"&F$4,LeaveCode,$A26))","v":""},{"$f":"IF(LEN($A26)=0,\"\",SUMIFS(LeaveDays,LeaveDate,\">=\"&DATE(YEAR(G$4),MONTH(G$4),1),LeaveDate,\"<=\"&G$4,LeaveCode,$A26))","v":""},{"$f":"IF(LEN($A26)=0,\"\",SUMIFS(LeaveDays,LeaveDate,\">=\"&DATE(YEAR(H$4),MONTH(H$4),1),LeaveDate,\"<=\"&H$4,LeaveCode,$A26))","v":""},{"$f":"IF(LEN($A26)=0,\"\",SUMIFS(LeaveDays,LeaveDate,\">=\"&DATE(YEAR(I$4),MONTH(I$4),1),LeaveDate,\"<=\"&I$4,LeaveCode,$A26))","v":""},{"$f":"IF(LEN($A26)=0,\"\",SUMIFS(LeaveDays,LeaveDate,\">=\"&DATE(YEAR(J$4),MONTH(J$4),1),LeaveDate,\"<=\"&J$4,LeaveCode,$A26))","v":""},{"$f":"IF(LEN($A26)=0,\"\",SUMIFS(LeaveDays,LeaveDate,\">=\"&DATE(YEAR(K$4),MONTH(K$4),1),LeaveDate,\"<=\"&K$4,LeaveCode,$A26))","v":""},{"$f":"IF(LEN($A26)=0,\"\",SUMIFS(LeaveDays,LeaveDate,\">=\"&DATE(YEAR(L$4),MONTH(L$4),1),LeaveDate,\"<=\"&L$4,LeaveCode,$A26))","v":""},{"$f":"IF(LEN($A26)=0,\"\",SUMIFS(LeaveDays,LeaveDate,\">=\"&DATE(YEAR(M$4),MONTH(M$4),1),LeaveDate,\"<=\"&M$4,LeaveCode,$A26))","v":""},{"$f":"IF(LEN($A26)=0,\"\",SUMIFS(LeaveDays,LeaveDate,\">=\"&DATE(YEAR(N$4),MONTH(N$4),1),LeaveDate,\"<=\"&N$4,LeaveCode,$A26))","v":""}]
[{"$f":"IF(ISBLANK(OFFSET(Summary!A$5,ROW($B27)-ROW($B$4),0,1,1))=TRUE,\"\",OFFSET(Summary!A$5,ROW($B27)-ROW($B$4),0,1,1))","v":""},{"$f":"IF(ISBLANK(OFFSET(Summary!B$5,ROW($B27)-ROW($B$4),0,1,1))=TRUE,\"\",OFFSET(Summary!B$5,ROW($B27)-ROW($B$4),0,1,1))","v":""},{"$f":"IF(LEN($A27)=0,\"\",SUMIFS(LeaveDays,LeaveDate,\">=\"&DATE(YEAR(C$4),MONTH(C$4),1),LeaveDate,\"<=\"&C$4,LeaveCode,$A27))","v":""},{"$f":"IF(LEN($A27)=0,\"\",SUMIFS(LeaveDays,LeaveDate,\">=\"&DATE(YEAR(D$4),MONTH(D$4),1),LeaveDate,\"<=\"&D$4,LeaveCode,$A27))","v":""},{"$f":"IF(LEN($A27)=0,\"\",SUMIFS(LeaveDays,LeaveDate,\">=\"&DATE(YEAR(E$4),MONTH(E$4),1),LeaveDate,\"<=\"&E$4,LeaveCode,$A27))","v":""},{"$f":"IF(LEN($A27)=0,\"\",SUMIFS(LeaveDays,LeaveDate,\">=\"&DATE(YEAR(F$4),MONTH(F$4),1),LeaveDate,\"<=\"&F$4,LeaveCode,$A27))","v":""},{"$f":"IF(LEN($A27)=0,\"\",SUMIFS(LeaveDays,LeaveDate,\">=\"&DATE(YEAR(G$4),MONTH(G$4),1),LeaveDate,\"<=\"&G$4,LeaveCode,$A27))","v":""},{"$f":"IF(LEN($A27)=0,\"\",SUMIFS(LeaveDays,LeaveDate,\">=\"&DATE(YEAR(H$4),MONTH(H$4),1),LeaveDate,\"<=\"&H$4,LeaveCode,$A27))","v":""},{"$f":"IF(LEN($A27)=0,\"\",SUMIFS(LeaveDays,LeaveDate,\">=\"&DATE(YEAR(I$4),MONTH(I$4),1),LeaveDate,\"<=\"&I$4,LeaveCode,$A27))","v":""},{"$f":"IF(LEN($A27)=0,\"\",SUMIFS(LeaveDays,LeaveDate,\">=\"&DATE(YEAR(J$4),MONTH(J$4),1),LeaveDate,\"<=\"&J$4,LeaveCode,$A27))","v":""},{"$f":"IF(LEN($A27)=0,\"\",SUMIFS(LeaveDays,LeaveDate,\">=\"&DATE(YEAR(K$4),MONTH(K$4),1),LeaveDate,\"<=\"&K$4,LeaveCode,$A27))","v":""},{"$f":"IF(LEN($A27)=0,\"\",SUMIFS(LeaveDays,LeaveDate,\">=\"&DATE(YEAR(L$4),MONTH(L$4),1),LeaveDate,\"<=\"&L$4,LeaveCode,$A27))","v":""},{"$f":"IF(LEN($A27)=0,\"\",SUMIFS(LeaveDays,LeaveDate,\">=\"&DATE(YEAR(M$4),MONTH(M$4),1),LeaveDate,\"<=\"&M$4,LeaveCode,$A27))","v":""},{"$f":"IF(LEN($A27)=0,\"\",SUMIFS(LeaveDays,LeaveDate,\">=\"&DATE(YEAR(N$4),MONTH(N$4),1),LeaveDate,\"<=\"&N$4,LeaveCode,$A27))","v":""}]
[{"$f":"IF(ISBLANK(OFFSET(Summary!A$5,ROW($B28)-ROW($B$4),0,1,1))=TRUE,\"\",OFFSET(Summary!A$5,ROW($B28)-ROW($B$4),0,1,1))","v":""},{"$f":"IF(ISBLANK(OFFSET(Summary!B$5,ROW($B28)-ROW($B$4),0,1,1))=TRUE,\"\",OFFSET(Summary!B$5,ROW($B28)-ROW($B$4),0,1,1))","v":""},{"$f":"IF(LEN($A28)=0,\"\",SUMIFS(LeaveDays,LeaveDate,\">=\"&DATE(YEAR(C$4),MONTH(C$4),1),LeaveDate,\"<=\"&C$4,LeaveCode,$A28))","v":""},{"$f":"IF(LEN($A28)=0,\"\",SUMIFS(LeaveDays,LeaveDate,\">=\"&DATE(YEAR(D$4),MONTH(D$4),1),LeaveDate,\"<=\"&D$4,LeaveCode,$A28))","v":""},{"$f":"IF(LEN($A28)=0,\"\",SUMIFS(LeaveDays,LeaveDate,\">=\"&DATE(YEAR(E$4),MONTH(E$4),1),LeaveDate,\"<=\"&E$4,LeaveCode,$A28))","v":""},{"$f":"IF(LEN($A28)=0,\"\",SUMIFS(LeaveDays,LeaveDate,\">=\"&DATE(YEAR(F$4),MONTH(F$4),1),LeaveDate,\"<=\"&F$4,LeaveCode,$A28))","v":""},{"$f":"IF(LEN($A28)=0,\"\",SUMIFS(LeaveDays,LeaveDate,\">=\"&DATE(YEAR(G$4),MONTH(G$4),1),LeaveDate,\"<=\"&G$4,LeaveCode,$A28))","v":""},{"$f":"IF(LEN($A28)=0,\"\",SUMIFS(LeaveDays,LeaveDate,\">=\"&DATE(YEAR(H$4),MONTH(H$4),1),LeaveDate,\"<=\"&H$4,LeaveCode,$A28))","v":""},{"$f":"IF(LEN($A28)=0,\"\",SUMIFS(LeaveDays,LeaveDate,\">=\"&DATE(YEAR(I$4),MONTH(I$4),1),LeaveDate,\"<=\"&I$4,LeaveCode,$A28))","v":""},{"$f":"IF(LEN($A28)=0,\"\",SUMIFS(LeaveDays,LeaveDate,\">=\"&DATE(YEAR(J$4),MONTH(J$4),1),LeaveDate,\"<=\"&J$4,LeaveCode,$A28))","v":""},{"$f":"IF(LEN($A28)=0,\"\",SUMIFS(LeaveDays,LeaveDate,\">=\"&DATE(YEAR(K$4),MONTH(K$4),1),LeaveDate,\"<=\"&K$4,LeaveCode,$A28))","v":""},{"$f":"IF(LEN($A28)=0,\"\",SUMIFS(LeaveDays,LeaveDate,\">=\"&DATE(YEAR(L$4),MONTH(L$4),1),LeaveDate,\"<=\"&L$4,LeaveCode,$A28))","v":""},{"$f":"IF(LEN($A28)=0,\"\",SUMIFS(LeaveDays,LeaveDate,\">=\"&DATE(YEAR(M$4),MONTH(M$4),1),LeaveDate,\"<=\"&M$4,LeaveCode,$A28))","v":""},{"$f":"IF(LEN($A28)=0,\"\",SUMIFS(LeaveDays,LeaveDate,\">=\"&DATE(YEAR(N$4),MONTH(N$4),1),LeaveDate,\"<=\"&N$4,LeaveCode,$A28))","v":""}]
[{"$f":"IF(ISBLANK(OFFSET(Summary!A$5,ROW($B29)-ROW($B$4),0,1,1))=TRUE,\"\",OFFSET(Summary!A$5,ROW($B29)-ROW($B$4),0,1,1))","v":""},{"$f":"IF(ISBLANK(OFFSET(Summary!B$5,ROW($B29)-ROW($B$4),0,1,1))=TRUE,\"\",OFFSET(Summary!B$5,ROW($B29)-ROW($B$4),0,1,1))","v":""},{"$f":"IF(LEN($A29)=0,\"\",SUMIFS(LeaveDays,LeaveDate,\">=\"&DATE(YEAR(C$4),MONTH(C$4),1),LeaveDate,\"<=\"&C$4,LeaveCode,$A29))","v":""},{"$f":"IF(LEN($A29)=0,\"\",SUMIFS(LeaveDays,LeaveDate,\">=\"&DATE(YEAR(D$4),MONTH(D$4),1),LeaveDate,\"<=\"&D$4,LeaveCode,$A29))","v":""},{"$f":"IF(LEN($A29)=0,\"\",SUMIFS(LeaveDays,LeaveDate,\">=\"&DATE(YEAR(E$4),MONTH(E$4),1),LeaveDate,\"<=\"&E$4,LeaveCode,$A29))","v":""},{"$f":"IF(LEN($A29)=0,\"\",SUMIFS(LeaveDays,LeaveDate,\">=\"&DATE(YEAR(F$4),MONTH(F$4),1),LeaveDate,\"<=\"&F$4,LeaveCode,$A29))","v":""},{"$f":"IF(LEN($A29)=0,\"\",SUMIFS(LeaveDays,LeaveDate,\">=\"&DATE(YEAR(G$4),MONTH(G$4),1),LeaveDate,\"<=\"&G$4,LeaveCode,$A29))","v":""},{"$f":"IF(LEN($A29)=0,\"\",SUMIFS(LeaveDays,LeaveDate,\">=\"&DATE(YEAR(H$4),MONTH(H$4),1),LeaveDate,\"<=\"&H$4,LeaveCode,$A29))","v":""},{"$f":"IF(LEN($A29)=0,\"\",SUMIFS(LeaveDays,LeaveDate,\">=\"&DATE(YEAR(I$4),MONTH(I$4),1),LeaveDate,\"<=\"&I$4,LeaveCode,$A29))","v":""},{"$f":"IF(LEN($A29)=0,\"\",SUMIFS(LeaveDays,LeaveDate,\">=\"&DATE(YEAR(J$4),MONTH(J$4),1),LeaveDate,\"<=\"&J$4,LeaveCode,$A29))","v":""},{"$f":"IF(LEN($A29)=0,\"\",SUMIFS(LeaveDays,LeaveDate,\">=\"&DATE(YEAR(K$4),MONTH(K$4),1),LeaveDate,\"<=\"&K$4,LeaveCode,$A29))","v":""},{"$f":"IF(LEN($A29)=0,\"\",SUMIFS(LeaveDays,LeaveDate,\">=\"&DATE(YEAR(L$4),MONTH(L$4),1),LeaveDate,\"<=\"&L$4,LeaveCode,$A29))","v":""},{"$f":"IF(LEN($A29)=0,\"\",SUMIFS(LeaveDays,LeaveDate,\">=\"&DATE(YEAR(M$4),MONTH(M$4),1),LeaveDate,\"<=\"&M$4,LeaveCode,$A29))","v":""},{"$f":"IF(LEN($A29)=0,\"\",SUMIFS(LeaveDays,LeaveDate,\">=\"&DATE(YEAR(N$4),MONTH(N$4),1),LeaveDate,\"<=\"&N$4,LeaveCode,$A29))","v":""}]
[{"$f":"IF(ISBLANK(OFFSET(Summary!A$5,ROW($B30)-ROW($B$4),0,1,1))=TRUE,\"\",OFFSET(Summary!A$5,ROW($B30)-ROW($B$4),0,1,1))","v":""},{"$f":"IF(ISBLANK(OFFSET(Summary!B$5,ROW($B30)-ROW($B$4),0,1,1))=TRUE,\"\",OFFSET(Summary!B$5,ROW($B30)-ROW($B$4),0,1,1))","v":""},{"$f":"IF(LEN($A30)=0,\"\",SUMIFS(LeaveDays,LeaveDate,\">=\"&DATE(YEAR(C$4),MONTH(C$4),1),LeaveDate,\"<=\"&C$4,LeaveCode,$A30))","v":""},{"$f":"IF(LEN($A30)=0,\"\",SUMIFS(LeaveDays,LeaveDate,\">=\"&DATE(YEAR(D$4),MONTH(D$4),1),LeaveDate,\"<=\"&D$4,LeaveCode,$A30))","v":""},{"$f":"IF(LEN($A30)=0,\"\",SUMIFS(LeaveDays,LeaveDate,\">=\"&DATE(YEAR(E$4),MONTH(E$4),1),LeaveDate,\"<=\"&E$4,LeaveCode,$A30))","v":""},{"$f":"IF(LEN($A30)=0,\"\",SUMIFS(LeaveDays,LeaveDate,\">=\"&DATE(YEAR(F$4),MONTH(F$4),1),LeaveDate,\"<=\"&F$4,LeaveCode,$A30))","v":""},{"$f":"IF(LEN($A30)=0,\"\",SUMIFS(LeaveDays,LeaveDate,\">=\"&DATE(YEAR(G$4),MONTH(G$4),1),LeaveDate,\"<=\"&G$4,LeaveCode,$A30))","v":""},{"$f":"IF(LEN($A30)=0,\"\",SUMIFS(LeaveDays,LeaveDate,\">=\"&DATE(YEAR(H$4),MONTH(H$4),1),LeaveDate,\"<=\"&H$4,LeaveCode,$A30))","v":""},{"$f":"IF(LEN($A30)=0,\"\",SUMIFS(LeaveDays,LeaveDate,\">=\"&DATE(YEAR(I$4),MONTH(I$4),1),LeaveDate,\"<=\"&I$4,LeaveCode,$A30))","v":""},{"$f":"IF(LEN($A30)=0,\"\",SUMIFS(LeaveDays,LeaveDate,\">=\"&DATE(YEAR(J$4),MONTH(J$4),1),LeaveDate,\"<=\"&J$4,LeaveCode,$A30))","v":""},{"$f":"IF(LEN($A30)=0,\"\",SUMIFS(LeaveDays,LeaveDate,\">=\"&DATE(YEAR(K$4),MONTH(K$4),1),LeaveDate,\"<=\"&K$4,LeaveCode,$A30))","v":""},{"$f":"IF(LEN($A30)=0,\"\",SUMIFS(LeaveDays,LeaveDate,\">=\"&DATE(YEAR(L$4),MONTH(L$4),1),LeaveDate,\"<=\"&L$4,LeaveCode,$A30))","v":""},{"$f":"IF(LEN($A30)=0,\"\",SUMIFS(LeaveDays,LeaveDate,\">=\"&DATE(YEAR(M$4),MONTH(M$4),1),LeaveDate,\"<=\"&M$4,LeaveCode,$A30))","v":""},{"$f":"IF(LEN($A30)=0,\"\",SUMIFS(LeaveDays,LeaveDate,\">=\"&DATE(YEAR(N$4),MONTH(N$4),1),LeaveDate,\"<=\"&N$4,LeaveCode,$A30))","v":""}]
[{"$f":"IF(ISBLANK(OFFSET(Summary!A$5,ROW($B31)-ROW($B$4),0,1,1))=TRUE,\"\",OFFSET(Summary!A$5,ROW($B31)-ROW($B$4),0,1,1))","v":""},{"$f":"IF(ISBLANK(OFFSET(Summary!B$5,ROW($B31)-ROW($B$4),0,1,1))=TRUE,\"\",OFFSET(Summary!B$5,ROW($B31)-ROW($B$4),0,1,1))","v":""},{"$f":"IF(LEN($A31)=0,\"\",SUMIFS(LeaveDays,LeaveDate,\">=\"&DATE(YEAR(C$4),MONTH(C$4),1),LeaveDate,\"<=\"&C$4,LeaveCode,$A31))","v":""},{"$f":"IF(LEN($A31)=0,\"\",SUMIFS(LeaveDays,LeaveDate,\">=\"&DATE(YEAR(D$4),MONTH(D$4),1),LeaveDate,\"<=\"&D$4,LeaveCode,$A31))","v":""},{"$f":"IF(LEN($A31)=0,\"\",SUMIFS(LeaveDays,LeaveDate,\">=\"&DATE(YEAR(E$4),MONTH(E$4),1),LeaveDate,\"<=\"&E$4,LeaveCode,$A31))","v":""},{"$f":"IF(LEN($A31)=0,\"\",SUMIFS(LeaveDays,LeaveDate,\">=\"&DATE(YEAR(F$4),MONTH(F$4),1),LeaveDate,\"<=\"&F$4,LeaveCode,$A31))","v":""},{"$f":"IF(LEN($A31)=0,\"\",SUMIFS(LeaveDays,LeaveDate,\">=\"&DATE(YEAR(G$4),MONTH(G$4),1),LeaveDate,\"<=\"&G$4,LeaveCode,$A31))","v":""},{"$f":"IF(LEN($A31)=0,\"\",SUMIFS(LeaveDays,LeaveDate,\">=\"&DATE(YEAR(H$4),MONTH(H$4),1),LeaveDate,\"<=\"&H$4,LeaveCode,$A31))","v":""},{"$f":"IF(LEN($A31)=0,\"\",SUMIFS(LeaveDays,LeaveDate,\">=\"&DATE(YEAR(I$4),MONTH(I$4),1),LeaveDate,\"<=\"&I$4,LeaveCode,$A31))","v":""},{"$f":"IF(LEN($A31)=0,\"\",SUMIFS(LeaveDays,LeaveDate,\">=\"&DATE(YEAR(J$4),MONTH(J$4),1),LeaveDate,\"<=\"&J$4,LeaveCode,$A31))","v":""},{"$f":"IF(LEN($A31)=0,\"\",SUMIFS(LeaveDays,LeaveDate,\">=\"&DATE(YEAR(K$4),MONTH(K$4),1),LeaveDate,\"<=\"&K$4,LeaveCode,$A31))","v":""},{"$f":"IF(LEN($A31)=0,\"\",SUMIFS(LeaveDays,LeaveDate,\">=\"&DATE(YEAR(L$4),MONTH(L$4),1),LeaveDate,\"<=\"&L$4,LeaveCode,$A31))","v":""},{"$f":"IF(LEN($A31)=0,\"\",SUMIFS(LeaveDays,LeaveDate,\">=\"&DATE(YEAR(M$4),MONTH(M$4),1),LeaveDate,\"<=\"&M$4,LeaveCode,$A31))","v":""},{"$f":"IF(LEN($A31)=0,\"\",SUMIFS(LeaveDays,LeaveDate,\">=\"&DATE(YEAR(N$4),MONTH(N$4),1),LeaveDate,\"<=\"&N$4,LeaveCode,$A31))","v":""}]
[{"$f":"IF(ISBLANK(OFFSET(Summary!A$5,ROW($B32)-ROW($B$4),0,1,1))=TRUE,\"\",OFFSET(Summary!A$5,ROW($B32)-ROW($B$4),0,1,1))","v":""},{"$f":"IF(ISBLANK(OFFSET(Summary!B$5,ROW($B32)-ROW($B$4),0,1,1))=TRUE,\"\",OFFSET(Summary!B$5,ROW($B32)-ROW($B$4),0,1,1))","v":""},{"$f":"IF(LEN($A32)=0,\"\",SUMIFS(LeaveDays,LeaveDate,\">=\"&DATE(YEAR(C$4),MONTH(C$4),1),LeaveDate,\"<=\"&C$4,LeaveCode,$A32))","v":""},{"$f":"IF(LEN($A32)=0,\"\",SUMIFS(LeaveDays,LeaveDate,\">=\"&DATE(YEAR(D$4),MONTH(D$4),1),LeaveDate,\"<=\"&D$4,LeaveCode,$A32))","v":""},{"$f":"IF(LEN($A32)=0,\"\",SUMIFS(LeaveDays,LeaveDate,\">=\"&DATE(YEAR(E$4),MONTH(E$4),1),LeaveDate,\"<=\"&E$4,LeaveCode,$A32))","v":""},{"$f":"IF(LEN($A32)=0,\"\",SUMIFS(LeaveDays,LeaveDate,\">=\"&DATE(YEAR(F$4),MONTH(F$4),1),LeaveDate,\"<=\"&F$4,LeaveCode,$A32))","v":""},{"$f":"IF(LEN($A32)=0,\"\",SUMIFS(LeaveDays,LeaveDate,\">=\"&DATE(YEAR(G$4),MONTH(G$4),1),LeaveDate,\"<=\"&G$4,LeaveCode,$A32))","v":""},{"$f":"IF(LEN($A32)=0,\"\",SUMIFS(LeaveDays,LeaveDate,\">=\"&DATE(YEAR(H$4),MONTH(H$4),1),LeaveDate,\"<=\"&H$4,LeaveCode,$A32))","v":""},{"$f":"IF(LEN($A32)=0,\"\",SUMIFS(LeaveDays,LeaveDate,\">=\"&DATE(YEAR(I$4),MONTH(I$4),1),LeaveDate,\"<=\"&I$4,LeaveCode,$A32))","v":""},{"$f":"IF(LEN($A32)=0,\"\",SUMIFS(LeaveDays,LeaveDate,\">=\"&DATE(YEAR(J$4),MONTH(J$4),1),LeaveDate,\"<=\"&J$4,LeaveCode,$A32))","v":""},{"$f":"IF(LEN($A32)=0,\"\",SUMIFS(LeaveDays,LeaveDate,\">=\"&DATE(YEAR(K$4),MONTH(K$4),1),LeaveDate,\"<=\"&K$4,LeaveCode,$A32))","v":""},{"$f":"IF(LEN($A32)=0,\"\",SUMIFS(LeaveDays,LeaveDate,\">=\"&DATE(YEAR(L$4),MONTH(L$4),1),LeaveDate,\"<=\"&L$4,LeaveCode,$A32))","v":""},{"$f":"IF(LEN($A32)=0,\"\",SUMIFS(LeaveDays,LeaveDate,\">=\"&DATE(YEAR(M$4),MONTH(M$4),1),LeaveDate,\"<=\"&M$4,LeaveCode,$A32))","v":""},{"$f":"IF(LEN($A32)=0,\"\",SUMIFS(LeaveDays,LeaveDate,\">=\"&DATE(YEAR(N$4),MONTH(N$4),1),LeaveDate,\"<=\"&N$4,LeaveCode,$A32))","v":""}]
[{"$f":"IF(ISBLANK(OFFSET(Summary!A$5,ROW($B33)-ROW($B$4),0,1,1))=TRUE,\"\",OFFSET(Summary!A$5,ROW($B33)-ROW($B$4),0,1,1))","v":""},{"$f":"IF(ISBLANK(OFFSET(Summary!B$5,ROW($B33)-ROW($B$4),0,1,1))=TRUE,\"\",OFFSET(Summary!B$5,ROW($B33)-ROW($B$4),0,1,1))","v":""},{"$f":"IF(LEN($A33)=0,\"\",SUMIFS(LeaveDays,LeaveDate,\">=\"&DATE(YEAR(C$4),MONTH(C$4),1),LeaveDate,\"<=\"&C$4,LeaveCode,$A33))","v":""},{"$f":"IF(LEN($A33)=0,\"\",SUMIFS(LeaveDays,LeaveDate,\">=\"&DATE(YEAR(D$4),MONTH(D$4),1),LeaveDate,\"<=\"&D$4,LeaveCode,$A33))","v":""},{"$f":"IF(LEN($A33)=0,\"\",SUMIFS(LeaveDays,LeaveDate,\">=\"&DATE(YEAR(E$4),MONTH(E$4),1),LeaveDate,\"<=\"&E$4,LeaveCode,$A33))","v":""},{"$f":"IF(LEN($A33)=0,\"\",SUMIFS(LeaveDays,LeaveDate,\">=\"&DATE(YEAR(F$4),MONTH(F$4),1),LeaveDate,\"<=\"&F$4,LeaveCode,$A33))","v":""},{"$f":"IF(LEN($A33)=0,\"\",SUMIFS(LeaveDays,LeaveDate,\">=\"&DATE(YEAR(G$4),MONTH(G$4),1),LeaveDate,\"<=\"&G$4,LeaveCode,$A33))","v":""},{"$f":"IF(LEN($A33)=0,\"\",SUMIFS(LeaveDays,LeaveDate,\">=\"&DATE(YEAR(H$4),MONTH(H$4),1),LeaveDate,\"<=\"&H$4,LeaveCode,$A33))","v":""},{"$f":"IF(LEN($A33)=0,\"\",SUMIFS(LeaveDays,LeaveDate,\">=\"&DATE(YEAR(I$4),MONTH(I$4),1),LeaveDate,\"<=\"&I$4,LeaveCode,$A33))","v":""},{"$f":"IF(LEN($A33)=0,\"\",SUMIFS(LeaveDays,LeaveDate,\">=\"&DATE(YEAR(J$4),MONTH(J$4),1),LeaveDate,\"<=\"&J$4,LeaveCode,$A33))","v":""},{"$f":"IF(LEN($A33)=0,\"\",SUMIFS(LeaveDays,LeaveDate,\">=\"&DATE(YEAR(K$4),MONTH(K$4),1),LeaveDate,\"<=\"&K$4,LeaveCode,$A33))","v":""},{"$f":"IF(LEN($A33)=0,\"\",SUMIFS(LeaveDays,LeaveDate,\">=\"&DATE(YEAR(L$4),MONTH(L$4),1),LeaveDate,\"<=\"&L$4,LeaveCode,$A33))","v":""},{"$f":"IF(LEN($A33)=0,\"\",SUMIFS(LeaveDays,LeaveDate,\">=\"&DATE(YEAR(M$4),MONTH(M$4),1),LeaveDate,\"<=\"&M$4,LeaveCode,$A33))","v":""},{"$f":"IF(LEN($A33)=0,\"\",SUMIFS(LeaveDays,LeaveDate,\">=\"&DATE(YEAR(N$4),MONTH(N$4),1),LeaveDate,\"<=\"&N$4,LeaveCode,$A33))","v":""}]
[{"$f":"IF(ISBLANK(OFFSET(Summary!A$5,ROW($B34)-ROW($B$4),0,1,1))=TRUE,\"\",OFFSET(Summary!A$5,ROW($B34)-ROW($B$4),0,1,1))","v":""},{"$f":"IF(ISBLANK(OFFSET(Summary!B$5,ROW($B34)-ROW($B$4),0,1,1))=TRUE,\"\",OFFSET(Summary!B$5,ROW($B34)-ROW($B$4),0,1,1))","v":""},{"$f":"IF(LEN($A34)=0,\"\",SUMIFS(LeaveDays,LeaveDate,\">=\"&DATE(YEAR(C$4),MONTH(C$4),1),LeaveDate,\"<=\"&C$4,LeaveCode,$A34))","v":""},{"$f":"IF(LEN($A34)=0,\"\",SUMIFS(LeaveDays,LeaveDate,\">=\"&DATE(YEAR(D$4),MONTH(D$4),1),LeaveDate,\"<=\"&D$4,LeaveCode,$A34))","v":""},{"$f":"IF(LEN($A34)=0,\"\",SUMIFS(LeaveDays,LeaveDate,\">=\"&DATE(YEAR(E$4),MONTH(E$4),1),LeaveDate,\"<=\"&E$4,LeaveCode,$A34))","v":""},{"$f":"IF(LEN($A34)=0,\"\",SUMIFS(LeaveDays,LeaveDate,\">=\"&DATE(YEAR(F$4),MONTH(F$4),1),LeaveDate,\"<=\"&F$4,LeaveCode,$A34))","v":""},{"$f":"IF(LEN($A34)=0,\"\",SUMIFS(LeaveDays,LeaveDate,\">=\"&DATE(YEAR(G$4),MONTH(G$4),1),LeaveDate,\"<=\"&G$4,LeaveCode,$A34))","v":""},{"$f":"IF(LEN($A34)=0,\"\",SUMIFS(LeaveDays,LeaveDate,\">=\"&DATE(YEAR(H$4),MONTH(H$4),1),LeaveDate,\"<=\"&H$4,LeaveCode,$A34))","v":""},{"$f":"IF(LEN($A34)=0,\"\",SUMIFS(LeaveDays,LeaveDate,\">=\"&DATE(YEAR(I$4),MONTH(I$4),1),LeaveDate,\"<=\"&I$4,LeaveCode,$A34))","v":""},{"$f":"IF(LEN($A34)=0,\"\",SUMIFS(LeaveDays,LeaveDate,\">=\"&DATE(YEAR(J$4),MONTH(J$4),1),LeaveDate,\"<=\"&J$4,LeaveCode,$A34))","v":""},{"$f":"IF(LEN($A34)=0,\"\",SUMIFS(LeaveDays,LeaveDate,\">=\"&DATE(YEAR(K$4),MONTH(K$4),1),LeaveDate,\"<=\"&K$4,LeaveCode,$A34))","v":""},{"$f":"IF(LEN($A34)=0,\"\",SUMIFS(LeaveDays,LeaveDate,\">=\"&DATE(YEAR(L$4),MONTH(L$4),1),LeaveDate,\"<=\"&L$4,LeaveCode,$A34))","v":""},{"$f":"IF(LEN($A34)=0,\"\",SUMIFS(LeaveDays,LeaveDate,\">=\"&DATE(YEAR(M$4),MONTH(M$4),1),LeaveDate,\"<=\"&M$4,LeaveCode,$A34))","v":""},{"$f":"IF(LEN($A34)=0,\"\",SUMIFS(LeaveDays,LeaveDate,\">=\"&DATE(YEAR(N$4),MONTH(N$4),1),LeaveDate,\"<=\"&N$4,LeaveCode,$A34))","v":""}]
[{"$f":"IF(ISBLANK(OFFSET(Summary!A$5,ROW($B35)-ROW($B$4),0,1,1))=TRUE,\"\",OFFSET(Summary!A$5,ROW($B35)-ROW($B$4),0,1,1))","v":""},{"$f":"IF(ISBLANK(OFFSET(Summary!B$5,ROW($B35)-ROW($B$4),0,1,1))=TRUE,\"\",OFFSET(Summary!B$5,ROW($B35)-ROW($B$4),0,1,1))","v":""},{"$f":"IF(LEN($A35)=0,\"\",SUMIFS(LeaveDays,LeaveDate,\">=\"&DATE(YEAR(C$4),MONTH(C$4),1),LeaveDate,\"<=\"&C$4,LeaveCode,$A35))","v":""},{"$f":"IF(LEN($A35)=0,\"\",SUMIFS(LeaveDays,LeaveDate,\">=\"&DATE(YEAR(D$4),MONTH(D$4),1),LeaveDate,\"<=\"&D$4,LeaveCode,$A35))","v":""},{"$f":"IF(LEN($A35)=0,\"\",SUMIFS(LeaveDays,LeaveDate,\">=\"&DATE(YEAR(E$4),MONTH(E$4),1),LeaveDate,\"<=\"&E$4,LeaveCode,$A35))","v":""},{"$f":"IF(LEN($A35)=0,\"\",SUMIFS(LeaveDays,LeaveDate,\">=\"&DATE(YEAR(F$4),MONTH(F$4),1),LeaveDate,\"<=\"&F$4,LeaveCode,$A35))","v":""},{"$f":"IF(LEN($A35)=0,\"\",SUMIFS(LeaveDays,LeaveDate,\">=\"&DATE(YEAR(G$4),MONTH(G$4),1),LeaveDate,\"<=\"&G$4,LeaveCode,$A35))","v":""},{"$f":"IF(LEN($A35)=0,\"\",SUMIFS(LeaveDays,LeaveDate,\">=\"&DATE(YEAR(H$4),MONTH(H$4),1),LeaveDate,\"<=\"&H$4,LeaveCode,$A35))","v":""},{"$f":"IF(LEN($A35)=0,\"\",SUMIFS(LeaveDays,LeaveDate,\">=\"&DATE(YEAR(I$4),MONTH(I$4),1),LeaveDate,\"<=\"&I$4,LeaveCode,$A35))","v":""},{"$f":"IF(LEN($A35)=0,\"\",SUMIFS(LeaveDays,LeaveDate,\">=\"&DATE(YEAR(J$4),MONTH(J$4),1),LeaveDate,\"<=\"&J$4,LeaveCode,$A35))","v":""},{"$f":"IF(LEN($A35)=0,\"\",SUMIFS(LeaveDays,LeaveDate,\">=\"&DATE(YEAR(K$4),MONTH(K$4),1),LeaveDate,\"<=\"&K$4,LeaveCode,$A35))","v":""},{"$f":"IF(LEN($A35)=0,\"\",SUMIFS(LeaveDays,LeaveDate,\">=\"&DATE(YEAR(L$4),MONTH(L$4),1),LeaveDate,\"<=\"&L$4,LeaveCode,$A35))","v":""},{"$f":"IF(LEN($A35)=0,\"\",SUMIFS(LeaveDays,LeaveDate,\">=\"&DATE(YEAR(M$4),MONTH(M$4),1),LeaveDate,\"<=\"&M$4,LeaveCode,$A35))","v":""},{"$f":"IF(LEN($A35)=0,\"\",SUMIFS(LeaveDays,LeaveDate,\">=\"&DATE(YEAR(N$4),MONTH(N$4),1),LeaveDate,\"<=\"&N$4,LeaveCode,$A35))","v":""}]
[{"$f":"IF(ISBLANK(OFFSET(Summary!A$5,ROW($B36)-ROW($B$4),0,1,1))=TRUE,\"\",OFFSET(Summary!A$5,ROW($B36)-ROW($B$4),0,1,1))","v":""},{"$f":"IF(ISBLANK(OFFSET(Summary!B$5,ROW($B36)-ROW($B$4),0,1,1))=TRUE,\"\",OFFSET(Summary!B$5,ROW($B36)-ROW($B$4),0,1,1))","v":""},{"$f":"IF(LEN($A36)=0,\"\",SUMIFS(LeaveDays,LeaveDate,\">=\"&DATE(YEAR(C$4),MONTH(C$4),1),LeaveDate,\"<=\"&C$4,LeaveCode,$A36))","v":""},{"$f":"IF(LEN($A36)=0,\"\",SUMIFS(LeaveDays,LeaveDate,\">=\"&DATE(YEAR(D$4),MONTH(D$4),1),LeaveDate,\"<=\"&D$4,LeaveCode,$A36))","v":""},{"$f":"IF(LEN($A36)=0,\"\",SUMIFS(LeaveDays,LeaveDate,\">=\"&DATE(YEAR(E$4),MONTH(E$4),1),LeaveDate,\"<=\"&E$4,LeaveCode,$A36))","v":""},{"$f":"IF(LEN($A36)=0,\"\",SUMIFS(LeaveDays,LeaveDate,\">=\"&DATE(YEAR(F$4),MONTH(F$4),1),LeaveDate,\"<=\"&F$4,LeaveCode,$A36))","v":""},{"$f":"IF(LEN($A36)=0,\"\",SUMIFS(LeaveDays,LeaveDate,\">=\"&DATE(YEAR(G$4),MONTH(G$4),1),LeaveDate,\"<=\"&G$4,LeaveCode,$A36))","v":""},{"$f":"IF(LEN($A36)=0,\"\",SUMIFS(LeaveDays,LeaveDate,\">=\"&DATE(YEAR(H$4),MONTH(H$4),1),LeaveDate,\"<=\"&H$4,LeaveCode,$A36))","v":""},{"$f":"IF(LEN($A36)=0,\"\",SUMIFS(LeaveDays,LeaveDate,\">=\"&DATE(YEAR(I$4),MONTH(I$4),1),LeaveDate,\"<=\"&I$4,LeaveCode,$A36))","v":""},{"$f":"IF(LEN($A36)=0,\"\",SUMIFS(LeaveDays,LeaveDate,\">=\"&DATE(YEAR(J$4),MONTH(J$4),1),LeaveDate,\"<=\"&J$4,LeaveCode,$A36))","v":""},{"$f":"IF(LEN($A36)=0,\"\",SUMIFS(LeaveDays,LeaveDate,\">=\"&DATE(YEAR(K$4),MONTH(K$4),1),LeaveDate,\"<=\"&K$4,LeaveCode,$A36))","v":""},{"$f":"IF(LEN($A36)=0,\"\",SUMIFS(LeaveDays,LeaveDate,\">=\"&DATE(YEAR(L$4),MONTH(L$4),1),LeaveDate,\"<=\"&L$4,LeaveCode,$A36))","v":""},{"$f":"IF(LEN($A36)=0,\"\",SUMIFS(LeaveDays,LeaveDate,\">=\"&DATE(YEAR(M$4),MONTH(M$4),1),LeaveDate,\"<=\"&M$4,LeaveCode,$A36))","v":""},{"$f":"IF(LEN($A36)=0,\"\",SUMIFS(LeaveDays,LeaveDate,\">=\"&DATE(YEAR(N$4),MONTH(N$4),1),LeaveDate,\"<=\"&N$4,LeaveCode,$A36))","v":""}]
[{"$f":"IF(ISBLANK(OFFSET(Summary!A$5,ROW($B37)-ROW($B$4),0,1,1))=TRUE,\"\",OFFSET(Summary!A$5,ROW($B37)-ROW($B$4),0,1,1))","v":""},{"$f":"IF(ISBLANK(OFFSET(Summary!B$5,ROW($B37)-ROW($B$4),0,1,1))=TRUE,\"\",OFFSET(Summary!B$5,ROW($B37)-ROW($B$4),0,1,1))","v":""},{"$f":"IF(LEN($A37)=0,\"\",SUMIFS(LeaveDays,LeaveDate,\">=\"&DATE(YEAR(C$4),MONTH(C$4),1),LeaveDate,\"<=\"&C$4,LeaveCode,$A37))","v":""},{"$f":"IF(LEN($A37)=0,\"\",SUMIFS(LeaveDays,LeaveDate,\">=\"&DATE(YEAR(D$4),MONTH(D$4),1),LeaveDate,\"<=\"&D$4,LeaveCode,$A37))","v":""},{"$f":"IF(LEN($A37)=0,\"\",SUMIFS(LeaveDays,LeaveDate,\">=\"&DATE(YEAR(E$4),MONTH(E$4),1),LeaveDate,\"<=\"&E$4,LeaveCode,$A37))","v":""},{"$f":"IF(LEN($A37)=0,\"\",SUMIFS(LeaveDays,LeaveDate,\">=\"&DATE(YEAR(F$4),MONTH(F$4),1),LeaveDate,\"<=\"&F$4,LeaveCode,$A37))","v":""},{"$f":"IF(LEN($A37)=0,\"\",SUMIFS(LeaveDays,LeaveDate,\">=\"&DATE(YEAR(G$4),MONTH(G$4),1),LeaveDate,\"<=\"&G$4,LeaveCode,$A37))","v":""},{"$f":"IF(LEN($A37)=0,\"\",SUMIFS(LeaveDays,LeaveDate,\">=\"&DATE(YEAR(H$4),MONTH(H$4),1),LeaveDate,\"<=\"&H$4,LeaveCode,$A37))","v":""},{"$f":"IF(LEN($A37)=0,\"\",SUMIFS(LeaveDays,LeaveDate,\">=\"&DATE(YEAR(I$4),MONTH(I$4),1),LeaveDate,\"<=\"&I$4,LeaveCode,$A37))","v":""},{"$f":"IF(LEN($A37)=0,\"\",SUMIFS(LeaveDays,LeaveDate,\">=\"&DATE(YEAR(J$4),MONTH(J$4),1),LeaveDate,\"<=\"&J$4,LeaveCode,$A37))","v":""},{"$f":"IF(LEN($A37)=0,\"\",SUMIFS(LeaveDays,LeaveDate,\">=\"&DATE(YEAR(K$4),MONTH(K$4),1),LeaveDate,\"<=\"&K$4,LeaveCode,$A37))","v":""},{"$f":"IF(LEN($A37)=0,\"\",SUMIFS(LeaveDays,LeaveDate,\">=\"&DATE(YEAR(L$4),MONTH(L$4),1),LeaveDate,\"<=\"&L$4,LeaveCode,$A37))","v":""},{"$f":"IF(LEN($A37)=0,\"\",SUMIFS(LeaveDays,LeaveDate,\">=\"&DATE(YEAR(M$4),MONTH(M$4),1),LeaveDate,\"<=\"&M$4,LeaveCode,$A37))","v":""},{"$f":"IF(LEN($A37)=0,\"\",SUMIFS(LeaveDays,LeaveDate,\">=\"&DATE(YEAR(N$4),MONTH(N$4),1),LeaveDate,\"<=\"&N$4,LeaveCode,$A37))","v":""}]
[{"$f":"IF(ISBLANK(OFFSET(Summary!A$5,ROW($B38)-ROW($B$4),0,1,1))=TRUE,\"\",OFFSET(Summary!A$5,ROW($B38)-ROW($B$4),0,1,1))","v":""},{"$f":"IF(ISBLANK(OFFSET(Summary!B$5,ROW($B38)-ROW($B$4),0,1,1))=TRUE,\"\",OFFSET(Summary!B$5,ROW($B38)-ROW($B$4),0,1,1))","v":""},{"$f":"IF(LEN($A38)=0,\"\",SUMIFS(LeaveDays,LeaveDate,\">=\"&DATE(YEAR(C$4),MONTH(C$4),1),LeaveDate,\"<=\"&C$4,LeaveCode,$A38))","v":""},{"$f":"IF(LEN($A38)=0,\"\",SUMIFS(LeaveDays,LeaveDate,\">=\"&DATE(YEAR(D$4),MONTH(D$4),1),LeaveDate,\"<=\"&D$4,LeaveCode,$A38))","v":""},{"$f":"IF(LEN($A38)=0,\"\",SUMIFS(LeaveDays,LeaveDate,\">=\"&DATE(YEAR(E$4),MONTH(E$4),1),LeaveDate,\"<=\"&E$4,LeaveCode,$A38))","v":""},{"$f":"IF(LEN($A38)=0,\"\",SUMIFS(LeaveDays,LeaveDate,\">=\"&DATE(YEAR(F$4),MONTH(F$4),1),LeaveDate,\"<=\"&F$4,LeaveCode,$A38))","v":""},{"$f":"IF(LEN($A38)=0,\"\",SUMIFS(LeaveDays,LeaveDate,\">=\"&DATE(YEAR(G$4),MONTH(G$4),1),LeaveDate,\"<=\"&G$4,LeaveCode,$A38))","v":""},{"$f":"IF(LEN($A38)=0,\"\",SUMIFS(LeaveDays,LeaveDate,\">=\"&DATE(YEAR(H$4),MONTH(H$4),1),LeaveDate,\"<=\"&H$4,LeaveCode,$A38))","v":""},{"$f":"IF(LEN($A38)=0,\"\",SUMIFS(LeaveDays,LeaveDate,\">=\"&DATE(YEAR(I$4),MONTH(I$4),1),LeaveDate,\"<=\"&I$4,LeaveCode,$A38))","v":""},{"$f":"IF(LEN($A38)=0,\"\",SUMIFS(LeaveDays,LeaveDate,\">=\"&DATE(YEAR(J$4),MONTH(J$4),1),LeaveDate,\"<=\"&J$4,LeaveCode,$A38))","v":""},{"$f":"IF(LEN($A38)=0,\"\",SUMIFS(LeaveDays,LeaveDate,\">=\"&DATE(YEAR(K$4),MONTH(K$4),1),LeaveDate,\"<=\"&K$4,LeaveCode,$A38))","v":""},{"$f":"IF(LEN($A38)=0,\"\",SUMIFS(LeaveDays,LeaveDate,\">=\"&DATE(YEAR(L$4),MONTH(L$4),1),LeaveDate,\"<=\"&L$4,LeaveCode,$A38))","v":""},{"$f":"IF(LEN($A38)=0,\"\",SUMIFS(LeaveDays,LeaveDate,\">=\"&DATE(YEAR(M$4),MONTH(M$4),1),LeaveDate,\"<=\"&M$4,LeaveCode,$A38))","v":""},{"$f":"IF(LEN($A38)=0,\"\",SUMIFS(LeaveDays,LeaveDate,\">=\"&DATE(YEAR(N$4),MONTH(N$4),1),LeaveDate,\"<=\"&N$4,LeaveCode,$A38))","v":""}]
[{"$f":"IF(ISBLANK(OFFSET(Summary!A$5,ROW($B39)-ROW($B$4),0,1,1))=TRUE,\"\",OFFSET(Summary!A$5,ROW($B39)-ROW($B$4),0,1,1))","v":""},{"$f":"IF(ISBLANK(OFFSET(Summary!B$5,ROW($B39)-ROW($B$4),0,1,1))=TRUE,\"\",OFFSET(Summary!B$5,ROW($B39)-ROW($B$4),0,1,1))","v":""},{"$f":"IF(LEN($A39)=0,\"\",SUMIFS(LeaveDays,LeaveDate,\">=\"&DATE(YEAR(C$4),MONTH(C$4),1),LeaveDate,\"<=\"&C$4,LeaveCode,$A39))","v":""},{"$f":"IF(LEN($A39)=0,\"\",SUMIFS(LeaveDays,LeaveDate,\">=\"&DATE(YEAR(D$4),MONTH(D$4),1),LeaveDate,\"<=\"&D$4,LeaveCode,$A39))","v":""},{"$f":"IF(LEN($A39)=0,\"\",SUMIFS(LeaveDays,LeaveDate,\">=\"&DATE(YEAR(E$4),MONTH(E$4),1),LeaveDate,\"<=\"&E$4,LeaveCode,$A39))","v":""},{"$f":"IF(LEN($A39)=0,\"\",SUMIFS(LeaveDays,LeaveDate,\">=\"&DATE(YEAR(F$4),MONTH(F$4),1),LeaveDate,\"<=\"&F$4,LeaveCode,$A39))","v":""},{"$f":"IF(LEN($A39)=0,\"\",SUMIFS(LeaveDays,LeaveDate,\">=\"&DATE(YEAR(G$4),MONTH(G$4),1),LeaveDate,\"<=\"&G$4,LeaveCode,$A39))","v":""},{"$f":"IF(LEN($A39)=0,\"\",SUMIFS(LeaveDays,LeaveDate,\">=\"&DATE(YEAR(H$4),MONTH(H$4),1),LeaveDate,\"<=\"&H$4,LeaveCode,$A39))","v":""},{"$f":"IF(LEN($A39)=0,\"\",SUMIFS(LeaveDays,LeaveDate,\">=\"&DATE(YEAR(I$4),MONTH(I$4),1),LeaveDate,\"<=\"&I$4,LeaveCode,$A39))","v":""},{"$f":"IF(LEN($A39)=0,\"\",SUMIFS(LeaveDays,LeaveDate,\">=\"&DATE(YEAR(J$4),MONTH(J$4),1),LeaveDate,\"<=\"&J$4,LeaveCode,$A39))","v":""},{"$f":"IF(LEN($A39)=0,\"\",SUMIFS(LeaveDays,LeaveDate,\">=\"&DATE(YEAR(K$4),MONTH(K$4),1),LeaveDate,\"<=\"&K$4,LeaveCode,$A39))","v":""},{"$f":"IF(LEN($A39)=0,\"\",SUMIFS(LeaveDays,LeaveDate,\">=\"&DATE(YEAR(L$4),MONTH(L$4),1),LeaveDate,\"<=\"&L$4,LeaveCode,$A39))","v":""},{"$f":"IF(LEN($A39)=0,\"\",SUMIFS(LeaveDays,LeaveDate,\">=\"&DATE(YEAR(M$4),MONTH(M$4),1),LeaveDate,\"<=\"&M$4,LeaveCode,$A39))","v":""},{"$f":"IF(LEN($A39)=0,\"\",SUMIFS(LeaveDays,LeaveDate,\">=\"&DATE(YEAR(N$4),MONTH(N$4),1),LeaveDate,\"<=\"&N$4,LeaveCode,$A39))","v":""}]
[{"$f":"IF(ISBLANK(OFFSET(Summary!A$5,ROW($B40)-ROW($B$4),0,1,1))=TRUE,\"\",OFFSET(Summary!A$5,ROW($B40)-ROW($B$4),0,1,1))","v":""},{"$f":"IF(ISBLANK(OFFSET(Summary!B$5,ROW($B40)-ROW($B$4),0,1,1))=TRUE,\"\",OFFSET(Summary!B$5,ROW($B40)-ROW($B$4),0,1,1))","v":""},{"$f":"IF(LEN($A40)=0,\"\",SUMIFS(LeaveDays,LeaveDate,\">=\"&DATE(YEAR(C$4),MONTH(C$4),1),LeaveDate,\"<=\"&C$4,LeaveCode,$A40))","v":""},{"$f":"IF(LEN($A40)=0,\"\",SUMIFS(LeaveDays,LeaveDate,\">=\"&DATE(YEAR(D$4),MONTH(D$4),1),LeaveDate,\"<=\"&D$4,LeaveCode,$A40))","v":""},{"$f":"IF(LEN($A40)=0,\"\",SUMIFS(LeaveDays,LeaveDate,\">=\"&DATE(YEAR(E$4),MONTH(E$4),1),LeaveDate,\"<=\"&E$4,LeaveCode,$A40))","v":""},{"$f":"IF(LEN($A40)=0,\"\",SUMIFS(LeaveDays,LeaveDate,\">=\"&DATE(YEAR(F$4),MONTH(F$4),1),LeaveDate,\"<=\"&F$4,LeaveCode,$A40))","v":""},{"$f":"IF(LEN($A40)=0,\"\",SUMIFS(LeaveDays,LeaveDate,\">=\"&DATE(YEAR(G$4),MONTH(G$4),1),LeaveDate,\"<=\"&G$4,LeaveCode,$A40))","v":""},{"$f":"IF(LEN($A40)=0,\"\",SUMIFS(LeaveDays,LeaveDate,\">=\"&DATE(YEAR(H$4),MONTH(H$4),1),LeaveDate,\"<=\"&H$4,LeaveCode,$A40))","v":""},{"$f":"IF(LEN($A40)=0,\"\",SUMIFS(LeaveDays,LeaveDate,\">=\"&DATE(YEAR(I$4),MONTH(I$4),1),LeaveDate,\"<=\"&I$4,LeaveCode,$A40))","v":""},{"$f":"IF(LEN($A40)=0,\"\",SUMIFS(LeaveDays,LeaveDate,\">=\"&DATE(YEAR(J$4),MONTH(J$4),1),LeaveDate,\"<=\"&J$4,LeaveCode,$A40))","v":""},{"$f":"IF(LEN($A40)=0,\"\",SUMIFS(LeaveDays,LeaveDate,\">=\"&DATE(YEAR(K$4),MONTH(K$4),1),LeaveDate,\"<=\"&K$4,LeaveCode,$A40))","v":""},{"$f":"IF(LEN($A40)=0,\"\",SUMIFS(LeaveDays,LeaveDate,\">=\"&DATE(YEAR(L$4),MONTH(L$4),1),LeaveDate,\"<=\"&L$4,LeaveCode,$A40))","v":""},{"$f":"IF(LEN($A40)=0,\"\",SUMIFS(LeaveDays,LeaveDate,\">=\"&DATE(YEAR(M$4),MONTH(M$4),1),LeaveDate,\"<=\"&M$4,LeaveCode,$A40))","v":""},{"$f":"IF(LEN($A40)=0,\"\",SUMIFS(LeaveDays,LeaveDate,\">=\"&DATE(YEAR(N$4),MONTH(N$4),1),LeaveDate,\"<=\"&N$4,LeaveCode,$A40))","v":""}]
[{"$f":"IF(ISBLANK(OFFSET(Summary!A$5,ROW($B41)-ROW($B$4),0,1,1))=TRUE,\"\",OFFSET(Summary!A$5,ROW($B41)-ROW($B$4),0,1,1))","v":""},{"$f":"IF(ISBLANK(OFFSET(Summary!B$5,ROW($B41)-ROW($B$4),0,1,1))=TRUE,\"\",OFFSET(Summary!B$5,ROW($B41)-ROW($B$4),0,1,1))","v":""},{"$f":"IF(LEN($A41)=0,\"\",SUMIFS(LeaveDays,LeaveDate,\">=\"&DATE(YEAR(C$4),MONTH(C$4),1),LeaveDate,\"<=\"&C$4,LeaveCode,$A41))","v":""},{"$f":"IF(LEN($A41)=0,\"\",SUMIFS(LeaveDays,LeaveDate,\">=\"&DATE(YEAR(D$4),MONTH(D$4),1),LeaveDate,\"<=\"&D$4,LeaveCode,$A41))","v":""},{"$f":"IF(LEN($A41)=0,\"\",SUMIFS(LeaveDays,LeaveDate,\">=\"&DATE(YEAR(E$4),MONTH(E$4),1),LeaveDate,\"<=\"&E$4,LeaveCode,$A41))","v":""},{"$f":"IF(LEN($A41)=0,\"\",SUMIFS(LeaveDays,LeaveDate,\">=\"&DATE(YEAR(F$4),MONTH(F$4),1),LeaveDate,\"<=\"&F$4,LeaveCode,$A41))","v":""},{"$f":"IF(LEN($A41)=0,\"\",SUMIFS(LeaveDays,LeaveDate,\">=\"&DATE(YEAR(G$4),MONTH(G$4),1),LeaveDate,\"<=\"&G$4,LeaveCode,$A41))","v":""},{"$f":"IF(LEN($A41)=0,\"\",SUMIFS(LeaveDays,LeaveDate,\">=\"&DATE(YEAR(H$4),MONTH(H$4),1),LeaveDate,\"<=\"&H$4,LeaveCode,$A41))","v":""},{"$f":"IF(LEN($A41)=0,\"\",SUMIFS(LeaveDays,LeaveDate,\">=\"&DATE(YEAR(I$4),MONTH(I$4),1),LeaveDate,\"<=\"&I$4,LeaveCode,$A41))","v":""},{"$f":"IF(LEN($A41)=0,\"\",SUMIFS(LeaveDays,LeaveDate,\">=\"&DATE(YEAR(J$4),MONTH(J$4),1),LeaveDate,\"<=\"&J$4,LeaveCode,$A41))","v":""},{"$f":"IF(LEN($A41)=0,\"\",SUMIFS(LeaveDays,LeaveDate,\">=\"&DATE(YEAR(K$4),MONTH(K$4),1),LeaveDate,\"<=\"&K$4,LeaveCode,$A41))","v":""},{"$f":"IF(LEN($A41)=0,\"\",SUMIFS(LeaveDays,LeaveDate,\">=\"&DATE(YEAR(L$4),MONTH(L$4),1),LeaveDate,\"<=\"&L$4,LeaveCode,$A41))","v":""},{"$f":"IF(LEN($A41)=0,\"\",SUMIFS(LeaveDays,LeaveDate,\">=\"&DATE(YEAR(M$4),MONTH(M$4),1),LeaveDate,\"<=\"&M$4,LeaveCode,$A41))","v":""},{"$f":"IF(LEN($A41)=0,\"\",SUMIFS(LeaveDays,LeaveDate,\">=\"&DATE(YEAR(N$4),MONTH(N$4),1),LeaveDate,\"<=\"&N$4,LeaveCode,$A41))","v":""}]
[{"$f":"IF(ISBLANK(OFFSET(Summary!A$5,ROW($B42)-ROW($B$4),0,1,1))=TRUE,\"\",OFFSET(Summary!A$5,ROW($B42)-ROW($B$4),0,1,1))","v":""},{"$f":"IF(ISBLANK(OFFSET(Summary!B$5,ROW($B42)-ROW($B$4),0,1,1))=TRUE,\"\",OFFSET(Summary!B$5,ROW($B42)-ROW($B$4),0,1,1))","v":""},{"$f":"IF(LEN($A42)=0,\"\",SUMIFS(LeaveDays,LeaveDate,\">=\"&DATE(YEAR(C$4),MONTH(C$4),1),LeaveDate,\"<=\"&C$4,LeaveCode,$A42))","v":""},{"$f":"IF(LEN($A42)=0,\"\",SUMIFS(LeaveDays,LeaveDate,\">=\"&DATE(YEAR(D$4),MONTH(D$4),1),LeaveDate,\"<=\"&D$4,LeaveCode,$A42))","v":""},{"$f":"IF(LEN($A42)=0,\"\",SUMIFS(LeaveDays,LeaveDate,\">=\"&DATE(YEAR(E$4),MONTH(E$4),1),LeaveDate,\"<=\"&E$4,LeaveCode,$A42))","v":""},{"$f":"IF(LEN($A42)=0,\"\",SUMIFS(LeaveDays,LeaveDate,\">=\"&DATE(YEAR(F$4),MONTH(F$4),1),LeaveDate,\"<=\"&F$4,LeaveCode,$A42))","v":""},{"$f":"IF(LEN($A42)=0,\"\",SUMIFS(LeaveDays,LeaveDate,\">=\"&DATE(YEAR(G$4),MONTH(G$4),1),LeaveDate,\"<=\"&G$4,LeaveCode,$A42))","v":""},{"$f":"IF(LEN($A42)=0,\"\",SUMIFS(LeaveDays,LeaveDate,\">=\"&DATE(YEAR(H$4),MONTH(H$4),1),LeaveDate,\"<=\"&H$4,LeaveCode,$A42))","v":""},{"$f":"IF(LEN($A42)=0,\"\",SUMIFS(LeaveDays,LeaveDate,\">=\"&DATE(YEAR(I$4),MONTH(I$4),1),LeaveDate,\"<=\"&I$4,LeaveCode,$A42))","v":""},{"$f":"IF(LEN($A42)=0,\"\",SUMIFS(LeaveDays,LeaveDate,\">=\"&DATE(YEAR(J$4),MONTH(J$4),1),LeaveDate,\"<=\"&J$4,LeaveCode,$A42))","v":""},{"$f":"IF(LEN($A42)=0,\"\",SUMIFS(LeaveDays,LeaveDate,\">=\"&DATE(YEAR(K$4),MONTH(K$4),1),LeaveDate,\"<=\"&K$4,LeaveCode,$A42))","v":""},{"$f":"IF(LEN($A42)=0,\"\",SUMIFS(LeaveDays,LeaveDate,\">=\"&DATE(YEAR(L$4),MONTH(L$4),1),LeaveDate,\"<=\"&L$4,LeaveCode,$A42))","v":""},{"$f":"IF(LEN($A42)=0,\"\",SUMIFS(LeaveDays,LeaveDate,\">=\"&DATE(YEAR(M$4),MONTH(M$4),1),LeaveDate,\"<=\"&M$4,LeaveCode,$A42))","v":""},{"$f":"IF(LEN($A42)=0,\"\",SUMIFS(LeaveDays,LeaveDate,\">=\"&DATE(YEAR(N$4),MONTH(N$4),1),LeaveDate,\"<=\"&N$4,LeaveCode,$A42))","v":""}]
[{"$f":"IF(ISBLANK(OFFSET(Summary!A$5,ROW($B43)-ROW($B$4),0,1,1))=TRUE,\"\",OFFSET(Summary!A$5,ROW($B43)-ROW($B$4),0,1,1))","v":""},{"$f":"IF(ISBLANK(OFFSET(Summary!B$5,ROW($B43)-ROW($B$4),0,1,1))=TRUE,\"\",OFFSET(Summary!B$5,ROW($B43)-ROW($B$4),0,1,1))","v":""},{"$f":"IF(LEN($A43)=0,\"\",SUMIFS(LeaveDays,LeaveDate,\">=\"&DATE(YEAR(C$4),MONTH(C$4),1),LeaveDate,\"<=\"&C$4,LeaveCode,$A43))","v":""},{"$f":"IF(LEN($A43)=0,\"\",SUMIFS(LeaveDays,LeaveDate,\">=\"&DATE(YEAR(D$4),MONTH(D$4),1),LeaveDate,\"<=\"&D$4,LeaveCode,$A43))","v":""},{"$f":"IF(LEN($A43)=0,\"\",SUMIFS(LeaveDays,LeaveDate,\">=\"&DATE(YEAR(E$4),MONTH(E$4),1),LeaveDate,\"<=\"&E$4,LeaveCode,$A43))","v":""},{"$f":"IF(LEN($A43)=0,\"\",SUMIFS(LeaveDays,LeaveDate,\">=\"&DATE(YEAR(F$4),MONTH(F$4),1),LeaveDate,\"<=\"&F$4,LeaveCode,$A43))","v":""},{"$f":"IF(LEN($A43)=0,\"\",SUMIFS(LeaveDays,LeaveDate,\">=\"&DATE(YEAR(G$4),MONTH(G$4),1),LeaveDate,\"<=\"&G$4,LeaveCode,$A43))","v":""},{"$f":"IF(LEN($A43)=0,\"\",SUMIFS(LeaveDays,LeaveDate,\">=\"&DATE(YEAR(H$4),MONTH(H$4),1),LeaveDate,\"<=\"&H$4,LeaveCode,$A43))","v":""},{"$f":"IF(LEN($A43)=0,\"\",SUMIFS(LeaveDays,LeaveDate,\">=\"&DATE(YEAR(I$4),MONTH(I$4),1),LeaveDate,\"<=\"&I$4,LeaveCode,$A43))","v":""},{"$f":"IF(LEN($A43)=0,\"\",SUMIFS(LeaveDays,LeaveDate,\">=\"&DATE(YEAR(J$4),MONTH(J$4),1),LeaveDate,\"<=\"&J$4,LeaveCode,$A43))","v":""},{"$f":"IF(LEN($A43)=0,\"\",SUMIFS(LeaveDays,LeaveDate,\">=\"&DATE(YEAR(K$4),MONTH(K$4),1),LeaveDate,\"<=\"&K$4,LeaveCode,$A43))","v":""},{"$f":"IF(LEN($A43)=0,\"\",SUMIFS(LeaveDays,LeaveDate,\">=\"&DATE(YEAR(L$4),MONTH(L$4),1),LeaveDate,\"<=\"&L$4,LeaveCode,$A43))","v":""},{"$f":"IF(LEN($A43)=0,\"\",SUMIFS(LeaveDays,LeaveDate,\">=\"&DATE(YEAR(M$4),MONTH(M$4),1),LeaveDate,\"<=\"&M$4,LeaveCode,$A43))","v":""},{"$f":"IF(LEN($A43)=0,\"\",SUMIFS(LeaveDays,LeaveDate,\">=\"&DATE(YEAR(N$4),MONTH(N$4),1),LeaveDate,\"<=\"&N$4,LeaveCode,$A43))","v":""}]
[{"$f":"IF(ISBLANK(OFFSET(Summary!A$5,ROW($B44)-ROW($B$4),0,1,1))=TRUE,\"\",OFFSET(Summary!A$5,ROW($B44)-ROW($B$4),0,1,1))","v":""},{"$f":"IF(ISBLANK(OFFSET(Summary!B$5,ROW($B44)-ROW($B$4),0,1,1))=TRUE,\"\",OFFSET(Summary!B$5,ROW($B44)-ROW($B$4),0,1,1))","v":""},{"$f":"IF(LEN($A44)=0,\"\",SUMIFS(LeaveDays,LeaveDate,\">=\"&DATE(YEAR(C$4),MONTH(C$4),1),LeaveDate,\"<=\"&C$4,LeaveCode,$A44))","v":""},{"$f":"IF(LEN($A44)=0,\"\",SUMIFS(LeaveDays,LeaveDate,\">=\"&DATE(YEAR(D$4),MONTH(D$4),1),LeaveDate,\"<=\"&D$4,LeaveCode,$A44))","v":""},{"$f":"IF(LEN($A44)=0,\"\",SUMIFS(LeaveDays,LeaveDate,\">=\"&DATE(YEAR(E$4),MONTH(E$4),1),LeaveDate,\"<=\"&E$4,LeaveCode,$A44))","v":""},{"$f":"IF(LEN($A44)=0,\"\",SUMIFS(LeaveDays,LeaveDate,\">=\"&DATE(YEAR(F$4),MONTH(F$4),1),LeaveDate,\"<=\"&F$4,LeaveCode,$A44))","v":""},{"$f":"IF(LEN($A44)=0,\"\",SUMIFS(LeaveDays,LeaveDate,\">=\"&DATE(YEAR(G$4),MONTH(G$4),1),LeaveDate,\"<=\"&G$4,LeaveCode,$A44))","v":""},{"$f":"IF(LEN($A44)=0,\"\",SUMIFS(LeaveDays,LeaveDate,\">=\"&DATE(YEAR(H$4),MONTH(H$4),1),LeaveDate,\"<=\"&H$4,LeaveCode,$A44))","v":""},{"$f":"IF(LEN($A44)=0,\"\",SUMIFS(LeaveDays,LeaveDate,\">=\"&DATE(YEAR(I$4),MONTH(I$4),1),LeaveDate,\"<=\"&I$4,LeaveCode,$A44))","v":""},{"$f":"IF(LEN($A44)=0,\"\",SUMIFS(LeaveDays,LeaveDate,\">=\"&DATE(YEAR(J$4),MONTH(J$4),1),LeaveDate,\"<=\"&J$4,LeaveCode,$A44))","v":""},{"$f":"IF(LEN($A44)=0,\"\",SUMIFS(LeaveDays,LeaveDate,\">=\"&DATE(YEAR(K$4),MONTH(K$4),1),LeaveDate,\"<=\"&K$4,LeaveCode,$A44))","v":""},{"$f":"IF(LEN($A44)=0,\"\",SUMIFS(LeaveDays,LeaveDate,\">=\"&DATE(YEAR(L$4),MONTH(L$4),1),LeaveDate,\"<=\"&L$4,LeaveCode,$A44))","v":""},{"$f":"IF(LEN($A44)=0,\"\",SUMIFS(LeaveDays,LeaveDate,\">=\"&DATE(YEAR(M$4),MONTH(M$4),1),LeaveDate,\"<=\"&M$4,LeaveCode,$A44))","v":""},{"$f":"IF(LEN($A44)=0,\"\",SUMIFS(LeaveDays,LeaveDate,\">=\"&DATE(YEAR(N$4),MONTH(N$4),1),LeaveDate,\"<=\"&N$4,LeaveCode,$A44))","v":""}]
[{"$f":"IF(ISBLANK(OFFSET(Summary!A$5,ROW($B45)-ROW($B$4),0,1,1))=TRUE,\"\",OFFSET(Summary!A$5,ROW($B45)-ROW($B$4),0,1,1))","v":""},{"$f":"IF(ISBLANK(OFFSET(Summary!B$5,ROW($B45)-ROW($B$4),0,1,1))=TRUE,\"\",OFFSET(Summary!B$5,ROW($B45)-ROW($B$4),0,1,1))","v":""},{"$f":"IF(LEN($A45)=0,\"\",SUMIFS(LeaveDays,LeaveDate,\">=\"&DATE(YEAR(C$4),MONTH(C$4),1),LeaveDate,\"<=\"&C$4,LeaveCode,$A45))","v":""},{"$f":"IF(LEN($A45)=0,\"\",SUMIFS(LeaveDays,LeaveDate,\">=\"&DATE(YEAR(D$4),MONTH(D$4),1),LeaveDate,\"<=\"&D$4,LeaveCode,$A45))","v":""},{"$f":"IF(LEN($A45)=0,\"\",SUMIFS(LeaveDays,LeaveDate,\">=\"&DATE(YEAR(E$4),MONTH(E$4),1),LeaveDate,\"<=\"&E$4,LeaveCode,$A45))","v":""},{"$f":"IF(LEN($A45)=0,\"\",SUMIFS(LeaveDays,LeaveDate,\">=\"&DATE(YEAR(F$4),MONTH(F$4),1),LeaveDate,\"<=\"&F$4,LeaveCode,$A45))","v":""},{"$f":"IF(LEN($A45)=0,\"\",SUMIFS(LeaveDays,LeaveDate,\">=\"&DATE(YEAR(G$4),MONTH(G$4),1),LeaveDate,\"<=\"&G$4,LeaveCode,$A45))","v":""},{"$f":"IF(LEN($A45)=0,\"\",SUMIFS(LeaveDays,LeaveDate,\">=\"&DATE(YEAR(H$4),MONTH(H$4),1),LeaveDate,\"<=\"&H$4,LeaveCode,$A45))","v":""},{"$f":"IF(LEN($A45)=0,\"\",SUMIFS(LeaveDays,LeaveDate,\">=\"&DATE(YEAR(I$4),MONTH(I$4),1),LeaveDate,\"<=\"&I$4,LeaveCode,$A45))","v":""},{"$f":"IF(LEN($A45)=0,\"\",SUMIFS(LeaveDays,LeaveDate,\">=\"&DATE(YEAR(J$4),MONTH(J$4),1),LeaveDate,\"<=\"&J$4,LeaveCode,$A45))","v":""},{"$f":"IF(LEN($A45)=0,\"\",SUMIFS(LeaveDays,LeaveDate,\">=\"&DATE(YEAR(K$4),MONTH(K$4),1),LeaveDate,\"<=\"&K$4,LeaveCode,$A45))","v":""},{"$f":"IF(LEN($A45)=0,\"\",SUMIFS(LeaveDays,LeaveDate,\">=\"&DATE(YEAR(L$4),MONTH(L$4),1),LeaveDate,\"<=\"&L$4,LeaveCode,$A45))","v":""},{"$f":"IF(LEN($A45)=0,\"\",SUMIFS(LeaveDays,LeaveDate,\">=\"&DATE(YEAR(M$4),MONTH(M$4),1),LeaveDate,\"<=\"&M$4,LeaveCode,$A45))","v":""},{"$f":"IF(LEN($A45)=0,\"\",SUMIFS(LeaveDays,LeaveDate,\">=\"&DATE(YEAR(N$4),MONTH(N$4),1),LeaveDate,\"<=\"&N$4,LeaveCode,$A45))","v":""}]
[{"$f":"IF(ISBLANK(OFFSET(Summary!A$5,ROW($B46)-ROW($B$4),0,1,1))=TRUE,\"\",OFFSET(Summary!A$5,ROW($B46)-ROW($B$4),0,1,1))","v":""},{"$f":"IF(ISBLANK(OFFSET(Summary!B$5,ROW($B46)-ROW($B$4),0,1,1))=TRUE,\"\",OFFSET(Summary!B$5,ROW($B46)-ROW($B$4),0,1,1))","v":""},{"$f":"IF(LEN($A46)=0,\"\",SUMIFS(LeaveDays,LeaveDate,\">=\"&DATE(YEAR(C$4),MONTH(C$4),1),LeaveDate,\"<=\"&C$4,LeaveCode,$A46))","v":""},{"$f":"IF(LEN($A46)=0,\"\",SUMIFS(LeaveDays,LeaveDate,\">=\"&DATE(YEAR(D$4),MONTH(D$4),1),LeaveDate,\"<=\"&D$4,LeaveCode,$A46))","v":""},{"$f":"IF(LEN($A46)=0,\"\",SUMIFS(LeaveDays,LeaveDate,\">=\"&DATE(YEAR(E$4),MONTH(E$4),1),LeaveDate,\"<=\"&E$4,LeaveCode,$A46))","v":""},{"$f":"IF(LEN($A46)=0,\"\",SUMIFS(LeaveDays,LeaveDate,\">=\"&DATE(YEAR(F$4),MONTH(F$4),1),LeaveDate,\"<=\"&F$4,LeaveCode,$A46))","v":""},{"$f":"IF(LEN($A46)=0,\"\",SUMIFS(LeaveDays,LeaveDate,\">=\"&DATE(YEAR(G$4),MONTH(G$4),1),LeaveDate,\"<=\"&G$4,LeaveCode,$A46))","v":""},{"$f":"IF(LEN($A46)=0,\"\",SUMIFS(LeaveDays,LeaveDate,\">=\"&DATE(YEAR(H$4),MONTH(H$4),1),LeaveDate,\"<=\"&H$4,LeaveCode,$A46))","v":""},{"$f":"IF(LEN($A46)=0,\"\",SUMIFS(LeaveDays,LeaveDate,\">=\"&DATE(YEAR(I$4),MONTH(I$4),1),LeaveDate,\"<=\"&I$4,LeaveCode,$A46))","v":""},{"$f":"IF(LEN($A46)=0,\"\",SUMIFS(LeaveDays,LeaveDate,\">=\"&DATE(YEAR(J$4),MONTH(J$4),1),LeaveDate,\"<=\"&J$4,LeaveCode,$A46))","v":""},{"$f":"IF(LEN($A46)=0,\"\",SUMIFS(LeaveDays,LeaveDate,\">=\"&DATE(YEAR(K$4),MONTH(K$4),1),LeaveDate,\"<=\"&K$4,LeaveCode,$A46))","v":""},{"$f":"IF(LEN($A46)=0,\"\",SUMIFS(LeaveDays,LeaveDate,\">=\"&DATE(YEAR(L$4),MONTH(L$4),1),LeaveDate,\"<=\"&L$4,LeaveCode,$A46))","v":""},{"$f":"IF(LEN($A46)=0,\"\",SUMIFS(LeaveDays,LeaveDate,\">=\"&DATE(YEAR(M$4),MONTH(M$4),1),LeaveDate,\"<=\"&M$4,LeaveCode,$A46))","v":""},{"$f":"IF(LEN($A46)=0,\"\",SUMIFS(LeaveDays,LeaveDate,\">=\"&DATE(YEAR(N$4),MONTH(N$4),1),LeaveDate,\"<=\"&N$4,LeaveCode,$A46))","v":""}]
[{"$f":"IF(ISBLANK(OFFSET(Summary!A$5,ROW($B47)-ROW($B$4),0,1,1))=TRUE,\"\",OFFSET(Summary!A$5,ROW($B47)-ROW($B$4),0,1,1))","v":""},{"$f":"IF(ISBLANK(OFFSET(Summary!B$5,ROW($B47)-ROW($B$4),0,1,1))=TRUE,\"\",OFFSET(Summary!B$5,ROW($B47)-ROW($B$4),0,1,1))","v":""},{"$f":"IF(LEN($A47)=0,\"\",SUMIFS(LeaveDays,LeaveDate,\">=\"&DATE(YEAR(C$4),MONTH(C$4),1),LeaveDate,\"<=\"&C$4,LeaveCode,$A47))","v":""},{"$f":"IF(LEN($A47)=0,\"\",SUMIFS(LeaveDays,LeaveDate,\">=\"&DATE(YEAR(D$4),MONTH(D$4),1),LeaveDate,\"<=\"&D$4,LeaveCode,$A47))","v":""},{"$f":"IF(LEN($A47)=0,\"\",SUMIFS(LeaveDays,LeaveDate,\">=\"&DATE(YEAR(E$4),MONTH(E$4),1),LeaveDate,\"<=\"&E$4,LeaveCode,$A47))","v":""},{"$f":"IF(LEN($A47)=0,\"\",SUMIFS(LeaveDays,LeaveDate,\">=\"&DATE(YEAR(F$4),MONTH(F$4),1),LeaveDate,\"<=\"&F$4,LeaveCode,$A47))","v":""},{"$f":"IF(LEN($A47)=0,\"\",SUMIFS(LeaveDays,LeaveDate,\">=\"&DATE(YEAR(G$4),MONTH(G$4),1),LeaveDate,\"<=\"&G$4,LeaveCode,$A47))","v":""},{"$f":"IF(LEN($A47)=0,\"\",SUMIFS(LeaveDays,LeaveDate,\">=\"&DATE(YEAR(H$4),MONTH(H$4),1),LeaveDate,\"<=\"&H$4,LeaveCode,$A47))","v":""},{"$f":"IF(LEN($A47)=0,\"\",SUMIFS(LeaveDays,LeaveDate,\">=\"&DATE(YEAR(I$4),MONTH(I$4),1),LeaveDate,\"<=\"&I$4,LeaveCode,$A47))","v":""},{"$f":"IF(LEN($A47)=0,\"\",SUMIFS(LeaveDays,LeaveDate,\">=\"&DATE(YEAR(J$4),MONTH(J$4),1),LeaveDate,\"<=\"&J$4,LeaveCode,$A47))","v":""},{"$f":"IF(LEN($A47)=0,\"\",SUMIFS(LeaveDays,LeaveDate,\">=\"&DATE(YEAR(K$4),MONTH(K$4),1),LeaveDate,\"<=\"&K$4,LeaveCode,$A47))","v":""},{"$f":"IF(LEN($A47)=0,\"\",SUMIFS(LeaveDays,LeaveDate,\">=\"&DATE(YEAR(L$4),MONTH(L$4),1),LeaveDate,\"<=\"&L$4,LeaveCode,$A47))","v":""},{"$f":"IF(LEN($A47)=0,\"\",SUMIFS(LeaveDays,LeaveDate,\">=\"&DATE(YEAR(M$4),MONTH(M$4),1),LeaveDate,\"<=\"&M$4,LeaveCode,$A47))","v":""},{"$f":"IF(LEN($A47)=0,\"\",SUMIFS(LeaveDays,LeaveDate,\">=\"&DATE(YEAR(N$4),MONTH(N$4),1),LeaveDate,\"<=\"&N$4,LeaveCode,$A47))","v":""}]
[{"$f":"IF(ISBLANK(OFFSET(Summary!A$5,ROW($B48)-ROW($B$4),0,1,1))=TRUE,\"\",OFFSET(Summary!A$5,ROW($B48)-ROW($B$4),0,1,1))","v":""},{"$f":"IF(ISBLANK(OFFSET(Summary!B$5,ROW($B48)-ROW($B$4),0,1,1))=TRUE,\"\",OFFSET(Summary!B$5,ROW($B48)-ROW($B$4),0,1,1))","v":""},{"$f":"IF(LEN($A48)=0,\"\",SUMIFS(LeaveDays,LeaveDate,\">=\"&DATE(YEAR(C$4),MONTH(C$4),1),LeaveDate,\"<=\"&C$4,LeaveCode,$A48))","v":""},{"$f":"IF(LEN($A48)=0,\"\",SUMIFS(LeaveDays,LeaveDate,\">=\"&DATE(YEAR(D$4),MONTH(D$4),1),LeaveDate,\"<=\"&D$4,LeaveCode,$A48))","v":""},{"$f":"IF(LEN($A48)=0,\"\",SUMIFS(LeaveDays,LeaveDate,\">=\"&DATE(YEAR(E$4),MONTH(E$4),1),LeaveDate,\"<=\"&E$4,LeaveCode,$A48))","v":""},{"$f":"IF(LEN($A48)=0,\"\",SUMIFS(LeaveDays,LeaveDate,\">=\"&DATE(YEAR(F$4),MONTH(F$4),1),LeaveDate,\"<=\"&F$4,LeaveCode,$A48))","v":""},{"$f":"IF(LEN($A48)=0,\"\",SUMIFS(LeaveDays,LeaveDate,\">=\"&DATE(YEAR(G$4),MONTH(G$4),1),LeaveDate,\"<=\"&G$4,LeaveCode,$A48))","v":""},{"$f":"IF(LEN($A48)=0,\"\",SUMIFS(LeaveDays,LeaveDate,\">=\"&DATE(YEAR(H$4),MONTH(H$4),1),LeaveDate,\"<=\"&H$4,LeaveCode,$A48))","v":""},{"$f":"IF(LEN($A48)=0,\"\",SUMIFS(LeaveDays,LeaveDate,\">=\"&DATE(YEAR(I$4),MONTH(I$4),1),LeaveDate,\"<=\"&I$4,LeaveCode,$A48))","v":""},{"$f":"IF(LEN($A48)=0,\"\",SUMIFS(LeaveDays,LeaveDate,\">=\"&DATE(YEAR(J$4),MONTH(J$4),1),LeaveDate,\"<=\"&J$4,LeaveCode,$A48))","v":""},{"$f":"IF(LEN($A48)=0,\"\",SUMIFS(LeaveDays,LeaveDate,\">=\"&DATE(YEAR(K$4),MONTH(K$4),1),LeaveDate,\"<=\"&K$4,LeaveCode,$A48))","v":""},{"$f":"IF(LEN($A48)=0,\"\",SUMIFS(LeaveDays,LeaveDate,\">=\"&DATE(YEAR(L$4),MONTH(L$4),1),LeaveDate,\"<=\"&L$4,LeaveCode,$A48))","v":""},{"$f":"IF(LEN($A48)=0,\"\",SUMIFS(LeaveDays,LeaveDate,\">=\"&DATE(YEAR(M$4),MONTH(M$4),1),LeaveDate,\"<=\"&M$4,LeaveCode,$A48))","v":""},{"$f":"IF(LEN($A48)=0,\"\",SUMIFS(LeaveDays,LeaveDate,\">=\"&DATE(YEAR(N$4),MONTH(N$4),1),LeaveDate,\"<=\"&N$4,LeaveCode,$A48))","v":""}]
[{"$f":"IF(ISBLANK(OFFSET(Summary!A$5,ROW($B49)-ROW($B$4),0,1,1))=TRUE,\"\",OFFSET(Summary!A$5,ROW($B49)-ROW($B$4),0,1,1))","v":""},{"$f":"IF(ISBLANK(OFFSET(Summary!B$5,ROW($B49)-ROW($B$4),0,1,1))=TRUE,\"\",OFFSET(Summary!B$5,ROW($B49)-ROW($B$4),0,1,1))","v":""},{"$f":"IF(LEN($A49)=0,\"\",SUMIFS(LeaveDays,LeaveDate,\">=\"&DATE(YEAR(C$4),MONTH(C$4),1),LeaveDate,\"<=\"&C$4,LeaveCode,$A49))","v":""},{"$f":"IF(LEN($A49)=0,\"\",SUMIFS(LeaveDays,LeaveDate,\">=\"&DATE(YEAR(D$4),MONTH(D$4),1),LeaveDate,\"<=\"&D$4,LeaveCode,$A49))","v":""},{"$f":"IF(LEN($A49)=0,\"\",SUMIFS(LeaveDays,LeaveDate,\">=\"&DATE(YEAR(E$4),MONTH(E$4),1),LeaveDate,\"<=\"&E$4,LeaveCode,$A49))","v":""},{"$f":"IF(LEN($A49)=0,\"\",SUMIFS(LeaveDays,LeaveDate,\">=\"&DATE(YEAR(F$4),MONTH(F$4),1),LeaveDate,\"<=\"&F$4,LeaveCode,$A49))","v":""},{"$f":"IF(LEN($A49)=0,\"\",SUMIFS(LeaveDays,LeaveDate,\">=\"&DATE(YEAR(G$4),MONTH(G$4),1),LeaveDate,\"<=\"&G$4,LeaveCode,$A49))","v":""},{"$f":"IF(LEN($A49)=0,\"\",SUMIFS(LeaveDays,LeaveDate,\">=\"&DATE(YEAR(H$4),MONTH(H$4),1),LeaveDate,\"<=\"&H$4,LeaveCode,$A49))","v":""},{"$f":"IF(LEN($A49)=0,\"\",SUMIFS(LeaveDays,LeaveDate,\">=\"&DATE(YEAR(I$4),MONTH(I$4),1),LeaveDate,\"<=\"&I$4,LeaveCode,$A49))","v":""},{"$f":"IF(LEN($A49)=0,\"\",SUMIFS(LeaveDays,LeaveDate,\">=\"&DATE(YEAR(J$4),MONTH(J$4),1),LeaveDate,\"<=\"&J$4,LeaveCode,$A49))","v":""},{"$f":"IF(LEN($A49)=0,\"\",SUMIFS(LeaveDays,LeaveDate,\">=\"&DATE(YEAR(K$4),MONTH(K$4),1),LeaveDate,\"<=\"&K$4,LeaveCode,$A49))","v":""},{"$f":"IF(LEN($A49)=0,\"\",SUMIFS(LeaveDays,LeaveDate,\">=\"&DATE(YEAR(L$4),MONTH(L$4),1),LeaveDate,\"<=\"&L$4,LeaveCode,$A49))","v":""},{"$f":"IF(LEN($A49)=0,\"\",SUMIFS(LeaveDays,LeaveDate,\">=\"&DATE(YEAR(M$4),MONTH(M$4),1),LeaveDate,\"<=\"&M$4,LeaveCode,$A49))","v":""},{"$f":"IF(LEN($A49)=0,\"\",SUMIFS(LeaveDays,LeaveDate,\">=\"&DATE(YEAR(N$4),MONTH(N$4),1),LeaveDate,\"<=\"&N$4,LeaveCode,$A49))","v":""}]
[{"$f":"IF(ISBLANK(OFFSET(Summary!A$5,ROW($B50)-ROW($B$4),0,1,1))=TRUE,\"\",OFFSET(Summary!A$5,ROW($B50)-ROW($B$4),0,1,1))","v":""},{"$f":"IF(ISBLANK(OFFSET(Summary!B$5,ROW($B50)-ROW($B$4),0,1,1))=TRUE,\"\",OFFSET(Summary!B$5,ROW($B50)-ROW($B$4),0,1,1))","v":""},{"$f":"IF(LEN($A50)=0,\"\",SUMIFS(LeaveDays,LeaveDate,\">=\"&DATE(YEAR(C$4),MONTH(C$4),1),LeaveDate,\"<=\"&C$4,LeaveCode,$A50))","v":""},{"$f":"IF(LEN($A50)=0,\"\",SUMIFS(LeaveDays,LeaveDate,\">=\"&DATE(YEAR(D$4),MONTH(D$4),1),LeaveDate,\"<=\"&D$4,LeaveCode,$A50))","v":""},{"$f":"IF(LEN($A50)=0,\"\",SUMIFS(LeaveDays,LeaveDate,\">=\"&DATE(YEAR(E$4),MONTH(E$4),1),LeaveDate,\"<=\"&E$4,LeaveCode,$A50))","v":""},{"$f":"IF(LEN($A50)=0,\"\",SUMIFS(LeaveDays,LeaveDate,\">=\"&DATE(YEAR(F$4),MONTH(F$4),1),LeaveDate,\"<=\"&F$4,LeaveCode,$A50))","v":""},{"$f":"IF(LEN($A50)=0,\"\",SUMIFS(LeaveDays,LeaveDate,\">=\"&DATE(YEAR(G$4),MONTH(G$4),1),LeaveDate,\"<=\"&G$4,LeaveCode,$A50))","v":""},{"$f":"IF(LEN($A50)=0,\"\",SUMIFS(LeaveDays,LeaveDate,\">=\"&DATE(YEAR(H$4),MONTH(H$4),1),LeaveDate,\"<=\"&H$4,LeaveCode,$A50))","v":""},{"$f":"IF(LEN($A50)=0,\"\",SUMIFS(LeaveDays,LeaveDate,\">=\"&DATE(YEAR(I$4),MONTH(I$4),1),LeaveDate,\"<=\"&I$4,LeaveCode,$A50))","v":""},{"$f":"IF(LEN($A50)=0,\"\",SUMIFS(LeaveDays,LeaveDate,\">=\"&DATE(YEAR(J$4),MONTH(J$4),1),LeaveDate,\"<=\"&J$4,LeaveCode,$A50))","v":""},{"$f":"IF(LEN($A50)=0,\"\",SUMIFS(LeaveDays,LeaveDate,\">=\"&DATE(YEAR(K$4),MONTH(K$4),1),LeaveDate,\"<=\"&K$4,LeaveCode,$A50))","v":""},{"$f":"IF(LEN($A50)=0,\"\",SUMIFS(LeaveDays,LeaveDate,\">=\"&DATE(YEAR(L$4),MONTH(L$4),1),LeaveDate,\"<=\"&L$4,LeaveCode,$A50))","v":""},{"$f":"IF(LEN($A50)=0,\"\",SUMIFS(LeaveDays,LeaveDate,\">=\"&DATE(YEAR(M$4),MONTH(M$4),1),LeaveDate,\"<=\"&M$4,LeaveCode,$A50))","v":""},{"$f":"IF(LEN($A50)=0,\"\",SUMIFS(LeaveDays,LeaveDate,\">=\"&DATE(YEAR(N$4),MONTH(N$4),1),LeaveDate,\"<=\"&N$4,LeaveCode,$A50))","v":""}]
[{"$f":"IF(ISBLANK(OFFSET(Summary!A$5,ROW($B51)-ROW($B$4),0,1,1))=TRUE,\"\",OFFSET(Summary!A$5,ROW($B51)-ROW($B$4),0,1,1))","v":""},{"$f":"IF(ISBLANK(OFFSET(Summary!B$5,ROW($B51)-ROW($B$4),0,1,1))=TRUE,\"\",OFFSET(Summary!B$5,ROW($B51)-ROW($B$4),0,1,1))","v":""},{"$f":"IF(LEN($A51)=0,\"\",SUMIFS(LeaveDays,LeaveDate,\">=\"&DATE(YEAR(C$4),MONTH(C$4),1),LeaveDate,\"<=\"&C$4,LeaveCode,$A51))","v":""},{"$f":"IF(LEN($A51)=0,\"\",SUMIFS(LeaveDays,LeaveDate,\">=\"&DATE(YEAR(D$4),MONTH(D$4),1),LeaveDate,\"<=\"&D$4,LeaveCode,$A51))","v":""},{"$f":"IF(LEN($A51)=0,\"\",SUMIFS(LeaveDays,LeaveDate,\">=\"&DATE(YEAR(E$4),MONTH(E$4),1),LeaveDate,\"<=\"&E$4,LeaveCode,$A51))","v":""},{"$f":"IF(LEN($A51)=0,\"\",SUMIFS(LeaveDays,LeaveDate,\">=\"&DATE(YEAR(F$4),MONTH(F$4),1),LeaveDate,\"<=\"&F$4,LeaveCode,$A51))","v":""},{"$f":"IF(LEN($A51)=0,\"\",SUMIFS(LeaveDays,LeaveDate,\">=\"&DATE(YEAR(G$4),MONTH(G$4),1),LeaveDate,\"<=\"&G$4,LeaveCode,$A51))","v":""},{"$f":"IF(LEN($A51)=0,\"\",SUMIFS(LeaveDays,LeaveDate,\">=\"&DATE(YEAR(H$4),MONTH(H$4),1),LeaveDate,\"<=\"&H$4,LeaveCode,$A51))","v":""},{"$f":"IF(LEN($A51)=0,\"\",SUMIFS(LeaveDays,LeaveDate,\">=\"&DATE(YEAR(I$4),MONTH(I$4),1),LeaveDate,\"<=\"&I$4,LeaveCode,$A51))","v":""},{"$f":"IF(LEN($A51)=0,\"\",SUMIFS(LeaveDays,LeaveDate,\">=\"&DATE(YEAR(J$4),MONTH(J$4),1),LeaveDate,\"<=\"&J$4,LeaveCode,$A51))","v":""},{"$f":"IF(LEN($A51)=0,\"\",SUMIFS(LeaveDays,LeaveDate,\">=\"&DATE(YEAR(K$4),MONTH(K$4),1),LeaveDate,\"<=\"&K$4,LeaveCode,$A51))","v":""},{"$f":"IF(LEN($A51)=0,\"\",SUMIFS(LeaveDays,LeaveDate,\">=\"&DATE(YEAR(L$4),MONTH(L$4),1),LeaveDate,\"<=\"&L$4,LeaveCode,$A51))","v":""},{"$f":"IF(LEN($A51)=0,\"\",SUMIFS(LeaveDays,LeaveDate,\">=\"&DATE(YEAR(M$4),MONTH(M$4),1),LeaveDate,\"<=\"&M$4,LeaveCode,$A51))","v":""},{"$f":"IF(LEN($A51)=0,\"\",SUMIFS(LeaveDays,LeaveDate,\">=\"&DATE(YEAR(N$4),MONTH(N$4),1),LeaveDate,\"<=\"&N$4,LeaveCode,$A51))","v":""}]
[{"$f":"IF(ISBLANK(OFFSET(Summary!A$5,ROW($B52)-ROW($B$4),0,1,1))=TRUE,\"\",OFFSET(Summary!A$5,ROW($B52)-ROW($B$4),0,1,1))","v":""},{"$f":"IF(ISBLANK(OFFSET(Summary!B$5,ROW($B52)-ROW($B$4),0,1,1))=TRUE,\"\",OFFSET(Summary!B$5,ROW($B52)-ROW($B$4),0,1,1))","v":""},{"$f":"IF(LEN($A52)=0,\"\",SUMIFS(LeaveDays,LeaveDate,\">=\"&DATE(YEAR(C$4),MONTH(C$4),1),LeaveDate,\"<=\"&C$4,LeaveCode,$A52))","v":""},{"$f":"IF(LEN($A52)=0,\"\",SUMIFS(LeaveDays,LeaveDate,\">=\"&DATE(YEAR(D$4),MONTH(D$4),1),LeaveDate,\"<=\"&D$4,LeaveCode,$A52))","v":""},{"$f":"IF(LEN($A52)=0,\"\",SUMIFS(LeaveDays,LeaveDate,\">=\"&DATE(YEAR(E$4),MONTH(E$4),1),LeaveDate,\"<=\"&E$4,LeaveCode,$A52))","v":""},{"$f":"IF(LEN($A52)=0,\"\",SUMIFS(LeaveDays,LeaveDate,\">=\"&DATE(YEAR(F$4),MONTH(F$4),1),LeaveDate,\"<=\"&F$4,LeaveCode,$A52))","v":""},{"$f":"IF(LEN($A52)=0,\"\",SUMIFS(LeaveDays,LeaveDate,\">=\"&DATE(YEAR(G$4),MONTH(G$4),1),LeaveDate,\"<=\"&G$4,LeaveCode,$A52))","v":""},{"$f":"IF(LEN($A52)=0,\"\",SUMIFS(LeaveDays,LeaveDate,\">=\"&DATE(YEAR(H$4),MONTH(H$4),1),LeaveDate,\"<=\"&H$4,LeaveCode,$A52))","v":""},{"$f":"IF(LEN($A52)=0,\"\",SUMIFS(LeaveDays,LeaveDate,\">=\"&DATE(YEAR(I$4),MONTH(I$4),1),LeaveDate,\"<=\"&I$4,LeaveCode,$A52))","v":""},{"$f":"IF(LEN($A52)=0,\"\",SUMIFS(LeaveDays,LeaveDate,\">=\"&DATE(YEAR(J$4),MONTH(J$4),1),LeaveDate,\"<=\"&J$4,LeaveCode,$A52))","v":""},{"$f":"IF(LEN($A52)=0,\"\",SUMIFS(LeaveDays,LeaveDate,\">=\"&DATE(YEAR(K$4),MONTH(K$4),1),LeaveDate,\"<=\"&K$4,LeaveCode,$A52))","v":""},{"$f":"IF(LEN($A52)=0,\"\",SUMIFS(LeaveDays,LeaveDate,\">=\"&DATE(YEAR(L$4),MONTH(L$4),1),LeaveDate,\"<=\"&L$4,LeaveCode,$A52))","v":""},{"$f":"IF(LEN($A52)=0,\"\",SUMIFS(LeaveDays,LeaveDate,\">=\"&DATE(YEAR(M$4),MONTH(M$4),1),LeaveDate,\"<=\"&M$4,LeaveCode,$A52))","v":""},{"$f":"IF(LEN($A52)=0,\"\",SUMIFS(LeaveDays,LeaveDate,\">=\"&DATE(YEAR(N$4),MONTH(N$4),1),LeaveDate,\"<=\"&N$4,LeaveCode,$A52))","v":""}]
[{"$f":"IF(ISBLANK(OFFSET(Summary!A$5,ROW($B53)-ROW($B$4),0,1,1))=TRUE,\"\",OFFSET(Summary!A$5,ROW($B53)-ROW($B$4),0,1,1))","v":""},{"$f":"IF(ISBLANK(OFFSET(Summary!B$5,ROW($B53)-ROW($B$4),0,1,1))=TRUE,\"\",OFFSET(Summary!B$5,ROW($B53)-ROW($B$4),0,1,1))","v":""},{"$f":"IF(LEN($A53)=0,\"\",SUMIFS(LeaveDays,LeaveDate,\">=\"&DATE(YEAR(C$4),MONTH(C$4),1),LeaveDate,\"<=\"&C$4,LeaveCode,$A53))","v":""},{"$f":"IF(LEN($A53)=0,\"\",SUMIFS(LeaveDays,LeaveDate,\">=\"&DATE(YEAR(D$4),MONTH(D$4),1),LeaveDate,\"<=\"&D$4,LeaveCode,$A53))","v":""},{"$f":"IF(LEN($A53)=0,\"\",SUMIFS(LeaveDays,LeaveDate,\">=\"&DATE(YEAR(E$4),MONTH(E$4),1),LeaveDate,\"<=\"&E$4,LeaveCode,$A53))","v":""},{"$f":"IF(LEN($A53)=0,\"\",SUMIFS(LeaveDays,LeaveDate,\">=\"&DATE(YEAR(F$4),MONTH(F$4),1),LeaveDate,\"<=\"&F$4,LeaveCode,$A53))","v":""},{"$f":"IF(LEN($A53)=0,\"\",SUMIFS(LeaveDays,LeaveDate,\">=\"&DATE(YEAR(G$4),MONTH(G$4),1),LeaveDate,\"<=\"&G$4,LeaveCode,$A53))","v":""},{"$f":"IF(LEN($A53)=0,\"\",SUMIFS(LeaveDays,LeaveDate,\">=\"&DATE(YEAR(H$4),MONTH(H$4),1),LeaveDate,\"<=\"&H$4,LeaveCode,$A53))","v":""},{"$f":"IF(LEN($A53)=0,\"\",SUMIFS(LeaveDays,LeaveDate,\">=\"&DATE(YEAR(I$4),MONTH(I$4),1),LeaveDate,\"<=\"&I$4,LeaveCode,$A53))","v":""},{"$f":"IF(LEN($A53)=0,\"\",SUMIFS(LeaveDays,LeaveDate,\">=\"&DATE(YEAR(J$4),MONTH(J$4),1),LeaveDate,\"<=\"&J$4,LeaveCode,$A53))","v":""},{"$f":"IF(LEN($A53)=0,\"\",SUMIFS(LeaveDays,LeaveDate,\">=\"&DATE(YEAR(K$4),MONTH(K$4),1),LeaveDate,\"<=\"&K$4,LeaveCode,$A53))","v":""},{"$f":"IF(LEN($A53)=0,\"\",SUMIFS(LeaveDays,LeaveDate,\">=\"&DATE(YEAR(L$4),MONTH(L$4),1),LeaveDate,\"<=\"&L$4,LeaveCode,$A53))","v":""},{"$f":"IF(LEN($A53)=0,\"\",SUMIFS(LeaveDays,LeaveDate,\">=\"&DATE(YEAR(M$4),MONTH(M$4),1),LeaveDate,\"<=\"&M$4,LeaveCode,$A53))","v":""},{"$f":"IF(LEN($A53)=0,\"\",SUMIFS(LeaveDays,LeaveDate,\">=\"&DATE(YEAR(N$4),MONTH(N$4),1),LeaveDate,\"<=\"&N$4,LeaveCode,$A53))","v":""}]
[{"$f":"IF(ISBLANK(OFFSET(Summary!A$5,ROW($B54)-ROW($B$4),0,1,1))=TRUE,\"\",OFFSET(Summary!A$5,ROW($B54)-ROW($B$4),0,1,1))","v":""},{"$f":"IF(ISBLANK(OFFSET(Summary!B$5,ROW($B54)-ROW($B$4),0,1,1))=TRUE,\"\",OFFSET(Summary!B$5,ROW($B54)-ROW($B$4),0,1,1))","v":""},{"$f":"IF(LEN($A54)=0,\"\",SUMIFS(LeaveDays,LeaveDate,\">=\"&DATE(YEAR(C$4),MONTH(C$4),1),LeaveDate,\"<=\"&C$4,LeaveCode,$A54))","v":""},{"$f":"IF(LEN($A54)=0,\"\",SUMIFS(LeaveDays,LeaveDate,\">=\"&DATE(YEAR(D$4),MONTH(D$4),1),LeaveDate,\"<=\"&D$4,LeaveCode,$A54))","v":""},{"$f":"IF(LEN($A54)=0,\"\",SUMIFS(LeaveDays,LeaveDate,\">=\"&DATE(YEAR(E$4),MONTH(E$4),1),LeaveDate,\"<=\"&E$4,LeaveCode,$A54))","v":""},{"$f":"IF(LEN($A54)=0,\"\",SUMIFS(LeaveDays,LeaveDate,\">=\"&DATE(YEAR(F$4),MONTH(F$4),1),LeaveDate,\"<=\"&F$4,LeaveCode,$A54))","v":""},{"$f":"IF(LEN($A54)=0,\"\",SUMIFS(LeaveDays,LeaveDate,\">=\"&DATE(YEAR(G$4),MONTH(G$4),1),LeaveDate,\"<=\"&G$4,LeaveCode,$A54))","v":""},{"$f":"IF(LEN($A54)=0,\"\",SUMIFS(LeaveDays,LeaveDate,\">=\"&DATE(YEAR(H$4),MONTH(H$4),1),LeaveDate,\"<=\"&H$4,LeaveCode,$A54))","v":""},{"$f":"IF(LEN($A54)=0,\"\",SUMIFS(LeaveDays,LeaveDate,\">=\"&DATE(YEAR(I$4),MONTH(I$4),1),LeaveDate,\"<=\"&I$4,LeaveCode,$A54))","v":""},{"$f":"IF(LEN($A54)=0,\"\",SUMIFS(LeaveDays,LeaveDate,\">=\"&DATE(YEAR(J$4),MONTH(J$4),1),LeaveDate,\"<=\"&J$4,LeaveCode,$A54))","v":""},{"$f":"IF(LEN($A54)=0,\"\",SUMIFS(LeaveDays,LeaveDate,\">=\"&DATE(YEAR(K$4),MONTH(K$4),1),LeaveDate,\"<=\"&K$4,LeaveCode,$A54))","v":""},{"$f":"IF(LEN($A54)=0,\"\",SUMIFS(LeaveDays,LeaveDate,\">=\"&DATE(YEAR(L$4),MONTH(L$4),1),LeaveDate,\"<=\"&L$4,LeaveCode,$A54))","v":""},{"$f":"IF(LEN($A54)=0,\"\",SUMIFS(LeaveDays,LeaveDate,\">=\"&DATE(YEAR(M$4),MONTH(M$4),1),LeaveDate,\"<=\"&M$4,LeaveCode,$A54))","v":""},{"$f":"IF(LEN($A54)=0,\"\",SUMIFS(LeaveDays,LeaveDate,\">=\"&DATE(YEAR(N$4),MONTH(N$4),1),LeaveDate,\"<=\"&N$4,LeaveCode,$A54))","v":""}]